Workbook

Sheet DIBUJAR
A1: Pirámides de población a 1 de enero de 2021 | F1: (Revisión del Padrón Municipal de Habitantes a 1 de enero de 2007)
A2: Fuente: Padrón Municipal de Habitantes a 1 de enero de 2021 | F2: Elaboración: Instituto Aragonés de Estadística
A3: Elaboración. Instituto Aragonés de Estadística.
A5: Elegir territorio
C6: =VLOOKUP(F6,datos!A2:B769,2) -> ARAGÓN | F6: 1 | M6: extranjeros
I7: =B6&" "&C6 -> ARAGÓN | M7: =B6&" "&C6 -> ARAGÓN
B8: Total población
B9: Edad | C9: Ambos Sexos | D9: Hombre | E9: Mujer | H9: datos dibujo | I9: =D9 -> Hombre | J9: =E9 -> Mujer | K9: TOTALES | L9: datos dibujo | M9: Hombre | N9: Mujer | O9: TOTALES
B10: 0 a 4 | C10: =D10+E10 -> 51645 | D10: =VLOOKUP($F$6,datos!$A$2:$AS$769,5) -> 26493 | E10: =VLOOKUP($F$6,datos!$A$2:$AS$769,26) -> 25152 | H10: =B10 -> 0 a 4 | I10: =-D10/$C$30 -> -0.01997570614 | J10: =E10/$C$30 -> 0.01896459294 | K10: =J10-I10 -> 0.03894029908 | L10: =B10 -> 0 a 4 | M10: =-D35/$C$30 -> -0.003612411132 | N10: =E35/C$30 -> 0.003382441314 | O10: =-M10+N10 -> 0.006994852446
B11: 5 a 9 | C11: 62165 | D11: =VLOOKUP($F$6,datos!$A$2:$AS$769,6) -> 31868 | E11: =VLOOKUP($F$6,datos!$A$2:$AS$769,27) -> 30297 | H11: 5 a 9 | I11: -0.02402845292 | J11: 0.02284391986 | K11: 0.04687237278 | L11: =B11 -> 5 a 9 | M11: =-D36/$C$30 -> -0.003461611251 | N11: =E36/C$30 -> 0.003306287375 | O11: =N11-M11 -> 0.006767898626
B12: 10 a 14 | C12: 67267 | D12: =VLOOKUP($F$6,datos!$A$2:$AS$769,7) -> 34714 | E12: =VLOOKUP($F$6,datos!$A$2:$AS$769,28) -> 32553 | H12: 10 a 14 | I12: -0.02617433522 | J12: 0.02454494251 | K12: 0.05071927773 | L12: 10 a 14 | M12: -0.003087627548 | N12: 0.002855395733 | O12: 0.005943023281
B13: 15 a 19 | C13: 64336 | D13: =VLOOKUP($F$6,datos!$A$2:$AS$769,8) -> 33252 | E13: =VLOOKUP($F$6,datos!$A$2:$AS$769,29) -> 31084 | H13: 15 a 19 | I13: -0.02507198809 | J13: 0.02343731739 | K13: 0.04850930548 | L13: 15 a 19 | M13: -0.003449547261 | N13: 0.002824481757 | O13: 0.006274029018
B14: 20 a 24 | C14: 64007 | D14: =VLOOKUP($F$6,datos!$A$2:$AS$769,9) -> 33240 | E14: =VLOOKUP($F$6,datos!$A$2:$AS$769,30) -> 30767 | H14: 20 a 24 | I14: -0.0250629401 | J14: 0.02319829958 | K14: 0.04826123968 | L14: 20 a 24 | M14: -0.004800714188 | N14: 0.004400340506 | O14: 0.009201054694
B15: 25 a 29 | C15: 66580 | D15: =VLOOKUP($F$6,datos!$A$2:$AS$769,10) -> 33986 | E15: =VLOOKUP($F$6,datos!$A$2:$AS$769,31) -> 32594 | H15: 25 a 29 | I15: -0.02562542365 | J15: 0.02457585649 | K15: 0.05020128014 | L15: 25 a 29 | M15: -0.005614279542 | N15: 0.005728887451 | O15: 0.01134316699
B16: 30 a 34 | C16: 73318 | D16: =VLOOKUP($F$6,datos!$A$2:$AS$769,11) -> 37402 | E16: =VLOOKUP($F$6,datos!$A$2:$AS$769,32) -> 35916 | H16: 30 a 34 | I16: -0.02820108561 | J16: 0.0270806425 | K16: 0.05528172811 | L16: 30 a 34 | M16: -0.006463282868 | N16: 0.007061958393 | O16: 0.01352524126
B17: 35 a 39 | C17: 85326 | D17: =VLOOKUP($F$6,datos!$A$2:$AS$769,12) -> 43530 | E17: =VLOOKUP($F$6,datos!$A$2:$AS$769,33) -> 41796 | H17: 35 a 39 | I17: -0.03282159394 | J17: 0.03151415898 | K17: 0.06433575292 | L17: 35 a 39 | M17: -0.00701521043 | N17: 0.007249704244 | O17: 0.01426491467
B18: 40 a 44 | C18: 105885 | D18: =VLOOKUP($F$6,datos!$A$2:$AS$769,13) -> 54249 | E18: =VLOOKUP($F$6,datos!$A$2:$AS$769,34) -> 51636 | H18: 40 a 44 | I18: -0.04090371352 | J18: 0.03893351309 | K18: 0.07983722661 | L18: 40 a 44 | M18: -0.007755637842 | N18: 0.006861394552 | O18: 0.01461703239
B19: 45 a 49 | C19: 108178 | D19: =VLOOKUP($F$6,datos!$A$2:$AS$769,14) -> 55513 | E19: =VLOOKUP($F$6,datos!$A$2:$AS$769,35) -> 52665 | H19: 45 a 49 | I19: -0.04185676877 | J19: 0.03970937847 | K19: 0.08156614724 | L19: 45 a 49 | M19: -0.006377326936 | N19: 0.005507965627 | O19: 0.01188529256
B20: 50 a 54 | C20: 102610 | D20: =VLOOKUP($F$6,datos!$A$2:$AS$769,15) -> 52004 | E20: =VLOOKUP($F$6,datos!$A$2:$AS$769,36) -> 50606 | H20: 50 a 54 | I20: -0.03921098487 | J20: 0.0381568937 | K20: 0.07736787857 | L20: 50 a 54 | M20: -0.00472305225 | N20: 0.004162076695 | O20: 0.008885128945
B21: 55 a 59 | C21: 97503 | D21: =VLOOKUP($F$6,datos!$A$2:$AS$769,16) -> 49180 | E21: =VLOOKUP($F$6,datos!$A$2:$AS$769,37) -> 48323 | H21: 55 a 59 | I21: -0.03708169056 | J21: 0.03643551307 | K21: 0.07351720363 | L21: 55 a 59 | M21: -0.00280864777 | N21: 0.002605821931 | O21: 0.005414469701
B22: 60 a 64 | C22: 87838 | D22: =VLOOKUP($F$6,datos!$A$2:$AS$769,17) -> 43443 | E22: =VLOOKUP($F$6,datos!$A$2:$AS$769,38) -> 44395 | H22: 60 a 64 | I22: -0.03275599599 | J22: 0.03347380342 | K22: 0.06622979941 | L22: 60 a 64 | M22: -0.001682926664 | N22: 0.001764358599 | O22: 0.003447285263
B23: 65 a 69 | C23: 72603 | D23: =VLOOKUP($F$6,datos!$A$2:$AS$769,18) -> 34996 | E23: =VLOOKUP($F$6,datos!$A$2:$AS$769,39) -> 37607 | H23: 65 a 69 | I23: -0.02638696305 | J23: 0.02835565549 | K23: 0.05474261853 | L23: 65 a 69 | M23: -0.0008497573253 | N23: 0.001092545133 | O23: 0.001942302458
B24: 70 a 74 | C24: 65294 | D24: =VLOOKUP($F$6,datos!$A$2:$AS$769,19) -> 30530 | E24: =VLOOKUP($F$6,datos!$A$2:$AS$769,40) -> 34764 | H24: 70 a 74 | I24: -0.02301960172 | J24: 0.02621203519 | K24: 0.04923163691 | L24: 70 a 74 | M24: -0.0003920796887 | N24: 0.0005624835534 | O24: 0.0009545632421
B25: 75 a 79 | C25: 54091 | D25: =VLOOKUP($F$6,datos!$A$2:$AS$769,20) -> 24275 | E25: =VLOOKUP($F$6,datos!$A$2:$AS$769,41) -> 29816 | H25: 75 a 79 | I25: -0.01830333547 | J25: 0.02248124615 | K25: 0.04078458162 | L25: 75 a 79 | M25: -0.0001945318455 | N25: 0.0003129097515 | O25: 0.0005074415971
B26: 80 a 84 | C26: 40287 | D26: =VLOOKUP($F$6,datos!$A$2:$AS$769,21) -> 16622 | E26: =VLOOKUP($F$6,datos!$A$2:$AS$769,42) -> 23665 | H26: 80 a 84 | I26: -0.01253297805 | J26: 0.01784339583 | K26: 0.03037637388 | L26: 80 a 84 | M26: -0.0001048059168 | N26: 0.0001545698773 | O26: 0.0002593757941
B27: 85 a 89 | C27: 35352 | D27: =VLOOKUP($F$6,datos!$A$2:$AS$769,22) -> 13362 | E27: =VLOOKUP($F$6,datos!$A$2:$AS$769,43) -> 21990 | H27: 85 a 89 | I27: -0.01007494 | J27: 0.01658044684 | K27: 0.02665538684 | L27: 85 a 89 | M27: -4.750196228e-05 | N27: 8.520193235e-05 | O27: 0.0001327038946
B28: 90 a 94 | C28: 16876 | D28: =VLOOKUP($F$6,datos!$A$2:$AS$769,23) -> 5339 | E28: =VLOOKUP($F$6,datos!$A$2:$AS$769,44) -> 11537 | H28: 90 a 94 | I28: -0.004025602804 | J28: 0.008698891093 | K28: 0.0127244939 | L28: 90 a 94 | M28: -9.801992217e-06 | N28: 2.789797785e-05 | O28: 3.769997007e-05
B29: 95 y más | C29: 5100 | D29: =VLOOKUP($F$6,datos!$A$2:$AS$769,24) -> 1250 | E29: =VLOOKUP($F$6,datos!$A$2:$AS$769,45) -> 3850 | H29: 95 y más | I29: -0.0009424992517 | J29: 0.002902897695 | K29: 0.003845396947 | L29: 95 y más | M29: -3.015997605e-06 | N29: 1.055599162e-05 | O29: 1.357198922e-05
B30: Total general | C30: =SUM(C10:C29) -> 1326261 | D30: =SUM(D10:D29) -> 655248 | E30: =SUM(E10:E29) -> 671013 | I30: -0.4940565997 | J30: 0.5059434003 | K30: 1 | M30: =-D55/$C$55 -> -0.5101971678 | N30: =E55/C$55 -> 0.4898028322 | O30: 1
B33: Población extranjera
B34: Edad | C34: Ambos Sexos | D34: Hombre | E34: Mujer
B35: 0 a 4 | C35: =D35+E35 -> 9277 | D35: =VLOOKUP($F$6,datosext!$A$2:$AS$769,5) -> 4791 | E35: =VLOOKUP($F$6,datosext!$A$2:$AS$769,26) -> 4486
B36: 5 a 9 | C36: 8976 | D36: =VLOOKUP($F$6,datosext!$A$2:$AS$769,6) -> 4591 | E36: =VLOOKUP($F$6,datosext!$A$2:$AS$769,27) -> 4385
B37: 10 a 14 | C37: 7882 | D37: =VLOOKUP($F$6,datosext!$A$2:$AS$769,7) -> 4095 | E37: =VLOOKUP($F$6,datosext!$A$2:$AS$769,28) -> 3787
B38: 15 a 19 | C38: 8321 | D38: =VLOOKUP($F$6,datosext!$A$2:$AS$769,8) -> 4575 | E38: =VLOOKUP($F$6,datosext!$A$2:$AS$769,29) -> 3746
B39: 20 a 24 | C39: 12203 | D39: =VLOOKUP($F$6,datosext!$A$2:$AS$769,9) -> 6367 | E39: =VLOOKUP($F$6,datosext!$A$2:$AS$769,30) -> 5836
B40: 25 a 29 | C40: 15044 | D40: =VLOOKUP($F$6,datosext!$A$2:$AS$769,10) -> 7446 | E40: =VLOOKUP($F$6,datosext!$A$2:$AS$769,31) -> 7598
B41: 30 a 34 | C41: 17938 | D41: =VLOOKUP($F$6,datosext!$A$2:$AS$769,11) -> 8572 | E41: =VLOOKUP($F$6,datosext!$A$2:$AS$769,32) -> 9366
B42: 35 a 39 | C42: 18919 | D42: =VLOOKUP($F$6,datosext!$A$2:$AS$769,12) -> 9304 | E42: =VLOOKUP($F$6,datosext!$A$2:$AS$769,33) -> 9615
B43: 40 a 44 | C43: 19386 | D43: =VLOOKUP($F$6,datosext!$A$2:$AS$769,13) -> 10286 | E43: =VLOOKUP($F$6,datosext!$A$2:$AS$769,34) -> 9100
B44: 45 a 49 | C44: 15763 | D44: =VLOOKUP($F$6,datosext!$A$2:$AS$769,14) -> 8458 | E44: =VLOOKUP($F$6,datosext!$A$2:$AS$769,35) -> 7305
B45: 50 a 54 | C45: 11784 | D45: =VLOOKUP($F$6,datosext!$A$2:$AS$769,15) -> 6264 | E45: =VLOOKUP($F$6,datosext!$A$2:$AS$769,36) -> 5520
B46: 55 a 59 | C46: 7181 | D46: =VLOOKUP($F$6,datosext!$A$2:$AS$769,16) -> 3725 | E46: =VLOOKUP($F$6,datosext!$A$2:$AS$769,37) -> 3456
B47: 60 a 64 | C47: 4572 | D47: =VLOOKUP($F$6,datosext!$A$2:$AS$769,17) -> 2232 | E47: =VLOOKUP($F$6,datosext!$A$2:$AS$769,38) -> 2340
B48: 65 a 69 | C48: 2576 | D48: =VLOOKUP($F$6,datosext!$A$2:$AS$769,18) -> 1127 | E48: =VLOOKUP($F$6,datosext!$A$2:$AS$769,39) -> 1449
B49: 70 a 74 | C49: 1266 | D49: =VLOOKUP($F$6,datosext!$A$2:$AS$769,19) -> 520 | E49: =VLOOKUP($F$6,datosext!$A$2:$AS$769,40) -> 746
B50: 75 a 79 | C50: 673 | D50: =VLOOKUP($F$6,datosext!$A$2:$AS$769,20) -> 258 | E50: =VLOOKUP($F$6,datosext!$A$2:$AS$769,41) -> 415
B51: 80 a 84 | C51: 344 | D51: =VLOOKUP($F$6,datosext!$A$2:$AS$769,21) -> 139 | E51: =VLOOKUP($F$6,datosext!$A$2:$AS$769,42) -> 205
B52: 85 a 89 | C52: 176 | D52: =VLOOKUP($F$6,datosext!$A$2:$AS$769,22) -> 63 | E52: =VLOOKUP($F$6,datosext!$A$2:$AS$769,43) -> 113
B53: 90 a 94 | C53: 50 | D53: =VLOOKUP($F$6,datosext!$A$2:$AS$769,23) -> 13 | E53: =VLOOKUP($F$6,datosext!$A$2:$AS$769,44) -> 37
B54: 95 y más | C54: 18 | D54: =VLOOKUP($F$6,datosext!$A$2:$AS$769,24) -> 4 | E54: =VLOOKUP($F$6,datosext!$A$2:$AS$769,45) -> 14
B55: Total general | C55: =SUM(C35:C54) -> 162349 | D55: =SUM(D35:D54) -> 82830 | E55: =SUM(E35:E54) -> 79519

Sheet datos (hidden)
B1: referencia geográfica | C1: código | D1: TOTAL VARONES | E1: 01- de 0 a 4 | F1: 02- de 5 a 9 | G1: 03- de 10 a 14 | H1: 04- de 15 a 19 | I1: 05- de 20 a 24 | J1: 06- de 25 a 29 | K1: 07- de 30 a 34 | L1: 08- de 35 a 39 | M1: 09- de 40 a 44 | N1: 10- de 45 a 49 | O1: 11- de 50 a 54 | P1: 12- de 55 a 59 | Q1: 13- de 60 a 64 | R1: 14- de 65 a 69 | S1: 15- de 70 a 74 | T1: 16- de 75 a 79 | U1: 17- de 80 a 84 | V1: 18- de 85 a 89 | W1: 19- de 90 a 94 | X1: 20- de 95 y más | Y1: TOTAL MUJERES | Z1: 01- de 0 a 4 | AA1: 02- de 5 a 9 | AB1: 03- de 10 a 14 | AC1: 04- de 15 a 19 | AD1: 05- de 20 a 24 | AE1: 06- de 25 a 29 | AF1: 07- de 30 a 34 | AG1: 08- de 35 a 39 | AH1: 09- de 40 a 44 | AI1: 10- de 45 a 49 | AJ1: 11- de 50 a 54 | AK1: 12- de 55 a 59 | AL1: 13- de 60 a 64 | AM1: 14- de 65 a 69 | AN1: 15- de 70 a 74 | AO1: 16- de 75 a 79 | AP1: 17- de 80 a 84 | AQ1: 18- de 85 a 89 | AR1: 19- de 90 a 94 | AS1: 20- de 95 y más
A2: 1 | B2: ARAGÓN | C2: 2 | D2: =SUM(D3:D5) -> 655248 | E2: =SUM(E3:E5) -> 26493 | F2: 31868 | G2: 34714 | H2: 33252 | I2: 33240 | J2: 33986 | K2: 37402 | L2: 43530 | M2: 54249 | N2: 55513 | O2: 52004 | P2: 49180 | Q2: 43443 | R2: 34996 | S2: 30530 | T2: 24275 | U2: 16622 | V2: 13362 | W2: 5339 | X2: 1250 | Y2: =SUM(Y3:Y5) -> 671013 | Z2: 25152 | AA2: 30297 | AB2: 32553 | AC2: 31084 | AD2: 30767 | AE2: 32594 | AF2: 35916 | AG2: 41796 | AH2: 51636 | AI2: 52665 | AJ2: 50606 | AK2: 48323 | AL2: 44395 | AM2: 37607 | AN2: 34764 | AO2: 29816 | AP2: 23665 | AQ2: 21990 | AR2: 11537 | AS2: 3850
A3: 2 | B3: PROVINCIA DE HUESCA | C3: 22 | D3: =SUM(E3:X3) -> 113607 | E3: 4474 | F3: 5191 | G3: 5664 | H3: 5399 | I3: 5748 | J3: 5962 | K3: 6450 | L3: 7590 | M3: 9516 | N3: 9344 | O3: 8893 | P3: 8793 | Q3: 7754 | R3: 6248 | S3: 5454 | T3: 4108 | U3: 2993 | V3: 2621 | W3: 1135 | X3: 270 | Y3: =(SUM(Z3:AS3))+0 -> 110657 | Z3: 4177 | AA3: 5061 | AB3: 5323 | AC3: 5045 | AD3: 5166 | AE3: 5193 | AF3: 5884 | AG3: 6781 | AH3: 8349 | AI3: 8397 | AJ3: 8252 | AK3: 8112 | AL3: 7450 | AM3: 6203 | AN3: 5503 | AO3: 4838 | AP3: 4018 | AQ3: 3932 | AR3: 2203 | AS3: 770
A4: 3 | B4: PROVINCIA DE TERUEL | C4: 44 | D4: =SUM(E4:X4) -> 68287 | E4: 2541 | F4: 3055 | G4: 3196 | H4: 3171 | I4: 3398 | J4: 3471 | K4: 3914 | L4: 4378 | M4: 5168 | N4: 5234 | O4: 5203 | P4: 5535 | Q4: 5198 | R4: 3940 | S4: 3262 | T4: 2580 | U4: 2018 | V4: 1919 | W4: 903 | X4: 203 | Y4: 66258 | Z4: 2479 | AA4: 2896 | AB4: 3138 | AC4: 2951 | AD4: 3135 | AE4: 3350 | AF4: 3607 | AG4: 3833 | AH4: 4452 | AI4: 4622 | AJ4: 5024 | AK4: 5075 | AL4: 4460 | AM4: 3594 | AN4: 3268 | AO4: 2922 | AP4: 2684 | AQ4: 2821 | AR4: 1476 | AS4: 471
A5: 4 | B5: PROVINCIA DE ZARAGOZA | C5: 50 | D5: =SUM(E5:X5) -> 473354 | E5: 19478 | F5: 23622 | G5: 25854 | H5: 24682 | I5: 24094 | J5: 24553 | K5: 27038 | L5: 31562 | M5: 39565 | N5: 40935 | O5: 37908 | P5: 34852 | Q5: 30491 | R5: 24808 | S5: 21814 | T5: 17587 | U5: 11611 | V5: 8822 | W5: 3301 | X5: 777 | Y5: 494098 | Z5: 18496 | AA5: 22340 | AB5: 24092 | AC5: 23088 | AD5: 22466 | AE5: 24051 | AF5: 26425 | AG5: 31182 | AH5: 38835 | AI5: 39646 | AJ5: 37330 | AK5: 35136 | AL5: 32485 | AM5: 27810 | AN5: 25993 | AO5: 22056 | AP5: 16963 | AQ5: 15237 | AR5: 7858 | AS5: 2609
A6: 5 | B6: LA JACETANIA | C6: 1 | D6: 9199 | E6: 306 | F6: 374 | G6: 459 | H6: 378 | I6: 494 | J6: 467 | K6: 556 | L6: 626 | M6: 786 | N6: 784 | O6: 750 | P6: 726 | Q6: 704 | R6: 523 | S6: 401 | T6: 314 | U6: 248 | V6: 195 | W6: 86 | X6: 22 | Y6: 9067 | Z6: 310 | AA6: 422 | AB6: 430 | AC6: 427 | AD6: 423 | AE6: 412 | AF6: 459 | AG6: 542 | AH6: 729 | AI6: 738 | AJ6: 721 | AK6: 740 | AL6: 654 | AM6: 424 | AN6: 399 | AO6: 353 | AP6: 300 | AQ6: 327 | AR6: 203 | AS6: 54
A7: 6 | B7: ALTO GÁLLEGO | C7: 2 | D7: 6989 | E7: 263 | F7: 276 | G7: 317 | H7: 318 | I7: 308 | J7: 339 | K7: 383 | L7: 495 | M7: 603 | N7: 604 | O7: 611 | P7: 580 | Q7: 545 | R7: 390 | S7: 295 | T7: 223 | U7: 170 | V7: 181 | W7: 80 | X7: 8 | Y7: 6783 | Z7: 231 | AA7: 302 | AB7: 316 | AC7: 286 | AD7: 323 | AE7: 289 | AF7: 377 | AG7: 477 | AH7: 539 | AI7: 525 | AJ7: 545 | AK7: 490 | AL7: 496 | AM7: 391 | AN7: 275 | AO7: 265 | AP7: 243 | AQ7: 236 | AR7: 142 | AS7: 35
A8: 7 | B8: SOBRARBE | C8: 3 | D8: 4073 | E8: 152 | F8: 192 | G8: 173 | H8: 158 | I8: 148 | J8: 176 | K8: 232 | L8: 244 | M8: 357 | N8: 331 | O8: 303 | P8: 370 | Q8: 331 | R8: 260 | S8: 193 | T8: 162 | U8: 107 | V8: 127 | W8: 46 | X8: 11 | Y8: 3584 | Z8: 129 | AA8: 143 | AB8: 163 | AC8: 123 | AD8: 150 | AE8: 175 | AF8: 225 | AG8: 255 | AH8: 295 | AI8: 288 | AJ8: 280 | AK8: 295 | AL8: 220 | AM8: 222 | AN8: 163 | AO8: 126 | AP8: 125 | AQ8: 125 | AR8: 64 | AS8: 18
A9: 8 | B9: LA RIBAGORZA | C9: 4 | D9: 6483 | E9: 213 | F9: 278 | G9: 269 | H9: 284 | I9: 274 | J9: 314 | K9: 380 | L9: 412 | M9: 518 | N9: 540 | O9: 538 | P9: 569 | Q9: 484 | R9: 417 | S9: 353 | T9: 215 | U9: 178 | V9: 160 | W9: 70 | X9: 17 | Y9: 5984 | Z9: 188 | AA9: 225 | AB9: 263 | AC9: 251 | AD9: 254 | AE9: 295 | AF9: 307 | AG9: 404 | AH9: 482 | AI9: 472 | AJ9: 488 | AK9: 459 | AL9: 402 | AM9: 331 | AN9: 302 | AO9: 246 | AP9: 208 | AQ9: 230 | AR9: 134 | AS9: 43
A10: 9 | B10: CINCO VILLAS | C10: 5 | D10: 15802 | E10: 532 | F10: 589 | G10: 732 | H10: 700 | I10: 807 | J10: 792 | K10: 897 | L10: 993 | M10: 1231 | N10: 1276 | O10: 1352 | P10: 1400 | Q10: 1226 | R10: 930 | S10: 742 | T10: 605 | U10: 435 | V10: 369 | W10: 159 | X10: 35 | Y10: 14991 | Z10: 545 | AA10: 569 | AB10: 639 | AC10: 701 | AD10: 728 | AE10: 760 | AF10: 810 | AG10: 836 | AH10: 1035 | AI10: 1057 | AJ10: 1130 | AK10: 1187 | AL10: 1095 | AM10: 848 | AN10: 757 | AO10: 701 | AP10: 595 | AQ10: 600 | AR10: 312 | AS10: 86
A11: 10 | B11: HOYA DE HUESCA/PLANA DE UESCA | C11: 6 | D11: 33682 | E11: 1393 | F11: 1719 | G11: 1858 | H11: 1738 | I11: 1727 | J11: 1744 | K11: 1790 | L11: 2194 | M11: 2731 | N11: 2792 | O11: 2565 | P11: 2528 | Q11: 2293 | R11: 1848 | S11: 1680 | T11: 1232 | U11: 785 | V11: 684 | W11: 305 | X11: 76 | Y11: 35177 | Z11: 1367 | AA11: 1684 | AB11: 1778 | AC11: 1726 | AD11: 1584 | AE11: 1642 | AF11: 1780 | AG11: 2138 | AH11: 2698 | AI11: 2742 | AJ11: 2591 | AK11: 2497 | AL11: 2405 | AM11: 2065 | AN11: 1826 | AO11: 1536 | AP11: 1113 | AQ11: 1103 | AR11: 652 | AS11: 250
A12: 11 | B12: SOMONTANO DE BARBASTRO | C12: 7 | D12: 11889 | E12: 492 | F12: 519 | G12: 555 | H12: 575 | I12: 586 | J12: 614 | K12: 683 | L12: 800 | M12: 958 | N12: 909 | O12: 896 | P12: 889 | Q12: 810 | R12: 679 | S12: 648 | T12: 459 | U12: 325 | V12: 310 | W12: 143 | X12: 39 | Y12: 12049 | Z12: 449 | AA12: 514 | AB12: 591 | AC12: 531 | AD12: 557 | AE12: 574 | AF12: 649 | AG12: 719 | AH12: 854 | AI12: 866 | AJ12: 871 | AK12: 931 | AL12: 853 | AM12: 682 | AN12: 598 | AO12: 522 | AP12: 480 | AQ12: 444 | AR12: 272 | AS12: 92
A13: 12 | B13: CINCA MEDIO | C13: 8 | D13: 12368 | E13: 545 | F13: 627 | G13: 683 | H13: 646 | I13: 630 | J13: 669 | K13: 703 | L13: 832 | M13: 1017 | N13: 1008 | O13: 1005 | P13: 978 | Q13: 750 | R13: 602 | S13: 556 | T13: 408 | U13: 322 | V13: 263 | W13: 98 | X13: 26 | Y13: 11704 | Z13: 477 | AA13: 591 | AB13: 578 | AC13: 560 | AD13: 609 | AE13: 576 | AF13: 614 | AG13: 692 | AH13: 856 | AI13: 909 | AJ13: 889 | AK13: 822 | AL13: 753 | AM13: 615 | AN13: 545 | AO13: 506 | AP13: 462 | AQ13: 381 | AR13: 203 | AS13: 66
A14: 13 | B14: LA LITERA/LA LLITERA | C14: 9 | D14: 9850 | E14: 347 | F14: 407 | G14: 525 | H14: 510 | I14: 580 | J14: 573 | K14: 510 | L14: 620 | M14: 865 | N14: 809 | O14: 773 | P14: 726 | Q14: 586 | R14: 504 | S14: 455 | T14: 383 | U14: 285 | V14: 260 | W14: 103 | X14: 29 | Y14: 8883 | Z14: 349 | AA14: 396 | AB14: 431 | AC14: 386 | AD14: 469 | AE14: 364 | AF14: 437 | AG14: 476 | AH14: 638 | AI14: 618 | AJ14: 620 | AK14: 664 | AL14: 515 | AM14: 526 | AN14: 485 | AO14: 472 | AP14: 379 | AQ14: 386 | AR14: 194 | AS14: 78
A15: 14 | B15: LOS MONEGROS | C15: 10 | D15: 9624 | E15: 318 | F15: 340 | G15: 335 | H15: 333 | I15: 425 | J15: 496 | K15: 507 | L15: 626 | M15: 739 | N15: 725 | O15: 751 | P15: 828 | Q15: 740 | R15: 622 | S15: 551 | T15: 449 | U15: 384 | V15: 294 | W15: 138 | X15: 23 | Y15: 8845 | Z15: 248 | AA15: 294 | AB15: 326 | AC15: 332 | AD15: 341 | AE15: 404 | AF15: 499 | AG15: 478 | AH15: 572 | AI15: 612 | AJ15: 616 | AK15: 705 | AL15: 623 | AM15: 540 | AN15: 546 | AO15: 516 | AP15: 428 | AQ15: 441 | AR15: 238 | AS15: 86
A16: 15 | B16: BAJO CINCA/BAIX CINCA | C16: 11 | D16: 13046 | E16: 553 | F16: 596 | G16: 625 | H16: 608 | I16: 763 | J16: 740 | K16: 882 | L16: 947 | M16: 1193 | N16: 1117 | O16: 1028 | P16: 937 | Q16: 744 | R16: 606 | S16: 518 | T16: 442 | U16: 346 | V16: 266 | W16: 112 | X16: 23 | Y16: 11958 | Z16: 513 | AA16: 622 | AB16: 567 | AC16: 576 | AD16: 590 | AE16: 611 | AF16: 723 | AG16: 774 | AH16: 889 | AI16: 885 | AJ16: 898 | AK16: 763 | AL16: 751 | AM16: 607 | AN16: 568 | AO16: 510 | AP16: 437 | AQ16: 423 | AR16: 182 | AS16: 69
A17: 16 | B17: TARAZONA Y EL MONCAYO | C17: 12 | D17: 7007 | E17: 234 | F17: 308 | G17: 369 | H17: 351 | I17: 376 | J17: 364 | K17: 378 | L17: 425 | M17: 528 | N17: 568 | O17: 556 | P17: 551 | Q17: 484 | R17: 382 | S17: 351 | T17: 307 | U17: 233 | V17: 167 | W17: 61 | X17: 14 | Y17: 6774 | Z17: 196 | AA17: 296 | AB17: 299 | AC17: 291 | AD17: 327 | AE17: 327 | AF17: 333 | AG17: 389 | AH17: 466 | AI17: 524 | AJ17: 514 | AK17: 484 | AL17: 438 | AM17: 363 | AN17: 387 | AO17: 362 | AP17: 294 | AQ17: 288 | AR17: 144 | AS17: 52
A18: 17 | B18: CAMPO DE BORJA | C18: 13 | D18: 7114 | E18: 231 | F18: 303 | G18: 351 | H18: 346 | I18: 331 | J18: 364 | K18: 375 | L18: 472 | M18: 513 | N18: 596 | O18: 584 | P18: 596 | Q18: 510 | R18: 396 | S18: 375 | T18: 316 | U18: 207 | V18: 185 | W18: 54 | X18: 9 | Y18: 6607 | Z18: 240 | AA18: 231 | AB18: 317 | AC18: 297 | AD18: 329 | AE18: 275 | AF18: 337 | AG18: 381 | AH18: 490 | AI18: 473 | AJ18: 492 | AK18: 498 | AL18: 464 | AM18: 339 | AN18: 397 | AO18: 329 | AP18: 277 | AQ18: 261 | AR18: 132 | AS18: 48
A19: 18 | B19: ARANDA | C19: 14 | D19: 3257 | E19: 56 | F19: 73 | G19: 133 | H19: 151 | I19: 157 | J19: 143 | K19: 150 | L19: 178 | M19: 217 | N19: 271 | O19: 316 | P19: 310 | Q19: 253 | R19: 232 | S19: 169 | T19: 177 | U19: 135 | V19: 97 | W19: 29 | X19: 10 | Y19: 3040 | Z19: 51 | AA19: 89 | AB19: 93 | AC19: 131 | AD19: 165 | AE19: 148 | AF19: 138 | AG19: 126 | AH19: 181 | AI19: 244 | AJ19: 266 | AK19: 273 | AL19: 228 | AM19: 190 | AN19: 171 | AO19: 169 | AP19: 160 | AQ19: 127 | AR19: 68 | AS19: 22
A20: 19 | B20: RIBERA ALTA DEL EBRO | C20: 15 | D20: 13928 | E20: 539 | F20: 679 | G20: 821 | H20: 671 | I20: 626 | J20: 732 | K20: 843 | L20: 980 | M20: 1192 | N20: 1242 | O20: 1157 | P20: 1029 | Q20: 958 | R20: 758 | S20: 571 | T20: 433 | U20: 322 | V20: 259 | W20: 92 | X20: 24 | Y20: 13503 | Z20: 473 | AA20: 652 | AB20: 739 | AC20: 626 | AD20: 536 | AE20: 681 | AF20: 775 | AG20: 940 | AH20: 1213 | AI20: 1064 | AJ20: 956 | AK20: 955 | AL20: 926 | AM20: 663 | AN20: 613 | AO20: 490 | AP20: 455 | AQ20: 442 | AR20: 220 | AS20: 84
A21: 20 | B21: VALDEJALÓN | C21: 16 | D21: 15511 | E21: 686 | F21: 824 | G21: 869 | H21: 755 | I21: 799 | J21: 747 | K21: 1004 | L21: 1111 | M21: 1484 | N21: 1423 | O21: 1338 | P21: 1104 | Q21: 874 | R21: 686 | S21: 578 | T21: 452 | U21: 380 | V21: 273 | W21: 104 | X21: 20 | Y21: 14186 | Z21: 698 | AA21: 766 | AB21: 769 | AC21: 679 | AD21: 677 | AE21: 770 | AF21: 901 | AG21: 1038 | AH21: 1198 | AI21: 1136 | AJ21: 1042 | AK21: 918 | AL21: 769 | AM21: 638 | AN21: 553 | AO21: 503 | AP21: 431 | AQ21: 412 | AR21: 215 | AS21: 73
A22: 21 | B22: CENTRAL | C22: 17 | D22: 365339 | E22: 15851 | F22: 19127 | G22: 20659 | H22: 19688 | I22: 18764 | J22: 18985 | K22: 20758 | L22: 24604 | M22: 30998 | N22: 31897 | O22: 28679 | P22: 26187 | Q22: 23119 | R22: 18794 | S22: 16758 | T22: 13276 | U22: 8296 | V22: 6130 | W22: 2236 | X22: 533 | Y22: 393200 | Z22: 14937 | AA22: 18166 | AB22: 19510 | AC22: 18496 | AD22: 17842 | AE22: 19121 | AF22: 20988 | AG22: 25132 | AH22: 31530 | AI22: 32122 | AJ22: 29722 | AK22: 27785 | AL22: 25747 | AM22: 22407 | AN22: 20737 | AO22: 17238 | AP22: 12855 | AQ22: 11190 | AR22: 5752 | AS22: 1923
A23: 22 | B23: RIBERA BAJA DEL EBRO | C23: 18 | D23: 4327 | E23: 142 | F23: 185 | G23: 184 | H23: 209 | I23: 198 | J23: 221 | K23: 238 | L23: 289 | M23: 302 | N23: 294 | O23: 330 | P23: 358 | Q23: 342 | R23: 286 | S23: 226 | T23: 197 | U23: 145 | V23: 123 | W23: 46 | X23: 12 | Y23: 4152 | Z23: 144 | AA23: 165 | AB23: 173 | AC23: 178 | AD23: 198 | AE23: 193 | AF23: 204 | AG23: 244 | AH23: 249 | AI23: 270 | AJ23: 314 | AK23: 329 | AL23: 310 | AM23: 267 | AN23: 204 | AO23: 201 | AP23: 198 | AQ23: 191 | AR23: 88 | AS23: 32
A24: 23 | B24: BAJO ARAGÓN-CASPE/BAIX ARAGÓ-CASP | C24: 19 | D24: 8130 | E24: 333 | F24: 414 | G24: 372 | H24: 409 | I24: 448 | J24: 488 | K24: 479 | L24: 605 | M24: 722 | N24: 724 | O24: 625 | P24: 528 | Q24: 448 | R24: 424 | S24: 352 | T24: 296 | U24: 218 | V24: 168 | W24: 60 | X24: 17 | Y24: 7094 | Z24: 327 | AA24: 358 | AB24: 329 | AC24: 357 | AD24: 353 | AE24: 338 | AF24: 396 | AG24: 438 | AH24: 523 | AI24: 516 | AJ24: 479 | AK24: 446 | AL24: 441 | AM24: 391 | AN24: 413 | AO24: 307 | AP24: 255 | AQ24: 239 | AR24: 149 | AS24: 39
A25: 24 | B25: COMUNIDAD DE CALATAYUD | C25: 20 | D25: 18685 | E25: 496 | F25: 681 | G25: 880 | H25: 871 | I25: 913 | J25: 1020 | K25: 1131 | L25: 1065 | M25: 1341 | N25: 1495 | O25: 1692 | P25: 1470 | Q25: 1256 | R25: 1028 | S25: 925 | T25: 844 | U25: 682 | V25: 572 | W25: 263 | X25: 60 | Y25: 17765 | Z25: 515 | AA25: 600 | AB25: 750 | AC25: 792 | AD25: 778 | AE25: 838 | AF25: 922 | AG25: 992 | AH25: 1175 | AI25: 1321 | AJ25: 1431 | AK25: 1311 | AL25: 1182 | AM25: 931 | AN25: 1021 | AO25: 984 | AP25: 812 | AQ25: 830 | AR25: 435 | AS25: 145
A26: 25 | B26: CAMPO DE CARIÑENA | C26: 21 | D26: 5309 | E26: 156 | F26: 186 | G26: 191 | H26: 211 | I26: 272 | J26: 278 | K26: 330 | L26: 374 | M26: 422 | N26: 456 | O26: 495 | P26: 461 | Q26: 367 | R26: 308 | S26: 241 | T26: 204 | U26: 143 | V26: 138 | W26: 64 | X26: 12 | Y26: 4734 | Z26: 167 | AA26: 208 | AB26: 226 | AC26: 220 | AD26: 195 | AE26: 254 | AF26: 227 | AG26: 276 | AH26: 320 | AI26: 364 | AJ26: 356 | AK26: 367 | AL26: 321 | AM26: 290 | AN26: 206 | AO26: 224 | AP26: 198 | AQ26: 174 | AR26: 111 | AS26: 30
A27: 26 | B27: CAMPO DE BELCHITE | C27: 22 | D27: 2454 | E27: 42 | F27: 43 | G27: 73 | H27: 89 | I27: 104 | J27: 100 | K27: 113 | L27: 113 | M27: 172 | N27: 194 | O27: 206 | P27: 251 | Q27: 191 | R27: 176 | S27: 165 | T27: 145 | U27: 121 | V27: 105 | W27: 34 | X27: 17 | Y27: 2142 | Z27: 46 | AA27: 52 | AB27: 58 | AC27: 85 | AD27: 96 | AE27: 84 | AF27: 79 | AG27: 91 | AH27: 112 | AI27: 136 | AJ27: 173 | AK27: 156 | AL27: 152 | AM27: 140 | AN27: 154 | AO27: 158 | AP27: 133 | AQ27: 139 | AR27: 70 | AS27: 28
A28: 27 | B28: BAJO MARTÍN | C28: 23 | D28: 3240 | E28: 102 | F28: 102 | G28: 132 | H28: 146 | I28: 165 | J28: 181 | K28: 175 | L28: 171 | M28: 224 | N28: 241 | O28: 258 | P28: 262 | Q28: 285 | R28: 176 | S28: 176 | T28: 139 | U28: 130 | V28: 115 | W28: 51 | X28: 9 | Y28: 3063 | Z28: 96 | AA28: 126 | AB28: 126 | AC28: 127 | AD28: 130 | AE28: 161 | AF28: 135 | AG28: 136 | AH28: 176 | AI28: 191 | AJ28: 221 | AK28: 239 | AL28: 207 | AM28: 175 | AN28: 190 | AO28: 180 | AP28: 162 | AQ28: 177 | AR28: 87 | AS28: 21
A29: 28 | B29: CAMPO DE DAROCA | C29: 24 | D29: 2895 | E29: 72 | F29: 73 | G29: 85 | H29: 82 | I29: 112 | J29: 149 | K29: 166 | L29: 147 | M29: 192 | N29: 224 | O29: 251 | P29: 269 | Q29: 230 | R29: 205 | S29: 165 | T29: 156 | U29: 137 | V29: 117 | W29: 53 | X29: 10 | Y29: 2533 | Z29: 73 | AA29: 56 | AB29: 70 | AC29: 82 | AD29: 108 | AE29: 113 | AF29: 129 | AG29: 125 | AH29: 140 | AI29: 161 | AJ29: 188 | AK29: 173 | AL29: 190 | AM29: 143 | AN29: 176 | AO29: 176 | AP29: 143 | AQ29: 180 | AR29: 81 | AS29: 26
A30: 29 | B30: JILOCA | C30: 25 | D30: 6432 | E30: 222 | F30: 254 | G30: 291 | H30: 252 | I30: 266 | J30: 300 | K30: 359 | L30: 379 | M30: 468 | N30: 491 | O30: 501 | P30: 540 | Q30: 490 | R30: 353 | S30: 362 | T30: 287 | U30: 246 | V30: 237 | W30: 115 | X30: 19 | Y30: 5932 | Z30: 206 | AA30: 253 | AB30: 248 | AC30: 265 | AD30: 295 | AE30: 290 | AF30: 336 | AG30: 330 | AH30: 342 | AI30: 402 | AJ30: 431 | AK30: 405 | AL30: 366 | AM30: 325 | AN30: 303 | AO30: 307 | AP30: 293 | AQ30: 303 | AR30: 178 | AS30: 54
A31: 30 | B31: CUENCAS MINERAS | C31: 26 | D31: 4149 | E31: 117 | F31: 145 | G31: 155 | H31: 167 | I31: 193 | J31: 194 | K31: 264 | L31: 285 | M31: 296 | N31: 293 | O31: 331 | P31: 346 | Q31: 370 | R31: 319 | S31: 205 | T31: 172 | U31: 115 | V31: 134 | W31: 35 | X31: 13 | Y31: 3691 | Z31: 133 | AA31: 139 | AB31: 149 | AC31: 153 | AD31: 151 | AE31: 203 | AF31: 236 | AG31: 187 | AH31: 232 | AI31: 218 | AJ31: 252 | AK31: 331 | AL31: 256 | AM31: 224 | AN31: 209 | AO31: 156 | AP31: 160 | AQ31: 193 | AR31: 86 | AS31: 23
A32: 31 | B32: ANDORRA-SIERRA DE ARCOS | C32: 27 | D32: 4943 | E32: 162 | F32: 187 | G32: 211 | H32: 218 | I32: 242 | J32: 248 | K32: 284 | L32: 322 | M32: 369 | N32: 335 | O32: 383 | P32: 443 | Q32: 470 | R32: 328 | S32: 217 | T32: 182 | U32: 126 | V32: 129 | W32: 74 | X32: 13 | Y32: 4793 | Z32: 167 | AA32: 197 | AB32: 207 | AC32: 204 | AD32: 235 | AE32: 233 | AF32: 237 | AG32: 263 | AH32: 322 | AI32: 321 | AJ32: 399 | AK32: 444 | AL32: 356 | AM32: 273 | AN32: 216 | AO32: 183 | AP32: 186 | AQ32: 224 | AR32: 92 | AS32: 34
A33: 32 | B33: BAJO ARAGÓN | C33: 28 | D33: 14458 | E33: 598 | F33: 755 | G33: 800 | H33: 733 | I33: 786 | J33: 675 | K33: 803 | L33: 922 | M33: 1127 | N33: 1224 | O33: 1095 | P33: 1104 | Q33: 978 | R33: 750 | S33: 679 | T33: 497 | U33: 387 | V33: 350 | W33: 155 | X33: 40 | Y33: 14252 | Z33: 618 | AA33: 707 | AB33: 779 | AC33: 726 | AD33: 657 | AE33: 686 | AF33: 787 | AG33: 838 | AH33: 1047 | AI33: 1018 | AJ33: 1094 | AK33: 1016 | AL33: 900 | AM33: 737 | AN33: 705 | AO33: 565 | AP33: 509 | AQ33: 500 | AR33: 269 | AS33: 94
A34: 33 | B34: COMUNIDAD DE TERUEL | C34: 29 | D34: 22602 | E34: 947 | F34: 1126 | G34: 1123 | H34: 1204 | I34: 1182 | J34: 1282 | K34: 1270 | L34: 1483 | M34: 1776 | N34: 1709 | O34: 1712 | P34: 1750 | Q34: 1633 | R34: 1235 | S34: 942 | T34: 775 | U34: 555 | V34: 555 | W34: 275 | X34: 68 | Y34: 23638 | Z34: 895 | AA34: 1025 | AB34: 1162 | AC34: 1061 | AD34: 1214 | AE34: 1169 | AF34: 1285 | AG34: 1456 | AH34: 1688 | AI34: 1769 | AJ34: 1810 | AK34: 1787 | AL34: 1592 | AM34: 1225 | AN34: 1083 | AO34: 990 | AP34: 865 | AQ34: 906 | AR34: 495 | AS34: 161
A35: 34 | B35: MAESTRAZGO | C35: 30 | D35: 1723 | E35: 50 | F35: 74 | G35: 68 | H35: 60 | I35: 73 | J35: 79 | K35: 104 | L35: 110 | M35: 118 | N35: 127 | O35: 134 | P35: 147 | Q35: 138 | R35: 115 | S35: 99 | T35: 69 | U35: 60 | V35: 62 | W35: 30 | X35: 6 | Y35: 1490 | Z35: 44 | AA35: 51 | AB35: 64 | AC35: 47 | AD35: 53 | AE35: 85 | AF35: 85 | AG35: 75 | AH35: 93 | AI35: 86 | AJ35: 104 | AK35: 132 | AL35: 108 | AM35: 99 | AN35: 81 | AO35: 70 | AP35: 75 | AQ35: 83 | AR35: 40 | AS35: 15
A36: 35 | B36: SIERRA DE ALBARRACÍN | C36: 31 | D36: 2394 | E36: 41 | F36: 64 | G36: 72 | H36: 70 | I36: 95 | J36: 112 | K36: 155 | L36: 149 | M36: 166 | N36: 195 | O36: 186 | P36: 249 | Q36: 206 | R36: 149 | S36: 138 | T36: 99 | U36: 103 | V36: 86 | W36: 53 | X36: 6 | Y36: 1913 | Z36: 39 | AA36: 54 | AB36: 62 | AC36: 67 | AD36: 83 | AE36: 115 | AF36: 103 | AG36: 93 | AH36: 92 | AI36: 140 | AJ36: 141 | AK36: 158 | AL36: 149 | AM36: 106 | AN36: 100 | AO36: 106 | AP36: 118 | AQ36: 106 | AR36: 65 | AS36: 16
A37: 36 | B37: GÚDAR-JAVALAMBRE | C37: 32 | D37: 4074 | E37: 144 | F37: 170 | G37: 179 | H37: 151 | I37: 198 | J37: 208 | K37: 252 | L37: 299 | M37: 311 | N37: 306 | O37: 318 | P37: 356 | Q37: 303 | R37: 219 | S37: 192 | T37: 149 | U37: 133 | V37: 124 | W37: 52 | X37: 10 | Y37: 3501 | Z37: 151 | AA37: 160 | AB37: 166 | AC37: 148 | AD37: 164 | AE37: 217 | AF37: 205 | AG37: 235 | AH37: 212 | AI37: 243 | AJ37: 285 | AK37: 242 | AL37: 230 | AM37: 168 | AN37: 146 | AO37: 168 | AP37: 142 | AQ37: 125 | AR37: 76 | AS37: 18
A38: 37 | B38: MATARRAÑA/MATARRANYA | C38: 33 | D38: 4272 | E38: 158 | F38: 178 | G38: 165 | H38: 170 | I38: 198 | J38: 192 | K38: 248 | L38: 258 | M38: 313 | N38: 313 | O38: 285 | P38: 338 | Q38: 325 | R38: 296 | S38: 252 | T38: 211 | U38: 163 | V38: 127 | W38: 63 | X38: 19 | Y38: 3985 | Z38: 130 | AA38: 184 | AB38: 175 | AC38: 153 | AD38: 153 | AE38: 191 | AF38: 198 | AG38: 220 | AH38: 248 | AI38: 234 | AJ38: 287 | AK38: 321 | AL38: 296 | AM38: 262 | AN38: 235 | AO38: 197 | AP38: 174 | AQ38: 204 | AR38: 88 | AS38: 35
A39: 38 | B39: 22001 Abiego | C39: 22001 | D39: 138 | E39: 2 | F39: 3 | G39: 3 | H39: 4 | I39: 4 | J39: 5 | K39: 8 | L39: 8 | M39: 12 | N39: 14 | O39: 19 | P39: 12 | Q39: 9 | R39: 8 | S39: 9 | T39: 8 | U39: 5 | V39: 3 | W39: 2 | X39: 0 | Y39: 133 | Z39: 8 | AA39: 6 | AB39: 3 | AC39: 3 | AD39: 4 | AE39: 7 | AF39: 8 | AG39: 15 | AH39: 4 | AI39: 9 | AJ39: 4 | AK39: 15 | AL39: 5 | AM39: 9 | AN39: 4 | AO39: 11 | AP39: 2 | AQ39: 7 | AR39: 8 | AS39: 1
A40: 39 | B40: 22002 Abizanda | C40: 22002 | D40: 73 | E40: 1 | F40: 3 | G40: 2 | H40: 0 | I40: 1 | J40: 1 | K40: 4 | L40: 7 | M40: 6 | N40: 5 | O40: 8 | P40: 11 | Q40: 4 | R40: 2 | S40: 3 | T40: 7 | U40: 5 | V40: 3 | W40: 0 | X40: 0 | Y40: 70 | Z40: 1 | AA40: 4 | AB40: 3 | AC40: 1 | AD40: 4 | AE40: 3 | AF40: 6 | AG40: 6 | AH40: 4 | AI40: 3 | AJ40: 8 | AK40: 2 | AL40: 7 | AM40: 4 | AN40: 6 | AO40: 3 | AP40: 3 | AQ40: 2 | AR40: 0 | AS40: 0
A41: 40 | B41: 22003 Adahuesca | C41: 22003 | D41: 106 | E41: 8 | F41: 7 | G41: 2 | H41: 4 | I41: 4 | J41: 6 | K41: 6 | L41: 7 | M41: 12 | N41: 7 | O41: 5 | P41: 4 | Q41: 6 | R41: 4 | S41: 9 | T41: 5 | U41: 2 | V41: 5 | W41: 3 | X41: 0 | Y41: 84 | Z41: 3 | AA41: 5 | AB41: 1 | AC41: 2 | AD41: 3 | AE41: 7 | AF41: 2 | AG41: 12 | AH41: 7 | AI41: 8 | AJ41: 4 | AK41: 4 | AL41: 6 | AM41: 5 | AN41: 6 | AO41: 2 | AP41: 4 | AQ41: 0 | AR41: 2 | AS41: 1
A42: 41 | B42: 22004 Agüero | C42: 22004 | D42: 79 | E42: 2 | F42: 1 | G42: 0 | H42: 1 | I42: 3 | J42: 5 | K42: 3 | L42: 3 | M42: 4 | N42: 5 | O42: 9 | P42: 5 | Q42: 10 | R42: 9 | S42: 3 | T42: 7 | U42: 3 | V42: 1 | W42: 4 | X42: 1 | Y42: 60 | Z42: 1 | AA42: 1 | AB42: 0 | AC42: 0 | AD42: 2 | AE42: 4 | AF42: 3 | AG42: 2 | AH42: 3 | AI42: 0 | AJ42: 4 | AK42: 7 | AL42: 6 | AM42: 4 | AN42: 6 | AO42: 3 | AP42: 3 | AQ42: 3 | AR42: 5 | AS42: 3
A43: 42 | B43: 22006 Aísa | C43: 22006 | D43: 183 | E43: 0 | F43: 2 | G43: 6 | H43: 1 | I43: 7 | J43: 9 | K43: 10 | L43: 8 | M43: 28 | N43: 19 | O43: 12 | P43: 12 | Q43: 17 | R43: 19 | S43: 14 | T43: 9 | U43: 5 | V43: 3 | W43: 1 | X43: 1 | Y43: 153 | Z43: 4 | AA43: 5 | AB43: 7 | AC43: 12 | AD43: 7 | AE43: 6 | AF43: 6 | AG43: 7 | AH43: 12 | AI43: 13 | AJ43: 10 | AK43: 11 | AL43: 20 | AM43: 12 | AN43: 6 | AO43: 7 | AP43: 3 | AQ43: 3 | AR43: 1 | AS43: 1
A44: 43 | B44: 22007 Albalate de Cinca | C44: 22007 | D44: 617 | E44: 26 | F44: 27 | G44: 25 | H44: 25 | I44: 27 | J44: 42 | K44: 35 | L44: 44 | M44: 41 | N44: 56 | O44: 45 | P44: 48 | Q44: 54 | R44: 28 | S44: 32 | T44: 21 | U44: 21 | V44: 13 | W44: 5 | X44: 2 | Y44: 508 | Z44: 13 | AA44: 23 | AB44: 24 | AC44: 12 | AD44: 22 | AE44: 32 | AF44: 34 | AG44: 23 | AH44: 32 | AI44: 48 | AJ44: 37 | AK44: 31 | AL44: 42 | AM44: 30 | AN44: 24 | AO44: 27 | AP44: 21 | AQ44: 17 | AR44: 13 | AS44: 3
A45: 44 | B45: 22008 Albalatillo | C45: 22008 | D45: 99 | E45: 0 | F45: 3 | G45: 3 | H45: 3 | I45: 3 | J45: 7 | K45: 4 | L45: 6 | M45: 8 | N45: 10 | O45: 7 | P45: 6 | Q45: 6 | R45: 6 | S45: 9 | T45: 8 | U45: 4 | V45: 2 | W45: 3 | X45: 1 | Y45: 89 | Z45: 4 | AA45: 4 | AB45: 3 | AC45: 2 | AD45: 5 | AE45: 7 | AF45: 2 | AG45: 3 | AH45: 6 | AI45: 6 | AJ45: 7 | AK45: 0 | AL45: 8 | AM45: 8 | AN45: 6 | AO45: 5 | AP45: 3 | AQ45: 3 | AR45: 4 | AS45: 3
A46: 45 | B46: 22009 Albelda | C46: 22009 | D46: 358 | E46: 11 | F46: 7 | G46: 17 | H46: 15 | I46: 17 | J46: 8 | K46: 14 | L46: 16 | M46: 18 | N46: 27 | O46: 32 | P46: 34 | Q46: 24 | R46: 28 | S46: 23 | T46: 27 | U46: 14 | V46: 20 | W46: 6 | X46: 0 | Y46: 328 | Z46: 10 | AA46: 13 | AB46: 16 | AC46: 14 | AD46: 10 | AE46: 10 | AF46: 11 | AG46: 16 | AH46: 17 | AI46: 25 | AJ46: 18 | AK46: 25 | AL46: 23 | AM46: 23 | AN46: 23 | AO46: 25 | AP46: 17 | AQ46: 20 | AR46: 8 | AS46: 4
A47: 46 | B47: 22011 Albero Alto | C47: 22011 | D47: 66 | E47: 0 | F47: 4 | G47: 2 | H47: 3 | I47: 4 | J47: 4 | K47: 2 | L47: 5 | M47: 4 | N47: 4 | O47: 6 | P47: 6 | Q47: 3 | R47: 7 | S47: 4 | T47: 0 | U47: 3 | V47: 4 | W47: 1 | X47: 0 | Y47: 52 | Z47: 5 | AA47: 1 | AB47: 0 | AC47: 4 | AD47: 2 | AE47: 1 | AF47: 3 | AG47: 5 | AH47: 2 | AI47: 2 | AJ47: 6 | AK47: 4 | AL47: 3 | AM47: 3 | AN47: 3 | AO47: 3 | AP47: 2 | AQ47: 3 | AR47: 0 | AS47: 0
A48: 47 | B48: 22012 Albero Bajo | C48: 22012 | D48: 75 | E48: 2 | F48: 3 | G48: 4 | H48: 4 | I48: 1 | J48: 1 | K48: 3 | L48: 4 | M48: 5 | N48: 6 | O48: 7 | P48: 7 | Q48: 9 | R48: 6 | S48: 4 | T48: 3 | U48: 5 | V48: 0 | W48: 1 | X48: 0 | Y48: 62 | Z48: 3 | AA48: 2 | AB48: 3 | AC48: 4 | AD48: 4 | AE48: 0 | AF48: 4 | AG48: 5 | AH48: 4 | AI48: 9 | AJ48: 2 | AK48: 4 | AL48: 4 | AM48: 4 | AN48: 1 | AO48: 3 | AP48: 3 | AQ48: 2 | AR48: 1 | AS48: 0
A49: 48 | B49: 22013 Alberuela de Tubo | C49: 22013 | D49: 154 | E49: 6 | F49: 4 | G49: 3 | H49: 1 | I49: 6 | J49: 8 | K49: 13 | L49: 11 | M49: 11 | N49: 9 | O49: 9 | P49: 10 | Q49: 17 | R49: 14 | S49: 15 | T49: 7 | U49: 3 | V49: 4 | W49: 3 | X49: 0 | Y49: 152 | Z49: 4 | AA49: 5 | AB49: 0 | AC49: 2 | AD49: 6 | AE49: 10 | AF49: 13 | AG49: 8 | AH49: 7 | AI49: 5 | AJ49: 11 | AK49: 14 | AL49: 13 | AM49: 12 | AN49: 13 | AO49: 8 | AP49: 1 | AQ49: 10 | AR49: 6 | AS49: 4
A50: 49 | B50: 22014 Alcalá de Gurrea | C50: 22014 | D50: 120 | E50: 1 | F50: 1 | G50: 1 | H50: 2 | I50: 3 | J50: 1 | K50: 5 | L50: 8 | M50: 9 | N50: 11 | O50: 9 | P50: 9 | Q50: 14 | R50: 7 | S50: 8 | T50: 11 | U50: 6 | V50: 9 | W50: 2 | X50: 3 | Y50: 110 | Z50: 2 | AA50: 2 | AB50: 0 | AC50: 3 | AD50: 3 | AE50: 3 | AF50: 3 | AG50: 3 | AH50: 5 | AI50: 8 | AJ50: 9 | AK50: 11 | AL50: 5 | AM50: 11 | AN50: 9 | AO50: 9 | AP50: 9 | AQ50: 9 | AR50: 3 | AS50: 3
A51: 50 | B51: 22015 Alcalá del Obispo | C51: 22015 | D51: 191 | E51: 7 | F51: 5 | G51: 2 | H51: 4 | I51: 3 | J51: 8 | K51: 8 | L51: 11 | M51: 16 | N51: 17 | O51: 18 | P51: 16 | Q51: 11 | R51: 16 | S51: 16 | T51: 14 | U51: 10 | V51: 5 | W51: 3 | X51: 1 | Y51: 146 | Z51: 2 | AA51: 3 | AB51: 2 | AC51: 6 | AD51: 8 | AE51: 4 | AF51: 2 | AG51: 8 | AH51: 7 | AI51: 14 | AJ51: 8 | AK51: 8 | AL51: 14 | AM51: 11 | AN51: 17 | AO51: 13 | AP51: 9 | AQ51: 4 | AR51: 6 | AS51: 0
A52: 51 | B52: 22016 Alcampell | C52: 22016 | D52: 297 | E52: 4 | F52: 5 | G52: 15 | H52: 6 | I52: 7 | J52: 16 | K52: 11 | L52: 7 | M52: 19 | N52: 31 | O52: 19 | P52: 16 | Q52: 26 | R52: 28 | S52: 20 | T52: 23 | U52: 24 | V52: 10 | W52: 8 | X52: 2 | Y52: 330 | Z52: 8 | AA52: 11 | AB52: 5 | AC52: 15 | AD52: 15 | AE52: 5 | AF52: 8 | AG52: 13 | AH52: 16 | AI52: 25 | AJ52: 18 | AK52: 17 | AL52: 27 | AM52: 24 | AN52: 31 | AO52: 23 | AP52: 23 | AQ52: 24 | AR52: 15 | AS52: 7
A53: 52 | B53: 22017 Alcolea de Cinca | C53: 22017 | D53: 654 | E53: 23 | F53: 22 | G53: 34 | H53: 23 | I53: 28 | J53: 41 | K53: 41 | L53: 59 | M53: 51 | N53: 56 | O53: 46 | P53: 50 | Q53: 38 | R53: 33 | S53: 32 | T53: 24 | U53: 22 | V53: 17 | W53: 14 | X53: 0 | Y53: 546 | Z53: 23 | AA53: 17 | AB53: 25 | AC53: 20 | AD53: 26 | AE53: 42 | AF53: 18 | AG53: 32 | AH53: 48 | AI53: 44 | AJ53: 36 | AK53: 38 | AL53: 31 | AM53: 34 | AN53: 22 | AO53: 30 | AP53: 27 | AQ53: 19 | AR53: 12 | AS53: 2
A54: 53 | B54: 22018 Alcubierre | C54: 22018 | D54: 202 | E54: 6 | F54: 4 | G54: 5 | H54: 6 | I54: 4 | J54: 10 | K54: 5 | L54: 14 | M54: 19 | N54: 15 | O54: 21 | P54: 16 | Q54: 19 | R54: 10 | S54: 14 | T54: 8 | U54: 9 | V54: 12 | W54: 5 | X54: 0 | Y54: 170 | Z54: 1 | AA54: 4 | AB54: 2 | AC54: 11 | AD54: 4 | AE54: 8 | AF54: 12 | AG54: 8 | AH54: 7 | AI54: 10 | AJ54: 14 | AK54: 9 | AL54: 8 | AM54: 13 | AN54: 9 | AO54: 14 | AP54: 12 | AQ54: 10 | AR54: 8 | AS54: 6
A55: 54 | B55: 22019 Alerre | C55: 22019 | D55: 112 | E55: 5 | F55: 3 | G55: 1 | H55: 7 | I55: 5 | J55: 2 | K55: 3 | L55: 6 | M55: 8 | N55: 10 | O55: 9 | P55: 11 | Q55: 6 | R55: 14 | S55: 10 | T55: 8 | U55: 1 | V55: 3 | W55: 0 | X55: 0 | Y55: 96 | Z55: 5 | AA55: 2 | AB55: 0 | AC55: 2 | AD55: 4 | AE55: 5 | AF55: 10 | AG55: 4 | AH55: 5 | AI55: 2 | AJ55: 9 | AK55: 5 | AL55: 14 | AM55: 8 | AN55: 7 | AO55: 6 | AP55: 2 | AQ55: 5 | AR55: 1 | AS55: 0
A56: 55 | B56: 22020 Alfántega | C56: 22020 | D56: 71 | E56: 1 | F56: 1 | G56: 1 | H56: 3 | I56: 3 | J56: 5 | K56: 7 | L56: 4 | M56: 10 | N56: 3 | O56: 7 | P56: 4 | Q56: 2 | R56: 4 | S56: 5 | T56: 4 | U56: 6 | V56: 0 | W56: 1 | X56: 0 | Y56: 62 | Z56: 1 | AA56: 4 | AB56: 1 | AC56: 0 | AD56: 2 | AE56: 2 | AF56: 3 | AG56: 3 | AH56: 5 | AI56: 4 | AJ56: 3 | AK56: 3 | AL56: 5 | AM56: 4 | AN56: 7 | AO56: 7 | AP56: 4 | AQ56: 3 | AR56: 1 | AS56: 0
A57: 56 | B57: 22021 Almudévar | C57: 22021 | D57: 1213 | E57: 38 | F57: 66 | G57: 62 | H57: 56 | I57: 49 | J57: 54 | K57: 59 | L57: 64 | M57: 124 | N57: 102 | O57: 92 | P57: 96 | Q57: 75 | R57: 60 | S57: 59 | T57: 63 | U57: 43 | V57: 35 | W57: 13 | X57: 3 | Y57: 1199 | Z57: 54 | AA57: 56 | AB57: 55 | AC57: 57 | AD57: 47 | AE57: 54 | AF57: 55 | AG57: 79 | AH57: 86 | AI57: 85 | AJ57: 73 | AK57: 83 | AL57: 76 | AM57: 58 | AN57: 68 | AO57: 64 | AP57: 54 | AQ57: 58 | AR57: 24 | AS57: 13
A58: 57 | B58: 22022 Almunia de San Juan | C58: 22022 | D58: 354 | E58: 11 | F58: 18 | G58: 15 | H58: 12 | I58: 13 | J58: 15 | K58: 19 | L58: 27 | M58: 26 | N58: 27 | O58: 36 | P58: 28 | Q58: 14 | R58: 31 | S58: 21 | T58: 11 | U58: 9 | V58: 15 | W58: 4 | X58: 2 | Y58: 335 | Z58: 13 | AA58: 14 | AB58: 11 | AC58: 20 | AD58: 15 | AE58: 19 | AF58: 22 | AG58: 18 | AH58: 24 | AI58: 18 | AJ58: 25 | AK58: 21 | AL58: 25 | AM58: 24 | AN58: 14 | AO58: 10 | AP58: 16 | AQ58: 13 | AR58: 9 | AS58: 4
A59: 58 | B59: 22023 Almuniente | C59: 22023 | D59: 240 | E59: 8 | F59: 9 | G59: 9 | H59: 8 | I59: 4 | J59: 7 | K59: 8 | L59: 18 | M59: 27 | N59: 24 | O59: 17 | P59: 13 | Q59: 16 | R59: 16 | S59: 26 | T59: 15 | U59: 4 | V59: 6 | W59: 4 | X59: 1 | Y59: 214 | Z59: 0 | AA59: 6 | AB59: 15 | AC59: 7 | AD59: 6 | AE59: 10 | AF59: 9 | AG59: 9 | AH59: 22 | AI59: 9 | AJ59: 10 | AK59: 17 | AL59: 22 | AM59: 16 | AN59: 20 | AO59: 13 | AP59: 7 | AQ59: 10 | AR59: 3 | AS59: 3
A60: 59 | B60: 22024 Alquézar | C60: 22024 | D60: 173 | E60: 6 | F60: 5 | G60: 6 | H60: 5 | I60: 5 | J60: 9 | K60: 7 | L60: 9 | M60: 17 | N60: 15 | O60: 10 | P60: 14 | Q60: 22 | R60: 12 | S60: 11 | T60: 12 | U60: 4 | V60: 4 | W60: 0 | X60: 0 | Y60: 165 | Z60: 8 | AA60: 7 | AB60: 4 | AC60: 4 | AD60: 7 | AE60: 7 | AF60: 11 | AG60: 9 | AH60: 12 | AI60: 13 | AJ60: 14 | AK60: 18 | AL60: 10 | AM60: 10 | AN60: 8 | AO60: 6 | AP60: 9 | AQ60: 3 | AR60: 4 | AS60: 1
A61: 60 | B61: 22025 Altorricón | C61: 22025 | D61: 787 | E61: 22 | F61: 33 | G61: 35 | H61: 42 | I61: 50 | J61: 36 | K61: 44 | L61: 71 | M61: 71 | N61: 64 | O61: 66 | P61: 55 | Q61: 44 | R61: 35 | S61: 37 | T61: 23 | U61: 27 | V61: 20 | W61: 12 | X61: 0 | Y61: 654 | Z61: 22 | AA61: 26 | AB61: 40 | AC61: 23 | AD61: 35 | AE61: 29 | AF61: 25 | AG61: 31 | AH61: 54 | AI61: 45 | AJ61: 45 | AK61: 50 | AL61: 29 | AM61: 44 | AN61: 39 | AO61: 35 | AP61: 28 | AQ61: 34 | AR61: 15 | AS61: 5
A62: 61 | B62: 22027 Angüés | C62: 22027 | D62: 199 | E62: 2 | F62: 2 | G62: 6 | H62: 6 | I62: 10 | J62: 9 | K62: 10 | L62: 10 | M62: 21 | N62: 14 | O62: 13 | P62: 13 | Q62: 18 | R62: 13 | S62: 8 | T62: 13 | U62: 14 | V62: 8 | W62: 6 | X62: 3 | Y62: 171 | Z62: 0 | AA62: 1 | AB62: 6 | AC62: 9 | AD62: 5 | AE62: 5 | AF62: 12 | AG62: 4 | AH62: 15 | AI62: 17 | AJ62: 9 | AK62: 13 | AL62: 18 | AM62: 7 | AN62: 12 | AO62: 11 | AP62: 6 | AQ62: 9 | AR62: 11 | AS62: 1
A63: 62 | B63: 22028 Ansó | C63: 22028 | D63: 199 | E63: 3 | F63: 8 | G63: 7 | H63: 5 | I63: 6 | J63: 9 | K63: 11 | L63: 3 | M63: 16 | N63: 19 | O63: 14 | P63: 16 | Q63: 13 | R63: 11 | S63: 14 | T63: 14 | U63: 17 | V63: 5 | W63: 6 | X63: 2 | Y63: 198 | Z63: 6 | AA63: 4 | AB63: 5 | AC63: 7 | AD63: 8 | AE63: 5 | AF63: 9 | AG63: 7 | AH63: 15 | AI63: 14 | AJ63: 18 | AK63: 13 | AL63: 13 | AM63: 14 | AN63: 14 | AO63: 14 | AP63: 5 | AQ63: 17 | AR63: 9 | AS63: 1
A64: 63 | B64: 22029 Antillón | C64: 22029 | D64: 71 | E64: 4 | F64: 3 | G64: 2 | H64: 1 | I64: 2 | J64: 4 | K64: 5 | L64: 4 | M64: 7 | N64: 3 | O64: 2 | P64: 4 | Q64: 6 | R64: 7 | S64: 4 | T64: 7 | U64: 1 | V64: 4 | W64: 1 | X64: 0 | Y64: 66 | Z64: 3 | AA64: 4 | AB64: 1 | AC64: 2 | AD64: 2 | AE64: 4 | AF64: 1 | AG64: 3 | AH64: 4 | AI64: 6 | AJ64: 3 | AK64: 3 | AL64: 6 | AM64: 6 | AN64: 6 | AO64: 5 | AP64: 2 | AQ64: 3 | AR64: 1 | AS64: 1
A65: 64 | B65: 22032 Aragüés del Puerto | C65: 22032 | D65: 63 | E65: 2 | F65: 3 | G65: 1 | H65: 3 | I65: 3 | J65: 1 | K65: 3 | L65: 5 | M65: 6 | N65: 6 | O65: 6 | P65: 1 | Q65: 8 | R65: 3 | S65: 5 | T65: 1 | U65: 2 | V65: 3 | W65: 1 | X65: 0 | Y65: 53 | Z65: 1 | AA65: 0 | AB65: 1 | AC65: 2 | AD65: 2 | AE65: 1 | AF65: 5 | AG65: 6 | AH65: 3 | AI65: 3 | AJ65: 3 | AK65: 2 | AL65: 3 | AM65: 4 | AN65: 3 | AO65: 5 | AP65: 4 | AQ65: 2 | AR65: 3 | AS65: 0
A66: 65 | B66: 22035 Arén | C66: 22035 | D66: 177 | E66: 5 | F66: 4 | G66: 4 | H66: 3 | I66: 7 | J66: 10 | K66: 14 | L66: 11 | M66: 13 | N66: 11 | O66: 11 | P66: 17 | Q66: 14 | R66: 16 | S66: 11 | T66: 6 | U66: 9 | V66: 7 | W66: 3 | X66: 1 | Y66: 141 | Z66: 10 | AA66: 3 | AB66: 2 | AC66: 4 | AD66: 7 | AE66: 7 | AF66: 10 | AG66: 9 | AH66: 4 | AI66: 5 | AJ66: 10 | AK66: 7 | AL66: 14 | AM66: 8 | AN66: 6 | AO66: 9 | AP66: 14 | AQ66: 8 | AR66: 4 | AS66: 0
A67: 66 | B67: 22036 Argavieso | C67: 22036 | D67: 67 | E67: 4 | F67: 3 | G67: 3 | H67: 0 | I67: 2 | J67: 3 | K67: 3 | L67: 4 | M67: 3 | N67: 8 | O67: 4 | P67: 4 | Q67: 3 | R67: 2 | S67: 8 | T67: 4 | U67: 6 | V67: 3 | W67: 0 | X67: 0 | Y67: =(SUM(Z67:AS67))+0 -> 47 | Z67: 1 | AA67: 0 | AB67: 3 | AC67: 0 | AD67: 1 | AE67: 4 | AF67: 5 | AG67: 2 | AH67: 4 | AI67: 0 | AJ67: 3 | AK67: 3 | AL67: 4 | AM67: 4 | AN67: 4 | AO67: 3 | AP67: 2 | AQ67: 2 | AR67: 2 | AS67: 0
A68: 67 | B68: 22037 Arguis | C68: 22037 | D68: =SUM(E68:X68) -> 84 | E68: 4 | F68: 3 | G68: 1 | H68: 3 | I68: 2 | J68: 3 | K68: 4 | L68: 9 | M68: 7 | N68: 5 | O68: 4 | P68: 11 | Q68: 15 | R68: 5 | S68: 4 | T68: 3 | U68: 0 | V68: 0 | W68: 1 | X68: 0 | Y68: 69 | Z68: 4 | AA68: 5 | AB68: 0 | AC68: 0 | AD68: 4 | AE68: 1 | AF68: 3 | AG68: 6 | AH68: 9 | AI68: 5 | AJ68: 6 | AK68: 6 | AL68: 8 | AM68: 5 | AN68: 2 | AO68: 1 | AP68: 2 | AQ68: 2 | AR68: 0 | AS68: 0
A69: 68 | B69: 22039 Ayerbe | C69: 22039 | D69: 508 | E69: 15 | F69: 11 | G69: 29 | H69: 22 | I69: 21 | J69: 28 | K69: 20 | L69: 27 | M69: 37 | N69: 46 | O69: 39 | P69: 32 | Q69: 38 | R69: 30 | S69: 31 | T69: 29 | U69: 17 | V69: 23 | W69: 12 | X69: 1 | Y69: 520 | Z69: 10 | AA69: 20 | AB69: 22 | AC69: 33 | AD69: 21 | AE69: 14 | AF69: 24 | AG69: 23 | AH69: 43 | AI69: 35 | AJ69: 44 | AK69: 31 | AL69: 36 | AM69: 30 | AN69: 28 | AO69: 33 | AP69: 25 | AQ69: 20 | AR69: 19 | AS69: 9
A70: 69 | B70: 22040 Azanuy-Alins | C70: 22040 | D70: 87 | E70: 4 | F70: 2 | G70: 3 | H70: 5 | I70: 4 | J70: 4 | K70: 5 | L70: 6 | M70: 5 | N70: 3 | O70: 7 | P70: 6 | Q70: 6 | R70: 9 | S70: 5 | T70: 3 | U70: 3 | V70: 5 | W70: 2 | X70: 0 | Y70: 90 | Z70: 4 | AA70: 3 | AB70: 2 | AC70: 2 | AD70: 3 | AE70: 3 | AF70: 4 | AG70: 5 | AH70: 8 | AI70: 6 | AJ70: 5 | AK70: 4 | AL70: 7 | AM70: 7 | AN70: 7 | AO70: 7 | AP70: 3 | AQ70: 6 | AR70: 3 | AS70: 1
A71: 70 | B71: 22041 Azara | C71: 22041 | D71: 86 | E71: 1 | F71: 3 | G71: 3 | H71: 4 | I71: 6 | J71: 3 | K71: 3 | L71: 7 | M71: 3 | N71: 2 | O71: 5 | P71: 11 | Q71: 8 | R71: 4 | S71: 7 | T71: 4 | U71: 6 | V71: 1 | W71: 4 | X71: 1 | Y71: 76 | Z71: 1 | AA71: 2 | AB71: 3 | AC71: 0 | AD71: 1 | AE71: 7 | AF71: 3 | AG71: 4 | AH71: 2 | AI71: 7 | AJ71: 7 | AK71: 6 | AL71: 4 | AM71: 8 | AN71: 4 | AO71: 5 | AP71: 4 | AQ71: 7 | AR71: 1 | AS71: 0
A72: 71 | B72: 22042 Azlor | C72: 22042 | D72: 65 | E72: 1 | F72: 1 | G72: 2 | H72: 1 | I72: 2 | J72: 3 | K72: 3 | L72: 5 | M72: 7 | N72: 5 | O72: 10 | P72: 4 | Q72: 2 | R72: 1 | S72: 3 | T72: 3 | U72: 4 | V72: 6 | W72: 2 | X72: 0 | Y72: 83 | Z72: 4 | AA72: 5 | AB72: 7 | AC72: 4 | AD72: 1 | AE72: 0 | AF72: 8 | AG72: 2 | AH72: 7 | AI72: 8 | AJ72: 6 | AK72: 4 | AL72: 2 | AM72: 4 | AN72: 2 | AO72: 7 | AP72: 3 | AQ72: 4 | AR72: 4 | AS72: 1
A73: 72 | B73: 22043 Baells | C73: 22043 | D73: 54 | E73: 0 | F73: 0 | G73: 1 | H73: 0 | I73: 1 | J73: 2 | K73: 3 | L73: 4 | M73: 6 | N73: 4 | O73: 1 | P73: 3 | Q73: 3 | R73: 8 | S73: 9 | T73: 6 | U73: 1 | V73: 0 | W73: 0 | X73: 2 | Y73: 40 | Z73: 1 | AA73: 2 | AB73: 1 | AC73: 0 | AD73: 1 | AE73: 1 | AF73: 1 | AG73: 1 | AH73: 3 | AI73: 3 | AJ73: 2 | AK73: 1 | AL73: 5 | AM73: 5 | AN73: 4 | AO73: 2 | AP73: 2 | AQ73: 2 | AR73: 2 | AS73: 1
A74: 73 | B74: 22044 Bailo | C74: 22044 | D74: 160 | E74: 1 | F74: 6 | G74: 4 | H74: 3 | I74: 4 | J74: 6 | K74: 8 | L74: 15 | M74: 11 | N74: 18 | O74: 15 | P74: 10 | Q74: 14 | R74: 11 | S74: 14 | T74: 5 | U74: 7 | V74: 5 | W74: 2 | X74: 1 | Y74: 103 | Z74: 2 | AA74: 4 | AB74: 2 | AC74: 4 | AD74: 2 | AE74: 2 | AF74: 4 | AG74: 5 | AH74: 7 | AI74: 4 | AJ74: 8 | AK74: 15 | AL74: 10 | AM74: 4 | AN74: 5 | AO74: 13 | AP74: 7 | AQ74: 2 | AR74: 3 | AS74: 0
A75: 74 | B75: 22045 Baldellou | C75: 22045 | D75: 41 | E75: 0 | F75: 1 | G75: 0 | H75: 0 | I75: 3 | J75: 2 | K75: 2 | L75: 1 | M75: 1 | N75: 3 | O75: 3 | P75: 4 | Q75: 4 | R75: 3 | S75: 2 | T75: 4 | U75: 2 | V75: 5 | W75: 1 | X75: 0 | Y75: 30 | Z75: 0 | AA75: 0 | AB75: 1 | AC75: 0 | AD75: 4 | AE75: 2 | AF75: 2 | AG75: 0 | AH75: 0 | AI75: 1 | AJ75: 0 | AK75: 3 | AL75: 5 | AM75: 0 | AN75: 0 | AO75: 4 | AP75: 4 | AQ75: 4 | AR75: 0 | AS75: 0
A76: 75 | B76: 22046 Ballobar | C76: 22046 | D76: 440 | E76: 14 | F76: 19 | G76: 13 | H76: 17 | I76: 23 | J76: 26 | K76: 19 | L76: 15 | M76: 35 | N76: 27 | O76: 28 | P76: 39 | Q76: 30 | R76: 27 | S76: 29 | T76: 35 | U76: 12 | V76: 21 | W76: 10 | X76: 1 | Y76: 409 | Z76: 15 | AA76: 16 | AB76: 10 | AC76: 24 | AD76: 12 | AE76: 18 | AF76: 18 | AG76: 31 | AH76: 22 | AI76: 25 | AJ76: 22 | AK76: 26 | AL76: 44 | AM76: 29 | AN76: 28 | AO76: 18 | AP76: 13 | AQ76: 25 | AR76: 11 | AS76: 2
A77: 76 | B77: 22047 Banastás | C77: 22047 | D77: 169 | E77: 3 | F77: 5 | G77: 13 | H77: 9 | I77: 9 | J77: 8 | K77: 6 | L77: 6 | M77: 9 | N77: 21 | O77: 14 | P77: 12 | Q77: 21 | R77: 8 | S77: 12 | T77: 6 | U77: 5 | V77: 0 | W77: 2 | X77: 0 | Y77: 158 | Z77: 5 | AA77: 10 | AB77: 14 | AC77: 5 | AD77: 6 | AE77: 4 | AF77: 9 | AG77: 11 | AH77: 6 | AI77: 20 | AJ77: 13 | AK77: 10 | AL77: 13 | AM77: 13 | AN77: 8 | AO77: 6 | AP77: 2 | AQ77: 2 | AR77: 1 | AS77: 0
A78: 77 | B78: 22048 Barbastro | C78: 22048 | D78: 8342 | E78: 403 | F78: 420 | G78: 463 | H78: 477 | I78: 446 | J78: 442 | K78: 479 | L78: 573 | M78: 678 | N78: 645 | O78: 607 | P78: 600 | Q78: 529 | R78: 442 | S78: 397 | T78: 281 | U78: 197 | V78: 164 | W78: 77 | X78: 22 | Y78: 8804 | Z78: 366 | AA78: 406 | AB78: 466 | AC78: 432 | AD78: 446 | AE78: 435 | AF78: 487 | AG78: 534 | AH78: 659 | AI78: 657 | AJ78: 636 | AK78: 657 | AL78: 620 | AM78: 478 | AN78: 393 | AO78: 345 | AP78: 294 | AQ78: 268 | AR78: 177 | AS78: 48
A79: 78 | B79: 22049 Barbués | C79: 22049 | D79: 55 | E79: 2 | F79: 1 | G79: 2 | H79: 3 | I79: 1 | J79: 2 | K79: 7 | L79: 6 | M79: 0 | N79: 3 | O79: 6 | P79: 6 | Q79: 5 | R79: 4 | S79: 1 | T79: 1 | U79: 1 | V79: 2 | W79: 1 | X79: 1 | Y79: 36 | Z79: 0 | AA79: 0 | AB79: 1 | AC79: 0 | AD79: 0 | AE79: 1 | AF79: 4 | AG79: 2 | AH79: 2 | AI79: 1 | AJ79: 5 | AK79: 5 | AL79: 3 | AM79: 3 | AN79: 0 | AO79: 1 | AP79: 3 | AQ79: 5 | AR79: 0 | AS79: 0
A80: 79 | B80: 22050 Barbuñales | C80: 22050 | D80: 50 | E80: 0 | F80: 2 | G80: 0 | H80: 0 | I80: 1 | J80: 5 | K80: 3 | L80: 3 | M80: 0 | N80: 5 | O80: 2 | P80: 6 | Q80: 2 | R80: 5 | S80: 5 | T80: 6 | U80: 2 | V80: 2 | W80: 1 | X80: 0 | Y80: 50 | Z80: 0 | AA80: 0 | AB80: 2 | AC80: 1 | AD80: 1 | AE80: 5 | AF80: 0 | AG80: 0 | AH80: 1 | AI80: 4 | AJ80: 3 | AK80: 6 | AL80: 5 | AM80: 5 | AN80: 6 | AO80: 1 | AP80: 4 | AQ80: 1 | AR80: 3 | AS80: 2
A81: 80 | B81: 22051 Bárcabo | C81: 22051 | D81: 57 | E81: 1 | F81: 0 | G81: 2 | H81: 0 | I81: 1 | J81: 4 | K81: 2 | L81: 2 | M81: 6 | N81: 4 | O81: 4 | P81: 6 | Q81: 9 | R81: 4 | S81: 3 | T81: 2 | U81: 2 | V81: 4 | W81: 1 | X81: 0 | Y81: 49 | Z81: 0 | AA81: 0 | AB81: 0 | AC81: 0 | AD81: 1 | AE81: 6 | AF81: 3 | AG81: 1 | AH81: 2 | AI81: 2 | AJ81: 5 | AK81: 4 | AL81: 4 | AM81: 5 | AN81: 3 | AO81: 1 | AP81: 6 | AQ81: 5 | AR81: 1 | AS81: 0
A82: 81 | B82: 22052 Belver de Cinca | C82: 22052 | D82: 757 | E82: 25 | F82: 34 | G82: 33 | H82: 32 | I82: 38 | J82: 45 | K82: 50 | L82: 51 | M82: 74 | N82: 64 | O82: 55 | P82: 51 | Q82: 38 | R82: 43 | S82: 30 | T82: 32 | U82: 26 | V82: 24 | W82: 11 | X82: 1 | Y82: 550 | Z82: 24 | AA82: 20 | AB82: 26 | AC82: 32 | AD82: 22 | AE82: 22 | AF82: 28 | AG82: 31 | AH82: 35 | AI82: 41 | AJ82: 40 | AK82: 35 | AL82: 27 | AM82: 32 | AN82: 29 | AO82: 35 | AP82: 29 | AQ82: 33 | AR82: 6 | AS82: 3
A83: 82 | B83: 22053 Benabarre | C83: 22053 | D83: 601 | E83: 23 | F83: 31 | G83: 36 | H83: 23 | I83: 26 | J83: 19 | K83: 35 | L83: 22 | M83: 38 | N83: 48 | O83: 54 | P83: 43 | Q83: 37 | R83: 43 | S83: 39 | T83: 32 | U83: 22 | V83: 16 | W83: 11 | X83: 3 | Y83: 561 | Z83: 14 | AA83: 22 | AB83: 30 | AC83: 26 | AD83: 22 | AE83: 22 | AF83: 27 | AG83: 30 | AH83: 48 | AI83: 43 | AJ83: 38 | AK83: 36 | AL83: 27 | AM83: 42 | AN83: 32 | AO83: 20 | AP83: 31 | AQ83: 28 | AR83: 19 | AS83: 4
A84: 83 | B84: 22054 Benasque | C84: 22054 | D84: 1212 | E84: 47 | F84: 60 | G84: 68 | H84: 61 | I84: 54 | J84: 72 | K84: 89 | L84: 107 | M84: 124 | N84: 126 | O84: 100 | P84: 89 | Q84: 71 | R84: 65 | S84: 34 | T84: 18 | U84: 12 | V84: 13 | W84: 2 | X84: 0 | Y84: 1027 | Z84: 35 | AA84: 39 | AB84: 53 | AC84: 55 | AD84: 60 | AE84: 63 | AF84: 63 | AG84: 95 | AH84: 119 | AI84: 99 | AJ84: 99 | AK84: 69 | AL84: 55 | AM84: 42 | AN84: 25 | AO84: 27 | AP84: 7 | AQ84: 13 | AR84: 8 | AS84: 1
A85: 84 | B85: 22055 Berbegal | C85: 22055 | D85: 165 | E85: 0 | F85: 2 | G85: 2 | H85: 5 | I85: 7 | J85: 15 | K85: 10 | L85: 8 | M85: 7 | N85: 14 | O85: 14 | P85: 21 | Q85: 16 | R85: 10 | S85: 8 | T85: 8 | U85: 9 | V85: 5 | W85: 3 | X85: 1 | Y85: 143 | Z85: 0 | AA85: 1 | AB85: 4 | AC85: 7 | AD85: 3 | AE85: 8 | AF85: 7 | AG85: 7 | AH85: 4 | AI85: 8 | AJ85: 17 | AK85: 13 | AL85: 15 | AM85: 11 | AN85: 9 | AO85: 7 | AP85: 9 | AQ85: 11 | AR85: 1 | AS85: 1
A86: 85 | B86: 22057 Bielsa | C86: 22057 | D86: 258 | E86: 9 | F86: 8 | G86: 7 | H86: 17 | I86: 9 | J86: 16 | K86: 15 | L86: 15 | M86: 24 | N86: 18 | O86: 16 | P86: 24 | Q86: 23 | R86: 17 | S86: 16 | T86: 8 | U86: 6 | V86: 6 | W86: 3 | X86: 1 | Y86: 223 | Z86: 6 | AA86: 6 | AB86: 12 | AC86: 8 | AD86: 16 | AE86: 10 | AF86: 17 | AG86: 11 | AH86: 13 | AI86: 20 | AJ86: 14 | AK86: 17 | AL86: 12 | AM86: 15 | AN86: 9 | AO86: 9 | AP86: 10 | AQ86: 6 | AR86: 10 | AS86: 2
A87: 86 | B87: 22058 Bierge | C87: 22058 | D87: 141 | E87: 4 | F87: 4 | G87: 5 | H87: 4 | I87: 4 | J87: 5 | K87: 10 | L87: 7 | M87: 13 | N87: 13 | O87: 9 | P87: 10 | Q87: 14 | R87: 10 | S87: 9 | T87: 7 | U87: 2 | V87: 6 | W87: 5 | X87: 0 | Y87: 113 | Z87: 1 | AA87: 4 | AB87: 3 | AC87: 3 | AD87: 4 | AE87: 8 | AF87: 5 | AG87: 8 | AH87: 14 | AI87: 5 | AJ87: 9 | AK87: 13 | AL87: 5 | AM87: 5 | AN87: 7 | AO87: 4 | AP87: 6 | AQ87: 5 | AR87: 2 | AS87: 2
A88: 87 | B88: 22059 Biescas | C88: 22059 | D88: 813 | E88: 26 | F88: 35 | G88: 35 | H88: 28 | I88: 31 | J88: 36 | K88: 42 | L88: 59 | M88: 72 | N88: 100 | O88: 67 | P88: 65 | Q88: 71 | R88: 40 | S88: 36 | T88: 18 | U88: 21 | V88: 18 | W88: 11 | X88: 2 | Y88: 737 | Z88: 23 | AA88: 35 | AB88: 31 | AC88: 33 | AD88: 37 | AE88: 30 | AF88: 45 | AG88: 56 | AH88: 64 | AI88: 68 | AJ88: 63 | AK88: 49 | AL88: 46 | AM88: 35 | AN88: 25 | AO88: 19 | AP88: 23 | AQ88: 32 | AR88: 18 | AS88: 5
A89: 88 | B89: 22060 Binaced | C89: 22060 | D89: 874 | E89: 31 | F89: 33 | G89: 34 | H89: 47 | I89: 45 | J89: 54 | K89: 63 | L89: 69 | M89: 80 | N89: 65 | O89: 56 | P89: 60 | Q89: 50 | R89: 64 | S89: 45 | T89: 28 | U89: 18 | V89: 21 | W89: 8 | X89: 3 | Y89: 723 | Z89: 30 | AA89: 24 | AB89: 42 | AC89: 35 | AD89: 41 | AE89: 37 | AF89: 31 | AG89: 38 | AH89: 49 | AI89: 48 | AJ89: 43 | AK89: 48 | AL89: 57 | AM89: 57 | AN89: 40 | AO89: 31 | AP89: 38 | AQ89: 22 | AR89: 9 | AS89: 3
A90: 89 | B90: 22061 Binéfar | C90: 22061 | D90: 5234 | E90: 221 | F90: 250 | G90: 316 | H90: 307 | I90: 343 | J90: 328 | K90: 295 | L90: 320 | M90: 506 | N90: 452 | O90: 389 | P90: 381 | Q90: 284 | R90: 221 | S90: 202 | T90: 164 | U90: 105 | V90: 92 | W90: 44 | X90: 14 | Y90: 4654 | Z90: 207 | AA90: 229 | AB90: 243 | AC90: 228 | AD90: 257 | AE90: 213 | AF90: 264 | AG90: 281 | AH90: 358 | AI90: 328 | AJ90: 353 | AK90: 356 | AL90: 244 | AM90: 245 | AN90: 206 | AO90: 206 | AP90: 164 | AQ90: 162 | AR90: 81 | AS90: 29
A91: 90 | B91: 22062 Bisaurri | C91: 22062 | D91: 91 | E91: 0 | F91: 3 | G91: 2 | H91: 2 | I91: 2 | J91: 1 | K91: 2 | L91: 6 | M91: 4 | N91: 10 | O91: 9 | P91: 8 | Q91: 14 | R91: 6 | S91: 11 | T91: 4 | U91: 2 | V91: 2 | W91: 3 | X91: 0 | Y91: 85 | Z91: 3 | AA91: 1 | AB91: 3 | AC91: 1 | AD91: 1 | AE91: 3 | AF91: 2 | AG91: 7 | AH91: 7 | AI91: 6 | AJ91: 11 | AK91: 3 | AL91: 9 | AM91: 5 | AN91: 5 | AO91: 6 | AP91: 3 | AQ91: 2 | AR91: 6 | AS91: 1
A92: 91 | B92: 22063 Biscarrués | C92: 22063 | D92: 103 | E92: 2 | F92: 2 | G92: 2 | H92: 5 | I92: 3 | J92: 4 | K92: 2 | L92: 6 | M92: 4 | N92: 7 | O92: 10 | P92: 14 | Q92: 12 | R92: 5 | S92: 7 | T92: 4 | U92: 4 | V92: 4 | W92: 6 | X92: 0 | Y92: 88 | Z92: 0 | AA92: 1 | AB92: 1 | AC92: 3 | AD92: 4 | AE92: 6 | AF92: 3 | AG92: 2 | AH92: 4 | AI92: 4 | AJ92: 7 | AK92: 9 | AL92: 10 | AM92: 5 | AN92: 3 | AO92: 10 | AP92: 5 | AQ92: 3 | AR92: 7 | AS92: 1
A93: 92 | B93: 22064 Blecua y Torres | C93: 22064 | D93: 99 | E93: 0 | F93: 2 | G93: 1 | H93: 7 | I93: 4 | J93: 1 | K93: 4 | L93: 4 | M93: 9 | N93: 12 | O93: 6 | P93: 8 | Q93: 12 | R93: 4 | S93: 9 | T93: 8 | U93: 5 | V93: 1 | W93: 2 | X93: 0 | Y93: 80 | Z93: 1 | AA93: 0 | AB93: 5 | AC93: 4 | AD93: 6 | AE93: 4 | AF93: 3 | AG93: 2 | AH93: 3 | AI93: 6 | AJ93: 5 | AK93: 8 | AL93: 6 | AM93: 4 | AN93: 4 | AO93: 7 | AP93: 6 | AQ93: 3 | AR93: 3 | AS93: 0
A94: 93 | B94: 22066 Boltaña | C94: 22066 | D94: 573 | E94: 23 | F94: 37 | G94: 25 | H94: 24 | I94: 21 | J94: 28 | K94: 36 | L94: 43 | M94: 54 | N94: 47 | O94: 46 | P94: 54 | Q94: 40 | R94: 39 | S94: 18 | T94: 11 | U94: 11 | V94: 13 | W94: 3 | X94: 0 | Y94: 492 | Z94: 12 | AA94: 20 | AB94: 23 | AC94: 19 | AD94: 19 | AE94: 21 | AF94: 30 | AG94: 46 | AH94: 47 | AI94: 47 | AJ94: 40 | AK94: 40 | AL94: 26 | AM94: 34 | AN94: 18 | AO94: 10 | AP94: 20 | AQ94: 12 | AR94: 6 | AS94: 2
A95: 94 | B95: 22067 Bonansa | C95: 22067 | D95: 51 | E95: 2 | F95: 2 | G95: 4 | H95: 1 | I95: 2 | J95: 2 | K95: 3 | L95: 2 | M95: 2 | N95: 6 | O95: 2 | P95: 7 | Q95: 4 | R95: 6 | S95: 1 | T95: 2 | U95: 0 | V95: 3 | W95: 0 | X95: 0 | Y95: 39 | Z95: 1 | AA95: 2 | AB95: 1 | AC95: 2 | AD95: 4 | AE95: 1 | AF95: 2 | AG95: 3 | AH95: 1 | AI95: 4 | AJ95: 1 | AK95: 4 | AL95: 4 | AM95: 2 | AN95: 3 | AO95: 1 | AP95: 1 | AQ95: 1 | AR95: 0 | AS95: 1
A96: 95 | B96: 22068 Borau | C96: 22068 | D96: 46 | E96: 1 | F96: 2 | G96: 2 | H96: 0 | I96: 0 | J96: 4 | K96: 3 | L96: 4 | M96: 5 | N96: 7 | O96: 3 | P96: 1 | Q96: 6 | R96: 2 | S96: 1 | T96: 2 | U96: 3 | V96: 0 | W96: 0 | X96: 0 | Y96: 37 | Z96: 0 | AA96: 3 | AB96: 0 | AC96: 0 | AD96: 1 | AE96: 1 | AF96: 2 | AG96: 2 | AH96: 4 | AI96: 3 | AJ96: 4 | AK96: 1 | AL96: 4 | AM96: 3 | AN96: 1 | AO96: 2 | AP96: 4 | AQ96: 1 | AR96: 0 | AS96: 1
A97: 96 | B97: 22069 Broto | C97: 22069 | D97: 317 | E97: 13 | F97: 12 | G97: 11 | H97: 19 | I97: 19 | J97: 14 | K97: 17 | L97: 26 | M97: 30 | N97: 23 | O97: 21 | P97: 32 | Q97: 27 | R97: 11 | S97: 13 | T97: 12 | U97: 7 | V97: 6 | W97: 4 | X97: 0 | Y97: 247 | Z97: 11 | AA97: 6 | AB97: 6 | AC97: 7 | AD97: 12 | AE97: 16 | AF97: 20 | AG97: 20 | AH97: 17 | AI97: 21 | AJ97: 23 | AK97: 20 | AL97: 17 | AM97: 18 | AN97: 8 | AO97: 7 | AP97: 4 | AQ97: 10 | AR97: 3 | AS97: 1
A98: 97 | B98: 22072 Caldearenas | C98: 22072 | D98: 129 | E98: 4 | F98: 3 | G98: 2 | H98: 2 | I98: 7 | J98: 6 | K98: 9 | L98: 8 | M98: 12 | N98: 5 | O98: 14 | P98: 3 | Q98: 16 | R98: 12 | S98: 8 | T98: 6 | U98: 6 | V98: 3 | W98: 3 | X98: 0 | Y98: 93 | Z98: 2 | AA98: 3 | AB98: 4 | AC98: 2 | AD98: 2 | AE98: 4 | AF98: 6 | AG98: 5 | AH98: 3 | AI98: 5 | AJ98: 6 | AK98: 8 | AL98: 11 | AM98: 4 | AN98: 6 | AO98: 6 | AP98: 3 | AQ98: 6 | AR98: 7 | AS98: 0
A99: 98 | B99: 22074 Campo | C99: 22074 | D99: 239 | E99: 6 | F99: 6 | G99: 2 | H99: 18 | I99: 14 | J99: 17 | K99: 13 | L99: 13 | M99: 17 | N99: 14 | O99: 29 | P99: 19 | Q99: 24 | R99: 13 | S99: 15 | T99: 6 | U99: 6 | V99: 7 | W99: 0 | X99: 0 | Y99: 220 | Z99: 8 | AA99: 7 | AB99: 13 | AC99: 2 | AD99: 8 | AE99: 18 | AF99: 11 | AG99: 14 | AH99: 18 | AI99: 18 | AJ99: 18 | AK99: 21 | AL99: 10 | AM99: 9 | AN99: 15 | AO99: 8 | AP99: 4 | AQ99: 10 | AR99: 3 | AS99: 5
A100: 99 | B100: 22075 Camporrells | C100: 22075 | D100: 67 | E100: 0 | F100: 0 | G100: 0 | H100: 1 | I100: 0 | J100: 3 | K100: 4 | L100: 3 | M100: 6 | N100: 3 | O100: 6 | P100: 5 | Q100: 9 | R100: 4 | S100: 5 | T100: 8 | U100: 2 | V100: 4 | W100: 3 | X100: 1 | Y100: 56 | Z100: 1 | AA100: 2 | AB100: 2 | AC100: 1 | AD100: 1 | AE100: 3 | AF100: 2 | AG100: 3 | AH100: 1 | AI100: 2 | AJ100: 1 | AK100: 5 | AL100: 4 | AM100: 3 | AN100: 7 | AO100: 4 | AP100: 3 | AQ100: 9 | AR100: 1 | AS100: 1
A101: 100 | B101: 22076 Canal de Berdún | C101: 22076 | D101: 191 | E101: 5 | F101: 4 | G101: 3 | H101: 4 | I101: 7 | J101: 14 | K101: 10 | L101: 9 | M101: 12 | N101: 10 | O101: 13 | P101: 15 | Q101: 19 | R101: 17 | S101: 14 | T101: 11 | U101: 13 | V101: 4 | W101: 6 | X101: 1 | Y101: 157 | Z101: 1 | AA101: 2 | AB101: 5 | AC101: 9 | AD101: 5 | AE101: 7 | AF101: 10 | AG101: 6 | AH101: 6 | AI101: 7 | AJ101: 12 | AK101: 16 | AL101: 12 | AM101: 14 | AN101: 14 | AO101: 7 | AP101: 7 | AQ101: 11 | AR101: 6 | AS101: 0
A102: 101 | B102: 22077 Candasnos | C102: 22077 | D102: 217 | E102: 2 | F102: 7 | G102: 8 | H102: 4 | I102: 9 | J102: 6 | K102: 8 | L102: 13 | M102: 21 | N102: 18 | O102: 20 | P102: 16 | Q102: 21 | R102: 14 | S102: 14 | T102: 13 | U102: 10 | V102: 8 | W102: 4 | X102: 1 | Y102: 185 | Z102: 4 | AA102: 5 | AB102: 7 | AC102: 8 | AD102: 6 | AE102: 3 | AF102: 6 | AG102: 5 | AH102: 13 | AI102: 9 | AJ102: 14 | AK102: 15 | AL102: 13 | AM102: 18 | AN102: 15 | AO102: 13 | AP102: 11 | AQ102: 12 | AR102: 4 | AS102: 4
A103: 102 | B103: 22078 Canfranc | C103: 22078 | D103: 332 | E103: 7 | F103: 11 | G103: 15 | H103: 13 | I103: 20 | J103: 11 | K103: 22 | L103: 27 | M103: 22 | N103: 33 | O103: 43 | P103: 27 | Q103: 29 | R103: 22 | S103: 13 | T103: 10 | U103: 2 | V103: 2 | W103: 1 | X103: 2 | Y103: 267 | Z103: 7 | AA103: 7 | AB103: 16 | AC103: 22 | AD103: 16 | AE103: 21 | AF103: 13 | AG103: 20 | AH103: 22 | AI103: 30 | AJ103: 19 | AK103: 19 | AL103: 13 | AM103: 11 | AN103: 10 | AO103: 8 | AP103: 3 | AQ103: 9 | AR103: 1 | AS103: 0
A104: 103 | B104: 22079 Capdesaso | C104: 22079 | D104: 88 | E104: 5 | F104: 0 | G104: 2 | H104: 4 | I104: 1 | J104: 6 | K104: 3 | L104: 6 | M104: 9 | N104: 7 | O104: 6 | P104: 10 | Q104: 6 | R104: 5 | S104: 3 | T104: 4 | U104: 5 | V104: 3 | W104: 3 | X104: 0 | Y104: 120 | Z104: 1 | AA104: 1 | AB104: 2 | AC104: 2 | AD104: 2 | AE104: 3 | AF104: 9 | AG104: 11 | AH104: 14 | AI104: 18 | AJ104: 15 | AK104: 12 | AL104: 6 | AM104: 7 | AN104: 3 | AO104: 2 | AP104: 4 | AQ104: 4 | AR104: 3 | AS104: 1
A105: 104 | B105: 22080 Capella | C105: 22080 | D105: 182 | E105: 2 | F105: 9 | G105: 5 | H105: 3 | I105: 8 | J105: 5 | K105: 11 | L105: 11 | M105: 15 | N105: 15 | O105: 15 | P105: 15 | Q105: 12 | R105: 14 | S105: 14 | T105: 11 | U105: 4 | V105: 6 | W105: 7 | X105: 0 | Y105: 168 | Z105: 3 | AA105: 4 | AB105: 10 | AC105: 10 | AD105: 6 | AE105: 10 | AF105: 7 | AG105: 4 | AH105: 10 | AI105: 16 | AJ105: 8 | AK105: 9 | AL105: 18 | AM105: 11 | AN105: 10 | AO105: 11 | AP105: 8 | AQ105: 10 | AR105: 2 | AS105: 1
A106: 105 | B106: 22081 Casbas de Huesca | C106: 22081 | D106: 163 | E106: 2 | F106: 3 | G106: 1 | H106: 4 | I106: 5 | J106: 7 | K106: 9 | L106: 9 | M106: 11 | N106: 16 | O106: 14 | P106: 14 | Q106: 11 | R106: 16 | S106: 18 | T106: 10 | U106: 6 | V106: 5 | W106: 2 | X106: 0 | Y106: 127 | Z106: 3 | AA106: 0 | AB106: 2 | AC106: 5 | AD106: 1 | AE106: 3 | AF106: 8 | AG106: 4 | AH106: 9 | AI106: 7 | AJ106: 11 | AK106: 13 | AL106: 11 | AM106: 13 | AN106: 7 | AO106: 12 | AP106: 6 | AQ106: 6 | AR106: 0 | AS106: 6
A107: 106 | B107: 22082 Castejón del Puente | C107: 22082 | D107: 179 | E107: 5 | F107: 6 | G107: 4 | H107: 4 | I107: 8 | J107: 14 | K107: 16 | L107: 8 | M107: 15 | N107: 11 | O107: 14 | P107: 18 | Q107: 10 | R107: 14 | S107: 6 | T107: 10 | U107: 8 | V107: 5 | W107: 3 | X107: 0 | Y107: 166 | Z107: 3 | AA107: 7 | AB107: 7 | AC107: 7 | AD107: 5 | AE107: 11 | AF107: 9 | AG107: 12 | AH107: 8 | AI107: 6 | AJ107: 16 | AK107: 10 | AL107: 13 | AM107: 12 | AN107: 12 | AO107: 9 | AP107: 9 | AQ107: 7 | AR107: 3 | AS107: 0
A108: 107 | B108: 22083 Castejón de Monegros | C108: 22083 | D108: 265 | E108: 0 | F108: 7 | G108: 4 | H108: 8 | I108: 14 | J108: 7 | K108: 16 | L108: 12 | M108: 14 | N108: 20 | O108: 21 | P108: 25 | Q108: 19 | R108: 20 | S108: 20 | T108: 22 | U108: 21 | V108: 7 | W108: 6 | X108: 2 | Y108: 232 | Z108: 4 | AA108: 5 | AB108: 5 | AC108: 9 | AD108: 6 | AE108: 12 | AF108: 12 | AG108: 8 | AH108: 12 | AI108: 16 | AJ108: 14 | AK108: 22 | AL108: 9 | AM108: 20 | AN108: 21 | AO108: 19 | AP108: 19 | AQ108: 9 | AR108: 8 | AS108: 2
A109: 108 | B109: 22084 Castejón de Sos | C109: 22084 | D109: 396 | E109: 9 | F109: 24 | G109: 19 | H109: 23 | I109: 19 | J109: 15 | K109: 15 | L109: 26 | M109: 51 | N109: 43 | O109: 38 | P109: 30 | Q109: 31 | R109: 19 | S109: 7 | T109: 9 | U109: 11 | V109: 5 | W109: 2 | X109: 0 | Y109: 395 | Z109: 5 | AA109: 10 | AB109: 26 | AC109: 24 | AD109: 18 | AE109: 14 | AF109: 22 | AG109: 25 | AH109: 42 | AI109: 53 | AJ109: 25 | AK109: 29 | AL109: 26 | AM109: 17 | AN109: 14 | AO109: 12 | AP109: 13 | AQ109: 9 | AR109: 11 | AS109: 0
A110: 109 | B110: 22085 Castelflorite | C110: 22085 | D110: 51 | E110: 0 | F110: 0 | G110: 1 | H110: 2 | I110: 0 | J110: 1 | K110: 0 | L110: 3 | M110: 10 | N110: 6 | O110: 3 | P110: 4 | Q110: 2 | R110: 5 | S110: 3 | T110: 6 | U110: 3 | V110: 2 | W110: 0 | X110: 0 | Y110: 52 | Z110: 0 | AA110: 3 | AB110: 1 | AC110: 1 | AD110: 1 | AE110: 1 | AF110: 4 | AG110: 2 | AH110: 4 | AI110: 6 | AJ110: 1 | AK110: 2 | AL110: 2 | AM110: 4 | AN110: 5 | AO110: 6 | AP110: 3 | AQ110: 5 | AR110: 1 | AS110: 0
A111: 110 | B111: 22086 Castiello de Jaca | C111: 22086 | D111: 134 | E111: 2 | F111: 6 | G111: 7 | H111: 4 | I111: 9 | J111: 7 | K111: 6 | L111: 7 | M111: 10 | N111: 12 | O111: 13 | P111: 8 | Q111: 19 | R111: 10 | S111: 5 | T111: 5 | U111: 1 | V111: 2 | W111: 1 | X111: 0 | Y111: 106 | Z111: 2 | AA111: 4 | AB111: 8 | AC111: 0 | AD111: 2 | AE111: 4 | AF111: 6 | AG111: 6 | AH111: 10 | AI111: 13 | AJ111: 8 | AK111: 11 | AL111: 13 | AM111: 4 | AN111: 2 | AO111: 3 | AP111: 4 | AQ111: 5 | AR111: 1 | AS111: 0
A112: 111 | B112: 22087 Castigaleu | C112: 22087 | D112: 50 | E112: 2 | F112: 3 | G112: 4 | H112: 2 | I112: 1 | J112: 1 | K112: 4 | L112: 1 | M112: 5 | N112: 6 | O112: 3 | P112: 6 | Q112: 4 | R112: 3 | S112: 3 | T112: 1 | U112: 1 | V112: 0 | W112: 0 | X112: 0 | Y112: 30 | Z112: 0 | AA112: 3 | AB112: 1 | AC112: 0 | AD112: 0 | AE112: 2 | AF112: 3 | AG112: 1 | AH112: 1 | AI112: 3 | AJ112: 1 | AK112: 3 | AL112: 1 | AM112: 5 | AN112: 2 | AO112: 1 | AP112: 1 | AQ112: 1 | AR112: 1 | AS112: 0
A113: 112 | B113: 22088 Castillazuelo | C113: 22088 | D113: 84 | E113: 1 | F113: 4 | G113: 2 | H113: 5 | I113: 2 | J113: 3 | K113: 5 | L113: 4 | M113: 7 | N113: 4 | O113: 10 | P113: 6 | Q113: 8 | R113: 3 | S113: 7 | T113: 2 | U113: 4 | V113: 6 | W113: 0 | X113: 1 | Y113: 80 | Z113: 2 | AA113: 1 | AB113: 2 | AC113: 5 | AD113: 1 | AE113: 3 | AF113: 0 | AG113: 3 | AH113: 4 | AI113: 6 | AJ113: 11 | AK113: 9 | AL113: 3 | AM113: 3 | AN113: 8 | AO113: 3 | AP113: 6 | AQ113: 6 | AR113: 2 | AS113: 2
A114: 113 | B114: 22089 Castillonroy | C114: 22089 | D114: 174 | E114: 4 | F114: 3 | G114: 7 | H114: 7 | I114: 6 | J114: 14 | K114: 9 | L114: 14 | M114: 10 | N114: 16 | O114: 11 | P114: 14 | Q114: 10 | R114: 17 | S114: 11 | T114: 13 | U114: 4 | V114: 3 | W114: 0 | X114: 1 | Y114: 159 | Z114: 9 | AA114: 4 | AB114: 6 | AC114: 6 | AD114: 4 | AE114: 9 | AF114: 8 | AG114: 12 | AH114: 9 | AI114: 10 | AJ114: 5 | AK114: 13 | AL114: 13 | AM114: 14 | AN114: 9 | AO114: 8 | AP114: 5 | AQ114: 9 | AR114: 5 | AS114: 1
A115: 114 | B115: 22090 Colungo | C115: 22090 | D115: 66 | E115: 1 | F115: 1 | G115: 3 | H115: 2 | I115: 0 | J115: 1 | K115: 1 | L115: 6 | M115: 2 | N115: 10 | O115: 8 | P115: 5 | Q115: 6 | R115: 3 | S115: 7 | T115: 5 | U115: 2 | V115: 2 | W115: 1 | X115: 0 | Y115: 52 | Z115: 4 | AA115: 1 | AB115: 0 | AC115: 1 | AD115: 2 | AE115: 1 | AF115: 3 | AG115: 5 | AH115: 4 | AI115: 3 | AJ115: 4 | AK115: 0 | AL115: 1 | AM115: 4 | AN115: 7 | AO115: 3 | AP115: 3 | AQ115: 3 | AR115: 1 | AS115: 2
A116: 115 | B116: 22094 Chalamera | C116: 22094 | D116: 60 | E116: 0 | F116: 2 | G116: 3 | H116: 2 | I116: 3 | J116: 4 | K116: 2 | L116: 2 | M116: 3 | N116: 1 | O116: 5 | P116: 8 | Q116: 8 | R116: 4 | S116: 1 | T116: 2 | U116: 2 | V116: 4 | W116: 3 | X116: 1 | Y116: 54 | Z116: 1 | AA116: 0 | AB116: 5 | AC116: 3 | AD116: 3 | AE116: 3 | AF116: 0 | AG116: 3 | AH116: 1 | AI116: 2 | AJ116: 4 | AK116: 4 | AL116: 4 | AM116: 4 | AN116: 2 | AO116: 3 | AP116: 5 | AQ116: 2 | AR116: 3 | AS116: 2
A117: 116 | B117: 22095 Chía | C117: 22095 | D117: 52 | E117: 2 | F117: 3 | G117: 4 | H117: 3 | I117: 3 | J117: 1 | K117: 4 | L117: 1 | M117: 6 | N117: 4 | O117: 2 | P117: 6 | Q117: 2 | R117: 2 | S117: 4 | T117: 1 | U117: 1 | V117: 1 | W117: 2 | X117: 0 | Y117: 31 | Z117: 1 | AA117: 2 | AB117: 0 | AC117: 0 | AD117: 0 | AE117: 1 | AF117: 2 | AG117: 2 | AH117: 3 | AI117: 2 | AJ117: 3 | AK117: 3 | AL117: 1 | AM117: 1 | AN117: 1 | AO117: 1 | AP117: 1 | AQ117: 1 | AR117: 5 | AS117: 1
A118: 117 | B118: 22096 Chimillas | C118: 22096 | D118: 208 | E118: 6 | F118: 12 | G118: 19 | H118: 6 | I118: 4 | J118: 13 | K118: 10 | L118: 14 | M118: 13 | N118: 23 | O118: 17 | P118: 24 | Q118: 13 | R118: 10 | S118: 12 | T118: 6 | U118: 1 | V118: 3 | W118: 2 | X118: 0 | Y118: 203 | Z118: 1 | AA118: 8 | AB118: 11 | AC118: 14 | AD118: 12 | AE118: 12 | AF118: 10 | AG118: 5 | AH118: 19 | AI118: 16 | AJ118: 17 | AK118: 15 | AL118: 13 | AM118: 15 | AN118: 11 | AO118: 7 | AP118: 5 | AQ118: 5 | AR118: 5 | AS118: 2
A119: 118 | B119: 22099 Esplús | C119: 22099 | D119: 335 | E119: 12 | F119: 19 | G119: 8 | H119: 12 | I119: 14 | J119: 22 | K119: 13 | L119: 30 | M119: 26 | N119: 21 | O119: 25 | P119: 34 | Q119: 25 | R119: 17 | S119: 14 | T119: 13 | U119: 13 | V119: 12 | W119: 3 | X119: 2 | Y119: 314 | Z119: 13 | AA119: 9 | AB119: 4 | AC119: 11 | AD119: 20 | AE119: 11 | AF119: 13 | AG119: 14 | AH119: 26 | AI119: 23 | AJ119: 24 | AK119: 22 | AL119: 15 | AM119: 17 | AN119: 29 | AO119: 15 | AP119: 18 | AQ119: 16 | AR119: 8 | AS119: 6
A120: 119 | B120: 22102 Estada | C120: 22102 | D120: 119 | E120: 3 | F120: 3 | G120: 3 | H120: 3 | I120: 8 | J120: 8 | K120: 9 | L120: 2 | M120: 9 | N120: 6 | O120: 6 | P120: 15 | Q120: 10 | R120: 10 | S120: 9 | T120: 6 | U120: 5 | V120: 3 | W120: 1 | X120: 0 | Y120: 85 | Z120: 0 | AA120: 1 | AB120: 4 | AC120: 1 | AD120: 3 | AE120: 5 | AF120: 4 | AG120: 1 | AH120: 2 | AI120: 6 | AJ120: 9 | AK120: 9 | AL120: 8 | AM120: 6 | AN120: 5 | AO120: 10 | AP120: 2 | AQ120: 4 | AR120: 5 | AS120: 0
A121: 120 | B121: 22103 Estadilla | C121: 22103 | D121: 403 | E121: 18 | F121: 18 | G121: 12 | H121: 9 | I121: 23 | J121: 16 | K121: 14 | L121: 33 | M121: 40 | N121: 23 | O121: 34 | P121: 28 | Q121: 27 | R121: 19 | S121: 27 | T121: 24 | U121: 10 | V121: 21 | W121: 5 | X121: 2 | Y121: 400 | Z121: 10 | AA121: 13 | AB121: 19 | AC121: 17 | AD121: 15 | AE121: 18 | AF121: 20 | AG121: 24 | AH121: 30 | AI121: 19 | AJ121: 30 | AK121: 28 | AL121: 26 | AM121: 24 | AN121: 21 | AO121: 27 | AP121: 22 | AQ121: 23 | AR121: 9 | AS121: 5
A122: 121 | B122: 22105 Estopiñán del Castillo | C122: 22105 | D122: 62 | E122: 0 | F122: 0 | G122: 4 | H122: 4 | I122: 2 | J122: 3 | K122: 2 | L122: 2 | M122: 3 | N122: 4 | O122: 8 | P122: 6 | Q122: 4 | R122: 5 | S122: 5 | T122: 1 | U122: 3 | V122: 5 | W122: 1 | X122: 0 | Y122: 58 | Z122: 0 | AA122: 1 | AB122: 3 | AC122: 3 | AD122: 2 | AE122: 2 | AF122: 0 | AG122: 3 | AH122: 2 | AI122: 4 | AJ122: 9 | AK122: 8 | AL122: 2 | AM122: 4 | AN122: 3 | AO122: 1 | AP122: 2 | AQ122: 4 | AR122: 4 | AS122: 1
A123: 122 | B123: 22106 Fago | C123: 22106 | D123: 11 | E123: 0 | F123: 0 | G123: 0 | H123: 0 | I123: 0 | J123: 1 | K123: 0 | L123: 0 | M123: 0 | N123: 1 | O123: 3 | P123: 1 | Q123: 0 | R123: 2 | S123: 1 | T123: 0 | U123: 0 | V123: 2 | W123: 0 | X123: 0 | Y123: 10 | Z123: 0 | AA123: 0 | AB123: 0 | AC123: 1 | AD123: 0 | AE123: 0 | AF123: 1 | AG123: 1 | AH123: 1 | AI123: 0 | AJ123: 1 | AK123: 0 | AL123: 1 | AM123: 0 | AN123: 0 | AO123: 1 | AP123: 2 | AQ123: 0 | AR123: 1 | AS123: 0
A124: 123 | B124: 22107 Fanlo | C124: 22107 | D124: 67 | E124: 0 | F124: 2 | G124: 1 | H124: 0 | I124: 0 | J124: 1 | K124: 4 | L124: 0 | M124: 8 | N124: 5 | O124: 6 | P124: 9 | Q124: 9 | R124: 7 | S124: 6 | T124: 3 | U124: 3 | V124: 3 | W124: 0 | X124: 0 | Y124: 36 | Z124: 0 | AA124: 2 | AB124: 0 | AC124: 0 | AD124: 0 | AE124: 2 | AF124: 1 | AG124: 2 | AH124: 4 | AI124: 2 | AJ124: 5 | AK124: 2 | AL124: 4 | AM124: 4 | AN124: 2 | AO124: 1 | AP124: 1 | AQ124: 2 | AR124: 1 | AS124: 1
A125: 124 | B125: 22109 Fiscal | C125: 22109 | D125: 185 | E125: 5 | F125: 9 | G125: 8 | H125: 6 | I125: 5 | J125: 9 | K125: 10 | L125: 10 | M125: 12 | N125: 20 | O125: 19 | P125: 16 | Q125: 14 | R125: 11 | S125: 8 | T125: 7 | U125: 7 | V125: 6 | W125: 2 | X125: 1 | Y125: 159 | Z125: 7 | AA125: 5 | AB125: 9 | AC125: 5 | AD125: 7 | AE125: 6 | AF125: 11 | AG125: 9 | AH125: 15 | AI125: 16 | AJ125: 9 | AK125: 14 | AL125: 11 | AM125: 4 | AN125: 10 | AO125: 7 | AP125: 8 | AQ125: 3 | AR125: 3 | AS125: 0
A126: 125 | B126: 22110 Fonz | C126: 22110 | D126: 431 | E126: 6 | F126: 6 | G126: 17 | H126: 21 | I126: 26 | J126: 23 | K126: 27 | L126: 15 | M126: 28 | N126: 30 | O126: 34 | P126: 34 | Q126: 33 | R126: 30 | S126: 29 | T126: 26 | U126: 23 | V126: 19 | W126: 4 | X126: 0 | Y126: 414 | Z126: 6 | AA126: 11 | AB126: 21 | AC126: 21 | AD126: 16 | AE126: 11 | AF126: 13 | AG126: 16 | AH126: 27 | AI126: 34 | AJ126: 25 | AK126: 26 | AL126: 31 | AM126: 26 | AN126: 23 | AO126: 32 | AP126: 25 | AQ126: 28 | AR126: 16 | AS126: 6
A127: 126 | B127: 22111 Foradada del Toscar | C127: 22111 | D127: 86 | E127: 0 | F127: 1 | G127: 3 | H127: 3 | I127: 1 | J127: 2 | K127: 4 | L127: 4 | M127: 6 | N127: 3 | O127: 9 | P127: 11 | Q127: 9 | R127: 7 | S127: 7 | T127: 5 | U127: 5 | V127: 4 | W127: 1 | X127: 1 | Y127: 72 | Z127: 1 | AA127: 3 | AB127: 1 | AC127: 2 | AD127: 2 | AE127: 3 | AF127: 2 | AG127: 2 | AH127: 7 | AI127: 3 | AJ127: 6 | AK127: 7 | AL127: 6 | AM127: 8 | AN127: 6 | AO127: 3 | AP127: 2 | AQ127: 6 | AR127: 1 | AS127: 1
A128: 127 | B128: 22112 Fraga | C128: 22112 | D128: 7830 | E128: 391 | F128: 414 | G128: 441 | H128: 408 | I128: 471 | J128: 439 | K128: 509 | L128: 578 | M128: 758 | N128: 685 | O128: 607 | P128: 530 | Q128: 427 | R128: 350 | S128: 264 | T128: 213 | U128: 165 | V128: 123 | W128: 46 | X128: 11 | Y128: 7420 | Z128: 363 | AA128: 444 | AB128: 391 | AC128: 367 | AD128: 365 | AE128: 389 | AF128: 479 | AG128: 517 | AH128: 615 | AI128: 567 | AJ128: 519 | AK128: 456 | AL128: 463 | AM128: 346 | AN128: 311 | AO128: 270 | AP128: 227 | AQ128: 206 | AR128: 88 | AS128: 37
A129: 128 | B129: 22113 Fueva (La) | C129: 22113 | D129: 329 | E129: 16 | F129: 18 | G129: 20 | H129: 7 | I129: 14 | J129: 17 | K129: 13 | L129: 19 | M129: 29 | N129: 20 | O129: 17 | P129: 23 | Q129: 30 | R129: 23 | S129: 23 | T129: 19 | U129: 6 | V129: 9 | W129: 5 | X129: 1 | Y129: 283 | Z129: 12 | AA129: 13 | AB129: 12 | AC129: 4 | AD129: 14 | AE129: 8 | AF129: 16 | AG129: 28 | AH129: 13 | AI129: 19 | AJ129: 19 | AK129: 20 | AL129: 21 | AM129: 30 | AN129: 15 | AO129: 9 | AP129: 11 | AQ129: 11 | AR129: 3 | AS129: 5
A130: 129 | B130: 22114 Gistaín | C130: 22114 | D130: 76 | E130: 1 | F130: 0 | G130: 4 | H130: 2 | I130: 1 | J130: 0 | K130: 2 | L130: 3 | M130: 6 | N130: 5 | O130: 7 | P130: 8 | Q130: 4 | R130: 3 | S130: 8 | T130: 11 | U130: 5 | V130: 5 | W130: 1 | X130: 0 | Y130: 57 | Z130: 2 | AA130: 3 | AB130: 4 | AC130: 2 | AD130: 0 | AE130: 1 | AF130: 1 | AG130: 4 | AH130: 7 | AI130: 5 | AJ130: 4 | AK130: 3 | AL130: 1 | AM130: 2 | AN130: 6 | AO130: 4 | AP130: 4 | AQ130: 4 | AR130: 0 | AS130: 0
A131: 130 | B131: 22115 Grado (El) | C131: 22115 | D131: 205 | E131: 4 | F131: 2 | G131: 3 | H131: 4 | I131: 6 | J131: 10 | K131: 15 | L131: 13 | M131: 9 | N131: 10 | O131: 19 | P131: 23 | Q131: 14 | R131: 23 | S131: 20 | T131: 7 | U131: 5 | V131: 11 | W131: 6 | X131: 1 | Y131: =(SUM(Z131:AS131))+0 -> 188 | Z131: 2 | AA131: 5 | AB131: 4 | AC131: 3 | AD131: 6 | AE131: 7 | AF131: 9 | AG131: 8 | AH131: 7 | AI131: 10 | AJ131: 20 | AK131: 19 | AL131: 19 | AM131: 12 | AN131: 14 | AO131: 9 | AP131: 21 | AQ131: 5 | AR131: 4 | AS131: 4
A132: 131 | B132: 22116 Grañén | C132: 22116 | D132: =SUM(E132:X132) -> 907 | E132: 34 | F132: 33 | G132: 36 | H132: 26 | I132: 45 | J132: 53 | K132: 58 | L132: 64 | M132: 65 | N132: 71 | O132: 66 | P132: 68 | Q132: 77 | R132: 54 | S132: 53 | T132: 35 | U132: 31 | V132: 22 | W132: 16 | X132: 0 | Y132: 833 | Z132: 29 | AA132: 30 | AB132: 33 | AC132: 27 | AD132: 30 | AE132: 40 | AF132: 51 | AG132: 50 | AH132: 64 | AI132: 54 | AJ132: 51 | AK132: 71 | AL132: 58 | AM132: 41 | AN132: 43 | AO132: 47 | AP132: 37 | AQ132: 41 | AR132: 24 | AS132: 12
A133: 132 | B133: 22117 Graus | C133: 22117 | D133: 1707 | E133: 78 | F133: 71 | G133: 65 | H133: 92 | I133: 75 | J133: 88 | K133: 94 | L133: 101 | M133: 141 | N133: 128 | O133: 124 | P133: 160 | Q133: 123 | R133: 102 | S133: 99 | T133: 50 | U133: 51 | V133: 43 | W133: 14 | X133: 8 | Y133: 1727 | Z133: 71 | AA133: 85 | AB133: 68 | AC133: 74 | AD133: 81 | AE133: 85 | AF133: 82 | AG133: 116 | AH133: 118 | AI133: 102 | AJ133: 139 | AK133: 151 | AL133: 113 | AM133: 90 | AN133: 83 | AO133: 75 | AP133: 58 | AQ133: 82 | AR133: 41 | AS133: 13
A134: 133 | B134: 22119 Gurrea de Gállego | C134: 22119 | D134: 756 | E134: 23 | F134: 21 | G134: 24 | H134: 18 | I134: 20 | J134: 38 | K134: 31 | L134: 49 | M134: 54 | N134: 59 | O134: 63 | P134: 59 | Q134: 68 | R134: 61 | S134: 58 | T134: 50 | U134: 20 | V134: 28 | W134: 11 | X134: 1 | Y134: 722 | Z134: 25 | AA134: 20 | AB134: 20 | AC134: 19 | AD134: 15 | AE134: 21 | AF134: 40 | AG134: 36 | AH134: 48 | AI134: 56 | AJ134: 49 | AK134: 45 | AL134: 63 | AM134: 53 | AN134: 50 | AO134: 51 | AP134: 38 | AQ134: 44 | AR134: 17 | AS134: 12
A135: 134 | B135: 22122 Hoz de Jaca | C135: 22122 | D135: 36 | E135: 0 | F135: 0 | G135: 0 | H135: 1 | I135: 3 | J135: 0 | K135: 1 | L135: 0 | M135: 3 | N135: 3 | O135: 5 | P135: 6 | Q135: 3 | R135: 4 | S135: 1 | T135: 2 | U135: 2 | V135: 1 | W135: 1 | X135: 0 | Y135: 32 | Z135: 0 | AA135: 0 | AB135: 1 | AC135: 4 | AD135: 0 | AE135: 1 | AF135: 1 | AG135: 0 | AH135: 1 | AI135: 2 | AJ135: 5 | AK135: 5 | AL135: 2 | AM135: 4 | AN135: 2 | AO135: 3 | AP135: 0 | AQ135: 1 | AR135: 0 | AS135: 0
A136: 135 | B136: 22124 Huerto | C136: 22124 | D136: 123 | E136: 3 | F136: 3 | G136: 5 | H136: 3 | I136: 7 | J136: 5 | K136: 3 | L136: 6 | M136: 14 | N136: 8 | O136: 12 | P136: 11 | Q136: 10 | R136: 7 | S136: 6 | T136: 6 | U136: 9 | V136: 2 | W136: 2 | X136: 1 | Y136: 104 | Z136: 1 | AA136: 5 | AB136: 4 | AC136: 1 | AD136: 4 | AE136: 4 | AF136: 4 | AG136: 8 | AH136: 3 | AI136: 5 | AJ136: 8 | AK136: 10 | AL136: 9 | AM136: 1 | AN136: 7 | AO136: 6 | AP136: 13 | AQ136: 7 | AR136: 4 | AS136: 0
A137: 136 | B137: 22125 Huesca | C137: 22125 | D137: 25516 | E137: 1167 | F137: 1419 | G137: 1499 | H137: 1412 | I137: 1423 | J137: 1389 | K137: 1428 | L137: 1724 | M137: 2067 | N137: 2033 | O137: 1886 | P137: 1836 | Q137: 1672 | R137: 1330 | S137: 1157 | T137: 814 | U137: 535 | V137: 472 | W137: 203 | X137: 50 | Y137: 27913 | Z137: 1145 | AA137: 1406 | AB137: 1434 | AC137: 1389 | AD137: 1332 | AE137: 1363 | AF137: 1422 | AG137: 1752 | AH137: 2162 | AI137: 2133 | AJ137: 2047 | AK137: 1974 | AL137: 1891 | AM137: 1605 | AN137: 1398 | AO137: 1145 | AP137: 834 | AQ137: 812 | AR137: 491 | AS137: 178
A138: 137 | B138: 22126 Ibieca | C138: 22126 | D138: 61 | E138: 0 | F138: 1 | G138: 1 | H138: 0 | I138: 1 | J138: 4 | K138: 2 | L138: 2 | M138: 2 | N138: 5 | O138: 7 | P138: 10 | Q138: 2 | R138: 6 | S138: 5 | T138: 8 | U138: 2 | V138: 1 | W138: 1 | X138: 1 | Y138: 52 | Z138: 1 | AA138: 0 | AB138: 2 | AC138: 3 | AD138: 2 | AE138: 3 | AF138: 2 | AG138: 2 | AH138: 1 | AI138: 2 | AJ138: 4 | AK138: 3 | AL138: 4 | AM138: 6 | AN138: 7 | AO138: 3 | AP138: 1 | AQ138: 4 | AR138: 1 | AS138: 1
A139: 138 | B139: 22127 Igriés | C139: 22127 | D139: 375 | E139: 12 | F139: 22 | G139: 30 | H139: 27 | I139: 22 | J139: 15 | K139: 11 | L139: 25 | M139: 33 | N139: 50 | O139: 33 | P139: 26 | Q139: 27 | R139: 18 | S139: 8 | T139: 5 | U139: 5 | V139: 5 | W139: 1 | X139: 0 | Y139: 328 | Z139: 14 | AA139: 17 | AB139: 31 | AC139: 23 | AD139: 19 | AE139: 15 | AF139: 13 | AG139: 19 | AH139: 29 | AI139: 34 | AJ139: 35 | AK139: 24 | AL139: 13 | AM139: 13 | AN139: 12 | AO139: 6 | AP139: 2 | AQ139: 7 | AR139: 2 | AS139: 0
A140: 139 | B140: 22128 Ilche | C140: 22128 | D140: 92 | E140: 0 | F140: 1 | G140: 1 | H140: 1 | I140: 2 | J140: 2 | K140: 10 | L140: 6 | M140: 6 | N140: 9 | O140: 6 | P140: 6 | Q140: 8 | R140: 10 | S140: 8 | T140: 1 | U140: 6 | V140: 6 | W140: 2 | X140: 1 | Y140: 93 | Z140: 1 | AA140: 0 | AB140: 2 | AC140: 2 | AD140: 5 | AE140: 1 | AF140: 6 | AG140: 5 | AH140: 5 | AI140: 6 | AJ140: 4 | AK140: 8 | AL140: 7 | AM140: 2 | AN140: 8 | AO140: 8 | AP140: 8 | AQ140: 9 | AR140: 5 | AS140: 1
A141: 140 | B141: 22129 Isábena | C141: 22129 | D141: 127 | E141: 2 | F141: 2 | G141: 3 | H141: 2 | I141: 11 | J141: 10 | K141: 13 | L141: 8 | M141: 6 | N141: 7 | O141: 11 | P141: 8 | Q141: 7 | R141: 14 | S141: 11 | T141: 6 | U141: 3 | V141: 1 | W141: 1 | X141: 1 | Y141: 120 | Z141: 4 | AA141: 1 | AB141: 2 | AC141: 4 | AD141: 6 | AE141: 8 | AF141: 6 | AG141: 6 | AH141: 7 | AI141: 8 | AJ141: 10 | AK141: 13 | AL141: 10 | AM141: 9 | AN141: 7 | AO141: 5 | AP141: 7 | AQ141: 3 | AR141: 1 | AS141: 3
A142: 141 | B142: 22130 Jaca | C142: 22130 | D142: 6544 | E142: 254 | F142: 281 | G142: 364 | H142: 307 | I142: 373 | J142: 352 | K142: 419 | L142: 462 | M142: 567 | N142: 546 | O142: 512 | P142: 513 | Q142: 463 | R142: 346 | S142: 259 | T142: 191 | U142: 157 | V142: 120 | W142: 46 | X142: 12 | Y142: 6800 | Z142: 256 | AA142: 343 | AB142: 334 | AC142: 317 | AD142: 337 | AE142: 317 | AF142: 335 | AG142: 424 | AH142: 564 | AI142: 548 | AJ142: 558 | AK142: 556 | AL142: 474 | AM142: 303 | AN142: 285 | AO142: 235 | AP142: 220 | AQ142: 217 | AR142: 138 | AS142: 39
A143: 142 | B143: 22131 Jasa | C143: 22131 | D143: 55 | E143: 0 | F143: 3 | G143: 5 | H143: 1 | I143: 2 | J143: 1 | K143: 0 | L143: 1 | M143: 3 | N143: 1 | O143: 6 | P143: 10 | Q143: 5 | R143: 5 | S143: 4 | T143: 2 | U143: 3 | V143: 2 | W143: 1 | X143: 0 | Y143: 39 | Z143: 0 | AA143: 0 | AB143: 0 | AC143: 0 | AD143: 1 | AE143: 5 | AF143: 1 | AG143: 2 | AH143: 2 | AI143: 4 | AJ143: 2 | AK143: 7 | AL143: 4 | AM143: 1 | AN143: 2 | AO143: 2 | AP143: 2 | AQ143: 1 | AR143: 3 | AS143: 0
A144: 143 | B144: 22133 Labuerda | C144: 22133 | D144: 85 | E144: 1 | F144: 8 | G144: 3 | H144: 2 | I144: 2 | J144: 6 | K144: 5 | L144: 3 | M144: 3 | N144: 9 | O144: 2 | P144: 9 | Q144: 12 | R144: 8 | S144: 1 | T144: 2 | U144: 3 | V144: 5 | W144: 1 | X144: 0 | Y144: 69 | Z144: 3 | AA144: 1 | AB144: 4 | AC144: 4 | AD144: 5 | AE144: 3 | AF144: 6 | AG144: 5 | AH144: 6 | AI144: 4 | AJ144: 5 | AK144: 7 | AL144: 5 | AM144: 2 | AN144: 2 | AO144: 3 | AP144: 0 | AQ144: 3 | AR144: 1 | AS144: 0
A145: 144 | B145: 22135 Laluenga | C145: 22135 | D145: 103 | E145: 2 | F145: 1 | G145: 1 | H145: 3 | I145: 5 | J145: 6 | K145: 8 | L145: 5 | M145: 7 | N145: 11 | O145: 9 | P145: 7 | Q145: 8 | R145: 5 | S145: 6 | T145: 8 | U145: 5 | V145: 5 | W145: 1 | X145: 0 | Y145: 91 | Z145: 3 | AA145: 3 | AB145: 4 | AC145: 4 | AD145: 2 | AE145: 4 | AF145: 5 | AG145: 3 | AH145: 5 | AI145: 4 | AJ145: 9 | AK145: 6 | AL145: 3 | AM145: 5 | AN145: 7 | AO145: 7 | AP145: 7 | AQ145: 9 | AR145: 1 | AS145: 0
A146: 145 | B146: 22136 Lalueza | C146: 22136 | D146: 460 | E146: 6 | F146: 9 | G146: 17 | H146: 17 | I146: 23 | J146: 22 | K146: 14 | L146: 29 | M146: 44 | N146: 26 | O146: 37 | P146: 38 | Q146: 38 | R146: 38 | S146: 33 | T146: 23 | U146: 18 | V146: 20 | W146: 6 | X146: 2 | Y146: 425 | Z146: 5 | AA146: 19 | AB146: 9 | AC146: 15 | AD146: 13 | AE146: 19 | AF146: 13 | AG146: 25 | AH146: 31 | AI146: 29 | AJ146: 25 | AK146: 26 | AL146: 37 | AM146: 32 | AN146: 34 | AO146: 32 | AP146: 22 | AQ146: 26 | AR146: 11 | AS146: 2
A147: 146 | B147: 22137 Lanaja | C147: 22137 | D147: 623 | E147: 15 | F147: 20 | G147: 17 | H147: 12 | I147: 25 | J147: 29 | K147: 34 | L147: 42 | M147: 43 | N147: 35 | O147: 56 | P147: 62 | Q147: 65 | R147: 47 | S147: 28 | T147: 36 | U147: 25 | V147: 16 | W147: 14 | X147: 2 | Y147: 572 | Z147: 16 | AA147: 10 | AB147: 16 | AC147: 13 | AD147: 25 | AE147: 29 | AF147: 30 | AG147: 33 | AH147: 23 | AI147: 24 | AJ147: 45 | AK147: 54 | AL147: 48 | AM147: 31 | AN147: 27 | AO147: 31 | AP147: 42 | AQ147: 50 | AR147: 22 | AS147: 3
A148: 147 | B148: 22139 Laperdiguera | C148: 22139 | D148: 50 | E148: 0 | F148: 1 | G148: 0 | H148: 1 | I148: 1 | J148: 2 | K148: 4 | L148: 4 | M148: 3 | N148: 2 | O148: 5 | P148: 5 | Q148: 5 | R148: 4 | S148: 1 | T148: 3 | U148: 5 | V148: 3 | W148: 1 | X148: 0 | Y148: 42 | Z148: 0 | AA148: 0 | AB148: 3 | AC148: 2 | AD148: 1 | AE148: 2 | AF148: 0 | AG148: 4 | AH148: 2 | AI148: 0 | AJ148: 3 | AK148: 3 | AL148: 6 | AM148: 2 | AN148: 2 | AO148: 5 | AP148: 3 | AQ148: 2 | AR148: 2 | AS148: 0
A149: 148 | B149: 22141 Lascellas-Ponzano | C149: 22141 | D149: 81 | E149: 2 | F149: 2 | G149: 3 | H149: 4 | I149: 3 | J149: 3 | K149: 6 | L149: 6 | M149: 7 | N149: 6 | O149: 3 | P149: 10 | Q149: 8 | R149: 2 | S149: 4 | T149: 3 | U149: 5 | V149: 2 | W149: 2 | X149: 0 | Y149: 52 | Z149: 0 | AA149: 3 | AB149: 2 | AC149: 3 | AD149: 2 | AE149: 0 | AF149: 1 | AG149: 1 | AH149: 3 | AI149: 5 | AJ149: 2 | AK149: 5 | AL149: 8 | AM149: 5 | AN149: 1 | AO149: 3 | AP149: 3 | AQ149: 4 | AR149: 1 | AS149: 0
A150: 149 | B150: 22142 Lascuarre | C150: 22142 | D150: 74 | E150: 4 | F150: 7 | G150: 1 | H150: 0 | I150: 2 | J150: 4 | K150: 4 | L150: 7 | M150: 5 | N150: 6 | O150: 3 | P150: 4 | Q150: 6 | R150: 6 | S150: 5 | T150: 5 | U150: 1 | V150: 2 | W150: 2 | X150: 0 | Y150: 73 | Z150: 2 | AA150: 4 | AB150: 3 | AC150: 2 | AD150: 3 | AE150: 2 | AF150: 5 | AG150: 4 | AH150: 4 | AI150: 5 | AJ150: 2 | AK150: 8 | AL150: 9 | AM150: 3 | AN150: 4 | AO150: 5 | AP150: 5 | AQ150: 2 | AR150: 0 | AS150: 1
A151: 150 | B151: 22143 Laspaúles | C151: 22143 | D151: 124 | E151: 1 | F151: 6 | G151: 2 | H151: 5 | I151: 5 | J151: 6 | K151: 5 | L151: 8 | M151: 9 | N151: 7 | O151: 9 | P151: 9 | Q151: 12 | R151: 8 | S151: 10 | T151: 8 | U151: 7 | V151: 3 | W151: 3 | X151: 1 | Y151: 98 | Z151: 2 | AA151: 1 | AB151: 1 | AC151: 5 | AD151: 1 | AE151: 5 | AF151: 4 | AG151: 10 | AH151: 6 | AI151: 14 | AJ151: 7 | AK151: 7 | AL151: 7 | AM151: 5 | AN151: 7 | AO151: 3 | AP151: 7 | AQ151: 5 | AR151: 0 | AS151: 1
A152: 151 | B152: 22144 Laspuña | C152: 22144 | D152: 159 | E152: 6 | F152: 6 | G152: 4 | H152: 4 | I152: 2 | J152: 4 | K152: 11 | L152: 8 | M152: 17 | N152: 11 | O152: 14 | P152: 6 | Q152: 11 | R152: 14 | S152: 19 | T152: 3 | U152: 6 | V152: 10 | W152: 2 | X152: 1 | Y152: 129 | Z152: 5 | AA152: 3 | AB152: 3 | AC152: 5 | AD152: 6 | AE152: 4 | AF152: 7 | AG152: 8 | AH152: 13 | AI152: 8 | AJ152: 7 | AK152: 6 | AL152: 9 | AM152: 12 | AN152: 6 | AO152: 9 | AP152: 6 | AQ152: 7 | AR152: 5 | AS152: 0
A153: 152 | B153: 22149 Loarre | C153: 22149 | D153: 190 | E153: 2 | F153: 3 | G153: 2 | H153: 5 | I153: 6 | J153: 9 | K153: 6 | L153: 8 | M153: 14 | N153: 11 | O153: 24 | P153: 21 | Q153: 11 | R153: 13 | S153: 20 | T153: 15 | U153: 6 | V153: 8 | W153: 5 | X153: 1 | Y153: 155 | Z153: 3 | AA153: 4 | AB153: 3 | AC153: 5 | AD153: 5 | AE153: 4 | AF153: 4 | AG153: 8 | AH153: 14 | AI153: 16 | AJ153: 6 | AK153: 14 | AL153: 13 | AM153: 11 | AN153: 7 | AO153: 16 | AP153: 9 | AQ153: 9 | AR153: 3 | AS153: 1
A154: 153 | B154: 22150 Loporzano | C154: 22150 | D154: 322 | E154: 5 | F154: 6 | G154: 12 | H154: 9 | I154: 8 | J154: 10 | K154: 10 | L154: 26 | M154: 26 | N154: 26 | O154: 20 | P154: 34 | Q154: 28 | R154: 25 | S154: 34 | T154: 26 | U154: 8 | V154: 6 | W154: 0 | X154: 3 | Y154: 252 | Z154: 5 | AA154: 8 | AB154: 8 | AC154: 10 | AD154: 3 | AE154: 6 | AF154: 14 | AG154: 17 | AH154: 17 | AI154: 21 | AJ154: 24 | AK154: 17 | AL154: 21 | AM154: 23 | AN154: 25 | AO154: 14 | AP154: 8 | AQ154: 5 | AR154: 4 | AS154: 2
A155: 154 | B155: 22151 Loscorrales | C155: 22151 | D155: 48 | E155: 1 | F155: 1 | G155: 0 | H155: 0 | I155: 2 | J155: 3 | K155: 1 | L155: 5 | M155: 5 | N155: 5 | O155: 6 | P155: 3 | Q155: 4 | R155: 5 | S155: 3 | T155: 2 | U155: 1 | V155: 0 | W155: 1 | X155: 0 | Y155: 45 | Z155: 3 | AA155: 2 | AB155: 5 | AC155: 0 | AD155: 1 | AE155: 3 | AF155: 1 | AG155: 0 | AH155: 3 | AI155: 5 | AJ155: 1 | AK155: 5 | AL155: 1 | AM155: 3 | AN155: 2 | AO155: 2 | AP155: 1 | AQ155: 4 | AR155: 0 | AS155: 3
A156: 155 | B156: 22155 Monesma y Cajigar | C156: 22155 | D156: 37 | E156: 0 | F156: 1 | G156: 0 | H156: 0 | I156: 2 | J156: 3 | K156: 1 | L156: 4 | M156: 1 | N156: 1 | O156: 3 | P156: 5 | Q156: 4 | R156: 4 | S156: 0 | T156: 2 | U156: 2 | V156: 4 | W156: 0 | X156: 0 | Y156: 32 | Z156: 0 | AA156: 1 | AB156: 0 | AC156: 0 | AD156: 1 | AE156: 0 | AF156: 1 | AG156: 3 | AH156: 1 | AI156: 1 | AJ156: 3 | AK156: 3 | AL156: 4 | AM156: 4 | AN156: 1 | AO156: 2 | AP156: 2 | AQ156: 2 | AR156: 3 | AS156: 0
A157: 156 | B157: 22156 Monflorite-Lascasas | C157: 22156 | D157: 228 | E157: 16 | F157: 15 | G157: 9 | H157: 8 | I157: 8 | J157: 15 | K157: 15 | L157: 19 | M157: 20 | N157: 26 | O157: 12 | P157: 14 | Q157: 19 | R157: 13 | S157: 8 | T157: 6 | U157: 2 | V157: 1 | W157: 2 | X157: 0 | Y157: 204 | Z157: 11 | AA157: 12 | AB157: 20 | AC157: 16 | AD157: 4 | AE157: 10 | AF157: 18 | AG157: 16 | AH157: 16 | AI157: 16 | AJ157: 13 | AK157: 12 | AL157: 17 | AM157: 8 | AN157: 4 | AO157: 2 | AP157: 1 | AQ157: 5 | AR157: 3 | AS157: 0
A158: 157 | B158: 22157 Montanuy | C158: 22157 | D158: 121 | E158: 1 | F158: 3 | G158: 1 | H158: 3 | I158: 5 | J158: 5 | K158: 5 | L158: 7 | M158: 8 | N158: 10 | O158: 10 | P158: 21 | Q158: 14 | R158: 12 | S158: 6 | T158: 2 | U158: 5 | V158: 1 | W158: 2 | X158: 0 | Y158: 94 | Z158: 1 | AA158: 2 | AB158: 2 | AC158: 4 | AD158: 1 | AE158: 8 | AF158: 3 | AG158: 7 | AH158: 4 | AI158: 7 | AJ158: 6 | AK158: 5 | AL158: 14 | AM158: 5 | AN158: 6 | AO158: 5 | AP158: 9 | AQ158: 3 | AR158: 2 | AS158: 0
A159: 158 | B159: 22158 Monzón | C159: 22158 | D159: 8791 | E159: 425 | F159: 488 | G159: 536 | H159: 500 | I159: 458 | J159: 458 | K159: 473 | L159: 584 | M159: 726 | N159: 732 | O159: 743 | P159: 712 | Q159: 512 | R159: 388 | S159: 356 | T159: 268 | U159: 199 | V159: 165 | W159: 51 | X159: 17 | Y159: 8571 | Z159: 364 | AA159: 477 | AB159: 443 | AC159: 430 | AD159: 458 | AE159: 403 | AF159: 461 | AG159: 532 | AH159: 640 | AI159: 681 | AJ159: 678 | AK159: 614 | AL159: 534 | AM159: 404 | AN159: 375 | AO159: 340 | AP159: 307 | AQ159: 255 | AR159: 132 | AS159: 43
A160: 159 | B160: 22160 Naval | C160: 22160 | D160: 141 | E160: 3 | F160: 2 | G160: 3 | H160: 5 | I160: 4 | J160: 11 | K160: 8 | L160: 9 | M160: 16 | N160: 9 | O160: 12 | P160: 11 | Q160: 13 | R160: 9 | S160: 9 | T160: 7 | U160: 3 | V160: 5 | W160: 1 | X160: 1 | Y160: 120 | Z160: 9 | AA160: 6 | AB160: 9 | AC160: 3 | AD160: 1 | AE160: 2 | AF160: 7 | AG160: 9 | AH160: 10 | AI160: 6 | AJ160: 5 | AK160: 12 | AL160: 10 | AM160: 6 | AN160: 6 | AO160: 5 | AP160: 5 | AQ160: 4 | AR160: 3 | AS160: 2
A161: 160 | B161: 22162 Novales | C161: 22162 | D161: 72 | E161: 2 | F161: 2 | G161: 2 | H161: 2 | I161: 1 | J161: 3 | K161: 4 | L161: 6 | M161: 13 | N161: 3 | O161: 3 | P161: 9 | Q161: 6 | R161: 4 | S161: 8 | T161: 1 | U161: 0 | V161: 2 | W161: 1 | X161: 0 | Y161: 75 | Z161: 0 | AA161: 3 | AB161: 3 | AC161: 3 | AD161: 1 | AE161: 3 | AF161: 4 | AG161: 8 | AH161: 6 | AI161: 4 | AJ161: 4 | AK161: 2 | AL161: 10 | AM161: 3 | AN161: 6 | AO161: 4 | AP161: 5 | AQ161: 3 | AR161: 3 | AS161: 0
A162: 161 | B162: 22163 Nueno | C162: 22163 | D162: 330 | E162: 11 | F162: 14 | G162: 18 | H162: 8 | I162: 21 | J162: 7 | K162: 20 | L162: 17 | M162: 24 | N162: 27 | O162: 22 | P162: 31 | Q162: 25 | R162: 30 | S162: 30 | T162: 17 | U162: 5 | V162: 2 | W162: 1 | X162: 0 | Y162: 257 | Z162: 9 | AA162: 12 | AB162: 23 | AC162: 16 | AD162: 6 | AE162: 8 | AF162: 11 | AG162: 17 | AH162: 14 | AI162: 28 | AJ162: 17 | AK162: 15 | AL162: 25 | AM162: 18 | AN162: 18 | AO162: 8 | AP162: 7 | AQ162: 3 | AR162: 1 | AS162: 1
A163: 162 | B163: 22164 Olvena | C163: 22164 | D163: 30 | E163: 2 | F163: 1 | G163: 2 | H163: 2 | I163: 1 | J163: 1 | K163: 1 | L163: 0 | M163: 4 | N163: 1 | O163: 1 | P163: 1 | Q163: 1 | R163: 2 | S163: 3 | T163: 3 | U163: 2 | V163: 1 | W163: 1 | X163: 0 | Y163: 28 | Z163: 0 | AA163: 1 | AB163: 3 | AC163: 0 | AD163: 1 | AE163: 1 | AF163: 0 | AG163: 0 | AH163: 3 | AI163: 1 | AJ163: 3 | AK163: 2 | AL163: 0 | AM163: 4 | AN163: 4 | AO163: 1 | AP163: 2 | AQ163: 0 | AR163: 1 | AS163: 1
A164: 163 | B164: 22165 Ontiñena | C164: 22165 | D164: 250 | E164: 2 | F164: 4 | G164: 2 | H164: 8 | I164: 11 | J164: 11 | K164: 20 | L164: 19 | M164: 15 | N164: 18 | O164: 17 | P164: 21 | Q164: 24 | R164: 16 | S164: 20 | T164: 13 | U164: 14 | V164: 10 | W164: 4 | X164: 1 | Y164: 250 | Z164: 5 | AA164: 12 | AB164: 9 | AC164: 4 | AD164: 11 | AE164: 15 | AF164: 12 | AG164: 14 | AH164: 10 | AI164: 9 | AJ164: 20 | AK164: 15 | AL164: 30 | AM164: 16 | AN164: 12 | AO164: 13 | AP164: 15 | AQ164: 13 | AR164: 12 | AS164: 3
A165: 164 | B165: 22167 Osso de Cinca | C165: 22167 | D165: 377 | E165: 9 | F165: 9 | G165: 6 | H165: 9 | I165: 23 | J165: 20 | K165: 25 | L165: 27 | M165: 35 | N165: 30 | O165: 30 | P165: 41 | Q165: 28 | R165: 20 | S165: 22 | T165: 17 | U165: 16 | V165: 7 | W165: 2 | X165: 1 | Y165: 294 | Z165: 6 | AA165: 11 | AB165: 12 | AC165: 13 | AD165: 17 | AE165: 16 | AF165: 15 | AG165: 11 | AH165: 17 | AI165: 17 | AJ165: 32 | AK165: 21 | AL165: 19 | AM165: 16 | AN165: 16 | AO165: 16 | AP165: 9 | AQ165: 18 | AR165: 10 | AS165: 2
A166: 165 | B166: 22168 Palo | C166: 22168 | D166: 14 | E166: 0 | F166: 0 | G166: 0 | H166: 0 | I166: 0 | J166: 0 | K166: 3 | L166: 0 | M166: 4 | N166: 0 | O166: 0 | P166: 0 | Q166: 2 | R166: 2 | S166: 1 | T166: 1 | U166: 0 | V166: 0 | W166: 0 | X166: 1 | Y166: 14 | Z166: 0 | AA166: 1 | AB166: 1 | AC166: 0 | AD166: 0 | AE166: 0 | AF166: 1 | AG166: 1 | AH166: 0 | AI166: 2 | AJ166: 0 | AK166: 1 | AL166: 0 | AM166: 2 | AN166: 2 | AO166: 1 | AP166: 1 | AQ166: 0 | AR166: 1 | AS166: 0
A167: 166 | B167: 22170 Panticosa | C167: 22170 | D167: 450 | E167: 16 | F167: 14 | G167: 11 | H167: 23 | I167: 22 | J167: 24 | K167: 34 | L167: 38 | M167: 44 | N167: 49 | O167: 40 | P167: 32 | Q167: 36 | R167: 25 | S167: 17 | T167: 7 | U167: 10 | V167: 8 | W167: 0 | X167: 0 | Y167: 399 | Z167: 17 | AA167: 12 | AB167: 5 | AC167: 17 | AD167: 25 | AE167: 26 | AF167: 34 | AG167: 38 | AH167: 33 | AI167: 26 | AJ167: 26 | AK167: 35 | AL167: 31 | AM167: 17 | AN167: 14 | AO167: 10 | AP167: 17 | AQ167: 9 | AR167: 4 | AS167: 3
A168: 167 | B168: 22172 Peñalba | C168: 22172 | D168: 385 | E168: 6 | F168: 14 | G168: 9 | H168: 9 | I168: 23 | J168: 24 | K168: 37 | L168: 25 | M168: 40 | N168: 29 | O168: 24 | P168: 29 | Q168: 24 | R168: 32 | S168: 13 | T168: 12 | U168: 21 | V168: 6 | W168: 5 | X168: 3 | Y168: 307 | Z168: 14 | AA168: 7 | AB168: 5 | AC168: 12 | AD168: 15 | AE168: 18 | AF168: 17 | AG168: 13 | AH168: 21 | AI168: 25 | AJ168: 12 | AK168: 35 | AL168: 18 | AM168: 22 | AN168: 18 | AO168: 19 | AP168: 13 | AQ168: 14 | AR168: 3 | AS168: 6
A169: 168 | B169: 22173 Peñas de Riglos (Las) | C169: 22173 | D169: 156 | E169: 1 | F169: 6 | G169: 1 | H169: 2 | I169: 5 | J169: 7 | K169: 7 | L169: 5 | M169: 11 | N169: 12 | O169: 15 | P169: 23 | Q169: 21 | R169: 14 | S169: 10 | T169: 9 | U169: 5 | V169: 1 | W169: 1 | X169: 0 | Y169: 99 | Z169: 1 | AA169: 3 | AB169: 5 | AC169: 1 | AD169: 2 | AE169: 4 | AF169: 4 | AG169: 7 | AH169: 8 | AI169: 4 | AJ169: 13 | AK169: 12 | AL169: 7 | AM169: 4 | AN169: 7 | AO169: 7 | AP169: 2 | AQ169: 3 | AR169: 3 | AS169: 2
A170: 169 | B170: 22174 Peralta de Alcofea | C170: 22174 | D170: 297 | E170: 5 | F170: 6 | G170: 8 | H170: 10 | I170: 16 | J170: 12 | K170: 14 | L170: 19 | M170: 24 | N170: 30 | O170: 29 | P170: 17 | Q170: 19 | R170: 19 | S170: 32 | T170: 13 | U170: 6 | V170: 11 | W170: 6 | X170: 1 | Y170: 279 | Z170: 7 | AA170: 9 | AB170: 7 | AC170: 7 | AD170: 11 | AE170: 5 | AF170: 10 | AG170: 17 | AH170: 20 | AI170: 22 | AJ170: 15 | AK170: 25 | AL170: 20 | AM170: 18 | AN170: 23 | AO170: 19 | AP170: 18 | AQ170: 19 | AR170: 6 | AS170: 1
A171: 170 | B171: 22175 Peralta de Calasanz | C171: 22175 | D171: 124 | E171: 1 | F171: 4 | G171: 4 | H171: 1 | I171: 2 | J171: 7 | K171: 2 | L171: 6 | M171: 13 | N171: 6 | O171: 11 | P171: 13 | Q171: 12 | R171: 11 | S171: 10 | T171: 4 | U171: 6 | V171: 7 | W171: 4 | X171: 0 | Y171: 102 | Z171: 1 | AA171: 3 | AB171: 5 | AC171: 1 | AD171: 5 | AE171: 2 | AF171: 2 | AG171: 2 | AH171: 13 | AI171: 6 | AJ171: 9 | AK171: 6 | AL171: 7 | AM171: 6 | AN171: 5 | AO171: 5 | AP171: 5 | AQ171: 13 | AR171: 4 | AS171: 2
A172: 171 | B172: 22176 Peraltilla | C172: 22176 | D172: 108 | E172: 5 | F172: 6 | G172: 1 | H172: 1 | I172: 3 | J172: 7 | K172: 9 | L172: 8 | M172: 9 | N172: 8 | O172: 8 | P172: 7 | Q172: 10 | R172: 10 | S172: 7 | T172: 4 | U172: 2 | V172: 2 | W172: 0 | X172: 1 | Y172: 116 | Z172: 5 | AA172: 4 | AB172: 5 | AC172: 2 | AD172: 7 | AE172: 8 | AF172: 10 | AG172: 3 | AH172: 3 | AI172: 9 | AJ172: 8 | AK172: 12 | AL172: 7 | AM172: 8 | AN172: 6 | AO172: 3 | AP172: 2 | AQ172: 8 | AR172: 5 | AS172: 1
A173: 172 | B173: 22177 Perarrúa | C173: 22177 | D173: 56 | E173: 4 | F173: 1 | G173: 0 | H173: 1 | I173: 3 | J173: 0 | K173: 4 | L173: 5 | M173: 4 | N173: 4 | O173: 8 | P173: 1 | Q173: 2 | R173: 6 | S173: 0 | T173: 6 | U173: 1 | V173: 4 | W173: 1 | X173: 1 | Y173: 51 | Z173: 3 | AA173: 2 | AB173: 1 | AC173: 0 | AD173: 1 | AE173: 2 | AF173: 4 | AG173: 3 | AH173: 3 | AI173: 3 | AJ173: 4 | AK173: 3 | AL173: 5 | AM173: 4 | AN173: 3 | AO173: 4 | AP173: 4 | AQ173: 0 | AR173: 2 | AS173: 0
A174: 173 | B174: 22178 Pertusa | C174: 22178 | D174: 78 | E174: 2 | F174: 1 | G174: 3 | H174: 5 | I174: 6 | J174: 3 | K174: 3 | L174: 4 | M174: 6 | N174: 9 | O174: 3 | P174: 3 | Q174: 4 | R174: 7 | S174: 13 | T174: 3 | U174: 1 | V174: 2 | W174: 0 | X174: 0 | Y174: 51 | Z174: 1 | AA174: 1 | AB174: 0 | AC174: 1 | AD174: 2 | AE174: 2 | AF174: 5 | AG174: 3 | AH174: 3 | AI174: 3 | AJ174: 3 | AK174: 3 | AL174: 5 | AM174: 6 | AN174: 8 | AO174: 1 | AP174: 1 | AQ174: 3 | AR174: 0 | AS174: 0
A175: 174 | B175: 22181 Piracés | C175: 22181 | D175: 49 | E175: 0 | F175: 1 | G175: 0 | H175: 2 | I175: 2 | J175: 0 | K175: 1 | L175: 4 | M175: 4 | N175: 4 | O175: 9 | P175: 6 | Q175: 3 | R175: 0 | S175: 2 | T175: 5 | U175: 1 | V175: 4 | W175: 1 | X175: 0 | Y175: 47 | Z175: 0 | AA175: 3 | AB175: 3 | AC175: 2 | AD175: 1 | AE175: 1 | AF175: 4 | AG175: 0 | AH175: 5 | AI175: 2 | AJ175: 5 | AK175: 1 | AL175: 2 | AM175: 3 | AN175: 2 | AO175: 6 | AP175: 3 | AQ175: 2 | AR175: 2 | AS175: 0
A176: 175 | B176: 22182 Plan | C176: 22182 | D176: 141 | E176: 2 | F176: 4 | G176: 6 | H176: 3 | I176: 1 | J176: 11 | K176: 10 | L176: 6 | M176: 6 | N176: 11 | O176: 13 | P176: 18 | Q176: 12 | R176: 13 | S176: 6 | T176: 7 | U176: 4 | V176: 7 | W176: 1 | X176: 0 | Y176: 133 | Z176: 2 | AA176: 3 | AB176: 9 | AC176: 10 | AD176: 2 | AE176: 10 | AF176: 8 | AG176: 3 | AH176: 10 | AI176: 8 | AJ176: 11 | AK176: 8 | AL176: 5 | AM176: 10 | AN176: 12 | AO176: 9 | AP176: 4 | AQ176: 5 | AR176: 3 | AS176: 1
A177: 176 | B177: 22184 Poleñino | C177: 22184 | D177: 104 | E177: 1 | F177: 3 | G177: 1 | H177: 3 | I177: 4 | J177: 6 | K177: 7 | L177: 7 | M177: 10 | N177: 10 | O177: 7 | P177: 5 | Q177: 12 | R177: 9 | S177: 4 | T177: 3 | U177: 6 | V177: 4 | W177: 2 | X177: 0 | Y177: 95 | Z177: 4 | AA177: 4 | AB177: 6 | AC177: 2 | AD177: 1 | AE177: 1 | AF177: 6 | AG177: 7 | AH177: 8 | AI177: 6 | AJ177: 5 | AK177: 4 | AL177: 10 | AM177: 5 | AN177: 7 | AO177: 8 | AP177: 7 | AQ177: 3 | AR177: 1 | AS177: 0
A178: 177 | B178: 22186 Pozán de Vero | C178: 22186 | D178: 116 | E178: 6 | F178: 3 | G178: 4 | H178: 5 | I178: 2 | J178: 1 | K178: 5 | L178: 12 | M178: 8 | N178: 10 | O178: 10 | P178: 5 | Q178: 8 | R178: 13 | S178: 8 | T178: 2 | U178: 5 | V178: 6 | W178: 1 | X178: 2 | Y178: 118 | Z178: 5 | AA178: 11 | AB178: 7 | AC178: 2 | AD178: 4 | AE178: 4 | AF178: 8 | AG178: 4 | AH178: 13 | AI178: 9 | AJ178: 3 | AK178: 5 | AL178: 11 | AM178: 4 | AN178: 6 | AO178: 2 | AP178: 7 | AQ178: 8 | AR178: 3 | AS178: 2
A179: 178 | B179: 22187 Puebla de Castro (La) | C179: 22187 | D179: 206 | E179: 11 | F179: 6 | G179: 7 | H179: 7 | I179: 12 | J179: 11 | K179: 9 | L179: 15 | M179: 15 | N179: 15 | O179: 23 | P179: 18 | Q179: 15 | R179: 10 | S179: 16 | T179: 5 | U179: 5 | V179: 5 | W179: 1 | X179: 0 | Y179: 185 | Z179: 3 | AA179: 8 | AB179: 13 | AC179: 5 | AD179: 5 | AE179: 10 | AF179: 7 | AG179: 10 | AH179: 13 | AI179: 18 | AJ179: 20 | AK179: 13 | AL179: 16 | AM179: 13 | AN179: 15 | AO179: 8 | AP179: 2 | AQ179: 4 | AR179: 1 | AS179: 1
A180: 179 | B180: 22188 Puente de Montañana | C180: 22188 | D180: 42 | E180: 1 | F180: 2 | G180: 0 | H180: 1 | I180: 1 | J180: 2 | K180: 2 | L180: 3 | M180: 1 | N180: 6 | O180: 1 | P180: 7 | Q180: 3 | R180: 2 | S180: 1 | T180: 1 | U180: 6 | V180: 2 | W180: 0 | X180: 0 | Y180: 54 | Z180: 1 | AA180: 0 | AB180: 1 | AC180: 2 | AD180: 4 | AE180: 2 | AF180: 3 | AG180: 2 | AH180: 1 | AI180: 2 | AJ180: 6 | AK180: 4 | AL180: 3 | AM180: 2 | AN180: 7 | AO180: 3 | AP180: 5 | AQ180: 6 | AR180: 0 | AS180: 0
A181: 180 | B181: 22189 Puértolas | C181: 22189 | D181: 115 | E181: 3 | F181: 6 | G181: 4 | H181: 2 | I181: 2 | J181: 4 | K181: 3 | L181: 6 | M181: 13 | N181: 14 | O181: 7 | P181: 9 | Q181: 6 | R181: 9 | S181: 10 | T181: 5 | U181: 4 | V181: 5 | W181: 2 | X181: 1 | Y181: 97 | Z181: 7 | AA181: 4 | AB181: 4 | AC181: 3 | AD181: 1 | AE181: 3 | AF181: 5 | AG181: 6 | AH181: 15 | AI181: 7 | AJ181: 5 | AK181: 4 | AL181: 4 | AM181: 12 | AN181: 6 | AO181: 8 | AP181: 3 | AQ181: 0 | AR181: 0 | AS181: 0
A182: 181 | B182: 22190 Pueyo de Araguás (El) | C182: 22190 | D182: 94 | E182: 0 | F182: 3 | G182: 6 | H182: 5 | I182: 4 | J182: 10 | K182: 4 | L182: 1 | M182: 7 | N182: 9 | O182: 7 | P182: 7 | Q182: 7 | R182: 8 | S182: 7 | T182: 3 | U182: 3 | V182: 2 | W182: 1 | X182: 0 | Y182: 73 | Z182: 2 | AA182: 5 | AB182: 6 | AC182: 3 | AD182: 2 | AE182: 1 | AF182: 1 | AG182: 3 | AH182: 10 | AI182: 8 | AJ182: 6 | AK182: 5 | AL182: 4 | AM182: 5 | AN182: 5 | AO182: 4 | AP182: 2 | AQ182: 1 | AR182: 0 | AS182: 0
A183: 182 | B183: 22193 Pueyo de Santa Cruz | C183: 22193 | D183: 163 | E183: 5 | F183: 8 | G183: 6 | H183: 4 | I183: 5 | J183: 7 | K183: 14 | L183: 7 | M183: 18 | N183: 13 | O183: 9 | P183: 13 | Q183: 11 | R183: 7 | S183: 9 | T183: 7 | U183: 8 | V183: 6 | W183: 6 | X183: 0 | Y183: 163 | Z183: 7 | AA183: 7 | AB183: 3 | AC183: 6 | AD183: 9 | AE183: 11 | AF183: 8 | AG183: 8 | AH183: 11 | AI183: 7 | AJ183: 16 | AK183: 14 | AL183: 7 | AM183: 6 | AN183: 9 | AO183: 10 | AP183: 10 | AQ183: 7 | AR183: 4 | AS183: 3
A184: 183 | B184: 22195 Quicena | C184: 22195 | D184: 139 | E184: 0 | F184: 7 | G184: 5 | H184: 6 | I184: 7 | J184: 4 | K184: 7 | L184: 9 | M184: 12 | N184: 10 | O184: 15 | P184: 17 | Q184: 12 | R184: 6 | S184: 9 | T184: 5 | U184: 3 | V184: 4 | W184: 1 | X184: 0 | Y184: 152 | Z184: 2 | AA184: 4 | AB184: 11 | AC184: 16 | AD184: 7 | AE184: 4 | AF184: 8 | AG184: 9 | AH184: 4 | AI184: 17 | AJ184: 16 | AK184: 18 | AL184: 12 | AM184: 6 | AN184: 5 | AO184: 6 | AP184: 3 | AQ184: 3 | AR184: 1 | AS184: 0
A185: 184 | B185: 22197 Robres | C185: 22197 | D185: 274 | E185: 8 | F185: 13 | G185: 12 | H185: 7 | I185: 8 | J185: 9 | K185: 14 | L185: 15 | M185: 17 | N185: 21 | O185: 27 | P185: 28 | Q185: 22 | R185: 25 | S185: 10 | T185: 12 | U185: 14 | V185: 11 | W185: 1 | X185: 0 | Y185: 251 | Z185: 3 | AA185: 12 | AB185: 6 | AC185: 6 | AD185: 10 | AE185: 7 | AF185: 9 | AG185: 18 | AH185: 14 | AI185: 17 | AJ185: 17 | AK185: 20 | AL185: 20 | AM185: 17 | AN185: 20 | AO185: 15 | AP185: 17 | AQ185: 13 | AR185: 8 | AS185: 2
A186: 185 | B186: 22199 Sabiñánigo | C186: 22199 | D186: 4685 | E186: 188 | F186: 202 | G186: 226 | H186: 225 | I186: 213 | J186: 237 | K186: 241 | L186: 322 | M186: 386 | N186: 364 | O186: 387 | P186: 407 | Q186: 358 | R186: 271 | S186: 194 | T186: 151 | U186: 109 | V186: 142 | W186: 56 | X186: 6 | Y186: 4667 | Z186: 152 | AA186: 207 | AB186: 232 | AC186: 190 | AD186: 222 | AE186: 192 | AF186: 233 | AG186: 305 | AH186: 353 | AI186: 345 | AJ186: 381 | AK186: 333 | AL186: 351 | AM186: 295 | AN186: 197 | AO186: 193 | AP186: 184 | AQ186: 171 | AR186: 105 | AS186: 26
A187: 186 | B187: 22200 Sahún | C187: 22200 | D187: 147 | E187: 3 | F187: 6 | G187: 10 | H187: 9 | I187: 1 | J187: 8 | K187: 8 | L187: 7 | M187: 5 | N187: 15 | O187: 7 | P187: 20 | Q187: 11 | R187: 8 | S187: 12 | T187: 7 | U187: 2 | V187: 4 | W187: 4 | X187: 0 | Y187: 155 | Z187: 4 | AA187: 7 | AB187: 7 | AC187: 6 | AD187: 4 | AE187: 7 | AF187: 9 | AG187: 14 | AH187: 13 | AI187: 16 | AJ187: 15 | AK187: 9 | AL187: 13 | AM187: 2 | AN187: 12 | AO187: 7 | AP187: 0 | AQ187: 7 | AR187: 2 | AS187: 1
A188: 187 | B188: 22201 Salas Altas | C188: 22201 | D188: 160 | E188: 6 | F188: 5 | G188: 6 | H188: 2 | I188: 12 | J188: 6 | K188: 9 | L188: 10 | M188: 14 | N188: 12 | O188: 9 | P188: 10 | Q188: 10 | R188: 12 | S188: 12 | T188: 4 | U188: 8 | V188: 7 | W188: 4 | X188: 2 | Y188: 149 | Z188: 1 | AA188: 3 | AB188: 5 | AC188: 4 | AD188: 8 | AE188: 4 | AF188: 10 | AG188: 5 | AH188: 6 | AI188: 13 | AJ188: 8 | AK188: 12 | AL188: 12 | AM188: 10 | AN188: 8 | AO188: 7 | AP188: 9 | AQ188: 11 | AR188: 6 | AS188: 7
A189: 188 | B189: 22202 Salas Bajas | C189: 22202 | D189: 95 | E189: 2 | F189: 3 | G189: 1 | H189: 3 | I189: 2 | J189: 4 | K189: 6 | L189: 7 | M189: 9 | N189: 12 | O189: 8 | P189: 9 | Q189: 7 | R189: 3 | S189: 6 | T189: 2 | U189: 1 | V189: 5 | W189: 4 | X189: 1 | Y189: 98 | Z189: 2 | AA189: 5 | AB189: 8 | AC189: 4 | AD189: 6 | AE189: 4 | AF189: 2 | AG189: 8 | AH189: 7 | AI189: 5 | AJ189: 9 | AK189: 10 | AL189: 5 | AM189: 7 | AN189: 2 | AO189: 3 | AP189: 3 | AQ189: 6 | AR189: 1 | AS189: 1
A190: 189 | B190: 22203 Salillas | C190: 22203 | D190: 59 | E190: 2 | F190: 0 | G190: 0 | H190: 3 | I190: 1 | J190: 3 | K190: 2 | L190: 3 | M190: 3 | N190: 11 | O190: 4 | P190: 5 | Q190: 3 | R190: 0 | S190: 5 | T190: 4 | U190: 4 | V190: 1 | W190: 3 | X190: 2 | Y190: 48 | Z190: 2 | AA190: 4 | AB190: 0 | AC190: 2 | AD190: 1 | AE190: 2 | AF190: 2 | AG190: 3 | AH190: 4 | AI190: 2 | AJ190: 1 | AK190: 3 | AL190: 1 | AM190: 4 | AN190: 2 | AO190: 5 | AP190: 3 | AQ190: 4 | AR190: 2 | AS190: 1
A191: 190 | B191: 22204 Sallent de Gállego | C191: 22204 | D191: 751 | E191: 27 | F191: 18 | G191: 39 | H191: 34 | I191: 30 | J191: 31 | K191: 55 | L191: 59 | M191: 80 | N191: 70 | O191: 86 | P191: 57 | Q191: 50 | R191: 29 | S191: 31 | T191: 29 | U191: 13 | V191: 7 | W191: 6 | X191: 0 | Y191: 768 | Z191: 35 | AA191: 39 | AB191: 40 | AC191: 40 | AD191: 36 | AE191: 35 | AF191: 54 | AG191: 70 | AH191: 75 | AI191: 71 | AJ191: 60 | AK191: 52 | AL191: 47 | AM191: 30 | AN191: 27 | AO191: 23 | AP191: 12 | AQ191: 15 | AR191: 7 | AS191: 0
A192: 191 | B192: 22205 San Esteban de Litera | C192: 22205 | D192: 300 | E192: 6 | F192: 8 | G192: 8 | H192: 10 | I192: 15 | J192: 16 | K192: 24 | L192: 20 | M192: 28 | N192: 25 | O192: 18 | P192: 26 | Q192: 15 | R192: 16 | S192: 16 | T192: 15 | U192: 19 | V192: 13 | W192: 2 | X192: 0 | Y192: 270 | Z192: 12 | AA192: 12 | AB192: 12 | AC192: 3 | AD192: 10 | AE192: 8 | AF192: 9 | AG192: 19 | AH192: 17 | AI192: 21 | AJ192: 12 | AK192: 17 | AL192: 12 | AM192: 21 | AN192: 19 | AO192: 18 | AP192: 19 | AQ192: 15 | AR192: 10 | AS192: 4
A193: 192 | B193: 22206 Sangarrén | C193: 22206 | D193: 112 | E193: 1 | F193: 2 | G193: 2 | H193: 2 | I193: 3 | J193: 4 | K193: 7 | L193: 12 | M193: 8 | N193: 10 | O193: 7 | P193: 5 | Q193: 8 | R193: 9 | S193: 9 | T193: 9 | U193: 7 | V193: 5 | W193: 2 | X193: 0 | Y193: 107 | Z193: 4 | AA193: 2 | AB193: 2 | AC193: 2 | AD193: 1 | AE193: 3 | AF193: 6 | AG193: 9 | AH193: 8 | AI193: 6 | AJ193: 7 | AK193: 4 | AL193: 7 | AM193: 13 | AN193: 15 | AO193: 4 | AP193: 4 | AQ193: 6 | AR193: 2 | AS193: 2
A194: 193 | B194: 22207 San Juan de Plan | C194: 22207 | D194: 83 | E194: 4 | F194: 3 | G194: 3 | H194: 6 | I194: 2 | J194: 1 | K194: 1 | L194: 5 | M194: 9 | N194: 9 | O194: 5 | P194: 10 | Q194: 9 | R194: 3 | S194: 2 | T194: 3 | U194: 4 | V194: 4 | W194: 0 | X194: 0 | Y194: 65 | Z194: 2 | AA194: 5 | AB194: 5 | AC194: 2 | AD194: 1 | AE194: 4 | AF194: 5 | AG194: 3 | AH194: 6 | AI194: 3 | AJ194: 7 | AK194: 5 | AL194: 1 | AM194: 2 | AN194: 1 | AO194: 6 | AP194: 1 | AQ194: 4 | AR194: 2 | AS194: 0
A195: 194 | B195: 22208 Santa Cilia | C195: 22208 | D195: 125 | E195: 4 | F195: 8 | G195: 3 | H195: 5 | I195: 7 | J195: 4 | K195: 5 | L195: 11 | M195: 10 | N195: 11 | O195: 14 | P195: 12 | Q195: 12 | R195: 6 | S195: 4 | T195: 2 | U195: 3 | V195: 3 | W195: 1 | X195: 0 | Y195: =(SUM(Z195:AS195))+0 -> 120 | Z195: 4 | AA195: 7 | AB195: 11 | AC195: 7 | AD195: 4 | AE195: 5 | AF195: 5 | AG195: 7 | AH195: 11 | AI195: 10 | AJ195: 7 | AK195: 11 | AL195: 4 | AM195: 4 | AN195: 3 | AO195: 5 | AP195: 5 | AQ195: 6 | AR195: 4 | AS195: 0
A196: 195 | B196: 22209 Santa Cruz de la Serós | C196: 22209 | D196: =SUM(E196:X196) -> 110 | E196: 2 | F196: 4 | G196: 0 | H196: 3 | I196: 10 | J196: 8 | K196: 3 | L196: 8 | M196: 10 | N196: 7 | O196: 10 | P196: 10 | Q196: 9 | R196: 6 | S196: 8 | T196: 4 | U196: 2 | V196: 3 | W196: 2 | X196: 1 | Y196: 83 | Z196: 6 | AA196: 3 | AB196: 3 | AC196: 3 | AD196: 2 | AE196: 2 | AF196: 7 | AG196: 5 | AH196: 6 | AI196: 5 | AJ196: 9 | AK196: 6 | AL196: 9 | AM196: 4 | AN196: 4 | AO196: 3 | AP196: 3 | AQ196: 2 | AR196: 0 | AS196: 1
A197: 196 | B197: 22212 Santaliestra y San Quílez | C197: 22212 | D197: 40 | E197: 2 | F197: 1 | G197: 0 | H197: 0 | I197: 1 | J197: 2 | K197: 4 | L197: 3 | M197: 2 | N197: 0 | O197: 4 | P197: 3 | Q197: 2 | R197: 7 | S197: 4 | T197: 0 | U197: 1 | V197: 2 | W197: 2 | X197: 0 | Y197: 35 | Z197: 1 | AA197: 1 | AB197: 0 | AC197: 2 | AD197: 1 | AE197: 0 | AF197: 3 | AG197: 2 | AH197: 2 | AI197: 0 | AJ197: 1 | AK197: 3 | AL197: 2 | AM197: 6 | AN197: 3 | AO197: 3 | AP197: 2 | AQ197: 1 | AR197: 2 | AS197: 0
A198: 197 | B198: 22213 Sariñena | C198: 22213 | D198: 2186 | E198: 125 | F198: 89 | G198: 100 | H198: 105 | I198: 106 | J198: 136 | K198: 130 | L198: 150 | M198: 165 | N198: 183 | O198: 145 | P198: 184 | Q198: 143 | R198: 120 | S198: 107 | T198: 75 | U198: 58 | V198: 42 | W198: 18 | X198: 5 | Y198: 1987 | Z198: 88 | AA198: 70 | AB198: 96 | AC198: 92 | AD198: 84 | AE198: 108 | AF198: 136 | AG198: 118 | AH198: 137 | AI198: 140 | AJ198: 148 | AK198: 161 | AL198: 124 | AM198: 126 | AN198: 105 | AO198: 73 | AP198: 66 | AQ198: 65 | AR198: 35 | AS198: 15
A199: 198 | B199: 22214 Secastilla | C199: 22214 | D199: 67 | E199: 0 | F199: 4 | G199: 2 | H199: 3 | I199: 2 | J199: 3 | K199: 8 | L199: 2 | M199: 3 | N199: 3 | O199: 8 | P199: 7 | Q199: 5 | R199: 5 | S199: 3 | T199: 3 | U199: 2 | V199: 3 | W199: 0 | X199: 1 | Y199: 82 | Z199: 4 | AA199: 2 | AB199: 4 | AC199: 1 | AD199: 2 | AE199: 2 | AF199: 2 | AG199: 7 | AH199: 4 | AI199: 9 | AJ199: 7 | AK199: 7 | AL199: 9 | AM199: 5 | AN199: 3 | AO199: 4 | AP199: 2 | AQ199: 6 | AR199: 2 | AS199: 0
A200: 199 | B200: 22215 Seira | C200: 22215 | D200: 88 | E200: 1 | F200: 3 | G200: 1 | H200: 1 | I200: 4 | J200: 5 | K200: 1 | L200: 9 | M200: 6 | N200: 5 | O200: 10 | P200: 7 | Q200: 9 | R200: 6 | S200: 8 | T200: 4 | U200: 4 | V200: 3 | W200: 1 | X200: 0 | Y200: 66 | Z200: 2 | AA200: 1 | AB200: 4 | AC200: 0 | AD200: 2 | AE200: 1 | AF200: 4 | AG200: 4 | AH200: 4 | AI200: 7 | AJ200: 6 | AK200: 5 | AL200: 2 | AM200: 6 | AN200: 6 | AO200: 4 | AP200: 3 | AQ200: 1 | AR200: 3 | AS200: 1
... 570 more rows

Sheet datosext (hidden)
B1: referencia geográfica | C1: código | D1: TOTAL VARONES | E1: 01- de 0 a 4 | F1: 02- de 5 a 9 | G1: 03- de 10 a 14 | H1: 04- de 15 a 19 | I1: 05- de 20 a 24 | J1: 06- de 25 a 29 | K1: 07- de 30 a 34 | L1: 08- de 35 a 39 | M1: 09- de 40 a 44 | N1: 10- de 45 a 49 | O1: 11- de 50 a 54 | P1: 12- de 55 a 59 | Q1: 13- de 60 a 64 | R1: 14- de 65 a 69 | S1: 15- de 70 a 74 | T1: 16- de 75 a 79 | U1: 17- de 80 a 84 | V1: 18- de 85 a 89 | W1: 19- de 90 a 94 | X1: 20- de 95 y más | Y1: TOTAL MUJERES | Z1: 01- de 0 a 4 | AA1: 02- de 5 a 9 | AB1: 03- de 10 a 14 | AC1: 04- de 15 a 19 | AD1: 05- de 20 a 24 | AE1: 06- de 25 a 29 | AF1: 07- de 30 a 34 | AG1: 08- de 35 a 39 | AH1: 09- de 40 a 44 | AI1: 10- de 45 a 49 | AJ1: 11- de 50 a 54 | AK1: 12- de 55 a 59 | AL1: 13- de 60 a 64 | AM1: 14- de 65 a 69 | AN1: 15- de 70 a 74 | AO1: 16- de 75 a 79 | AP1: 17- de 80 a 84 | AQ1: 18- de 85 a 89 | AR1: 19- de 90 a 94 | AS1: 20- de 95 y más
A2: 1 | B2: ARAGÓN | C2: 2 | D2: =(SUM(D3:D5))+0 -> 82830 | E2: 4791 | F2: 4591 | G2: 4095 | H2: 4575 | I2: 6367 | J2: 7446 | K2: 8572 | L2: 9304 | M2: 10286 | N2: 8458 | O2: 6264 | P2: 3725 | Q2: 2232 | R2: 1127 | S2: 520 | T2: 258 | U2: 139 | V2: 63 | W2: 13 | X2: 4 | Y2: 79519 | Z2: 4486 | AA2: 4385 | AB2: 3787 | AC2: 3746 | AD2: 5836 | AE2: 7598 | AF2: 9366 | AG2: 9615 | AH2: 9100 | AI2: 7305 | AJ2: 5520 | AK2: 3456 | AL2: 2340 | AM2: 1449 | AN2: 746 | AO2: 415 | AP2: 205 | AQ2: 113 | AR2: 37 | AS2: 14 | AX2: 0
A3: 2 | B3: PROVINCIA DE HUESCA | C3: 22 | D3: =(SUM(E3:X3))+0 -> 15422 | E3: 889 | F3: 795 | G3: 716 | H3: 749 | I3: 1219 | J3: 1437 | K3: 1603 | L3: 1811 | M3: 2010 | N3: 1619 | O3: 1156 | P3: 640 | Q3: 385 | R3: 193 | S3: 100 | T3: 61 | U3: 22 | V3: 10 | W3: 6 | X3: 1 | Y3: =(SUM(Z3:AS3))+0 -> 13402 | Z3: 772 | AA3: 717 | AB3: 599 | AC3: 606 | AD3: 989 | AE3: 1235 | AF3: 1632 | AG3: 1672 | AH3: 1566 | AI3: 1242 | AJ3: 944 | AK3: 590 | AL3: 348 | AM3: 232 | AN3: 110 | AO3: 68 | AP3: 36 | AQ3: 29 | AR3: 9 | AS3: 6
A4: 3 | B4: PROVINCIA DE TERUEL | C4: 44 | D4: 7871 | E4: 492 | F4: 500 | G4: 425 | H4: 479 | I4: 636 | J4: 605 | K4: 720 | L4: 833 | M4: 1007 | N4: 818 | O4: 532 | P4: 373 | Q4: 236 | R4: 100 | S4: 67 | T4: 31 | U4: 9 | V4: 5 | W4: 3 | X4: 0 | Y4: 7368 | Z4: 496 | AA4: 519 | AB4: 388 | AC4: 379 | AD4: 564 | AE4: 691 | AF4: 756 | AG4: 787 | AH4: 801 | AI4: 672 | AJ4: 503 | AK4: 306 | AL4: 240 | AM4: 126 | AN4: 64 | AO4: 34 | AP4: 30 | AQ4: 9 | AR4: 3 | AS4: 0
A5: 4 | B5: PROVINCIA DE ZARAGOZA | C5: 50 | D5: 59537 | E5: 3410 | F5: 3296 | G5: 2954 | H5: 3347 | I5: 4512 | J5: 5404 | K5: 6249 | L5: 6660 | M5: 7269 | N5: 6021 | O5: 4576 | P5: 2712 | Q5: 1611 | R5: 834 | S5: 353 | T5: 166 | U5: 108 | V5: 48 | W5: 4 | X5: 3 | Y5: 58749 | Z5: 3218 | AA5: 3149 | AB5: 2800 | AC5: 2761 | AD5: 4283 | AE5: 5672 | AF5: 6978 | AG5: 7156 | AH5: 6733 | AI5: 5391 | AJ5: 4073 | AK5: 2560 | AL5: 1752 | AM5: 1091 | AN5: 572 | AO5: 313 | AP5: 139 | AQ5: 75 | AR5: 25 | AS5: 8
A6: 5 | B6: LA JACETANIA | C6: 1 | D6: 561 | E6: 22 | F6: 22 | G6: 32 | H6: 24 | I6: 48 | J6: 54 | K6: 59 | L6: 67 | M6: 66 | N6: 53 | O6: 46 | P6: 26 | Q6: 15 | R6: 8 | S6: 11 | T6: 4 | U6: 3 | V6: 1 | W6: 0 | X6: 0 | Y6: 684 | Z6: 19 | AA6: 36 | AB6: 20 | AC6: 34 | AD6: 62 | AE6: 73 | AF6: 72 | AG6: 70 | AH6: 83 | AI6: 56 | AJ6: 56 | AK6: 37 | AL6: 22 | AM6: 15 | AN6: 13 | AO6: 9 | AP6: 4 | AQ6: 1 | AR6: 0 | AS6: 2
A7: 6 | B7: ALTO GÁLLEGO | C7: 2 | D7: 751 | E7: 38 | F7: 42 | G7: 39 | H7: 40 | I7: 50 | J7: 61 | K7: 51 | L7: 74 | M7: 92 | N7: 107 | O7: 57 | P7: 43 | Q7: 31 | R7: 13 | S7: 5 | T7: 5 | U7: 0 | V7: 2 | W7: 1 | X7: 0 | Y7: 722 | Z7: 36 | AA7: 37 | AB7: 29 | AC7: 35 | AD7: 45 | AE7: 53 | AF7: 81 | AG7: 95 | AH7: 94 | AI7: 72 | AJ7: 55 | AK7: 43 | AL7: 15 | AM7: 16 | AN7: 6 | AO7: 3 | AP7: 2 | AQ7: 5 | AR7: 0 | AS7: 0
A8: 7 | B8: SOBRARBE | C8: 3 | D8: 484 | E8: 26 | F8: 35 | G8: 29 | H8: 23 | I8: 25 | J8: 32 | K8: 55 | L8: 47 | M8: 59 | N8: 39 | O8: 37 | P8: 35 | Q8: 21 | R8: 11 | S8: 4 | T8: 5 | U8: 0 | V8: 0 | W8: 1 | X8: 0 | Y8: 490 | Z8: 25 | AA8: 10 | AB8: 17 | AC8: 13 | AD8: 29 | AE8: 43 | AF8: 72 | AG8: 59 | AH8: 41 | AI8: 57 | AJ8: 41 | AK8: 40 | AL8: 17 | AM8: 9 | AN8: 8 | AO8: 4 | AP8: 3 | AQ8: 2 | AR8: 0 | AS8: 0
A9: 8 | B9: LA RIBAGORZA | C9: 4 | D9: 847 | E9: 44 | F9: 43 | G9: 27 | H9: 26 | I9: 59 | J9: 76 | K9: 97 | L9: 88 | M9: 113 | N9: 87 | O9: 69 | P9: 49 | Q9: 28 | R9: 20 | S9: 10 | T9: 7 | U9: 4 | V9: 0 | W9: 0 | X9: 0 | Y9: 830 | Z9: 35 | AA9: 34 | AB9: 40 | AC9: 34 | AD9: 48 | AE9: 87 | AF9: 86 | AG9: 102 | AH9: 102 | AI9: 86 | AJ9: 68 | AK9: 37 | AL9: 31 | AM9: 21 | AN9: 10 | AO9: 4 | AP9: 3 | AQ9: 1 | AR9: 1 | AS9: 0
A10: 9 | B10: CINCO VILLAS | C10: 5 | D10: 2422 | E10: 141 | F10: 136 | G10: 130 | H10: 129 | I10: 174 | J10: 231 | K10: 233 | L10: 252 | M10: 308 | N10: 251 | O10: 205 | P10: 115 | Q10: 74 | R10: 27 | S10: 11 | T10: 2 | U10: 1 | V10: 2 | W10: 0 | X10: 0 | Y10: 1930 | Z10: 135 | AA10: 136 | AB10: 113 | AC10: 111 | AD10: 135 | AE10: 169 | AF10: 236 | AG10: 211 | AH10: 201 | AI10: 166 | AJ10: 128 | AK10: 89 | AL10: 56 | AM10: 24 | AN10: 8 | AO10: 7 | AP10: 2 | AQ10: 2 | AR10: 1 | AS10: 0
A11: 10 | B11: HOYA DE HUESCA/PLANA DE UESCA | C11: 6 | D11: 3353 | E11: 207 | F11: 212 | G11: 171 | H11: 203 | I11: 277 | J11: 313 | K11: 357 | L11: 394 | M11: 363 | N11: 327 | O11: 207 | P11: 126 | Q11: 95 | R11: 51 | S11: 24 | T11: 15 | U11: 5 | V11: 3 | W11: 2 | X11: 1 | Y11: 3449 | Z11: 191 | AA11: 191 | AB11: 159 | AC11: 149 | AD11: 258 | AE11: 320 | AF11: 428 | AG11: 454 | AH11: 390 | AI11: 285 | AJ11: 228 | AK11: 146 | AL11: 102 | AM11: 63 | AN11: 39 | AO11: 20 | AP11: 11 | AQ11: 9 | AR11: 5 | AS11: 1
A12: 11 | B12: SOMONTANO DE BARBASTRO | C12: 7 | D12: 1227 | E12: 82 | F12: 63 | G12: 49 | H12: 66 | I12: 86 | J12: 98 | K12: 121 | L12: 149 | M12: 186 | N12: 111 | O12: 90 | P12: 42 | Q12: 36 | R12: 22 | S12: 10 | T12: 10 | U12: 3 | V12: 1 | W12: 2 | X12: 0 | Y12: 1287 | Z12: 63 | AA12: 52 | AB12: 57 | AC12: 53 | AD12: 93 | AE12: 142 | AF12: 153 | AG12: 171 | AH12: 134 | AI12: 110 | AJ12: 84 | AK12: 67 | AL12: 30 | AM12: 37 | AN12: 14 | AO12: 11 | AP12: 7 | AQ12: 6 | AR12: 0 | AS12: 3
A13: 12 | B13: CINCA MEDIO | C13: 8 | D13: 2072 | E13: 129 | F13: 108 | G13: 104 | H13: 100 | I13: 156 | J13: 188 | K13: 199 | L13: 247 | M13: 271 | N13: 217 | O13: 191 | P13: 88 | Q13: 38 | R13: 17 | S13: 10 | T13: 7 | U13: 2 | V13: 0 | W13: 0 | X13: 0 | Y13: 1645 | Z13: 111 | AA13: 97 | AB13: 71 | AC13: 87 | AD13: 136 | AE13: 159 | AF13: 192 | AG13: 179 | AH13: 189 | AI13: 178 | AJ13: 113 | AK13: 62 | AL13: 34 | AM13: 17 | AN13: 12 | AO13: 4 | AP13: 3 | AQ13: 1 | AR13: 0 | AS13: 0
A14: 13 | B14: LA LITERA/LA LLITERA | C14: 9 | D14: 1846 | E14: 84 | F14: 72 | G14: 77 | H14: 100 | I14: 172 | J14: 217 | K14: 175 | L14: 208 | M14: 275 | N14: 197 | O14: 141 | P14: 69 | Q14: 28 | R14: 11 | S14: 13 | T14: 3 | U14: 3 | V14: 1 | W14: 0 | X14: 0 | Y14: 1151 | Z14: 88 | AA14: 63 | AB14: 64 | AC14: 59 | AD14: 94 | AE14: 95 | AF14: 153 | AG14: 146 | AH14: 134 | AI14: 102 | AJ14: 60 | AK14: 42 | AL14: 20 | AM14: 18 | AN14: 3 | AO14: 6 | AP14: 1 | AQ14: 3 | AR14: 0 | AS14: 0
A15: 14 | B15: LOS MONEGROS | C15: 10 | D15: 1138 | E15: 75 | F15: 62 | G15: 53 | H15: 43 | I15: 84 | J15: 118 | K15: 129 | L15: 126 | M15: 151 | N15: 119 | O15: 79 | P15: 42 | Q15: 30 | R15: 16 | S15: 4 | T15: 3 | U15: 2 | V15: 2 | W15: 0 | X15: 0 | Y15: 1068 | Z15: 67 | AA15: 60 | AB15: 46 | AC15: 44 | AD15: 63 | AE15: 96 | AF15: 138 | AG15: 131 | AH15: 124 | AI15: 104 | AJ15: 77 | AK15: 49 | AL15: 37 | AM15: 16 | AN15: 5 | AO15: 4 | AP15: 3 | AQ15: 1 | AR15: 3 | AS15: 0
A16: 15 | B16: BAJO CINCA/BAIX CINCA | C16: 11 | D16: 3423 | E16: 194 | F16: 148 | G16: 149 | H16: 138 | I16: 276 | J16: 308 | K16: 389 | L16: 436 | M16: 475 | N16: 387 | O16: 271 | P16: 137 | Q16: 69 | R16: 28 | S16: 12 | T16: 4 | U16: 2 | V16: 0 | W16: 0 | X16: 0 | Y16: 2340 | Z16: 148 | AA16: 155 | AB16: 104 | AC16: 112 | AD16: 170 | AE16: 188 | AF16: 299 | AG16: 292 | AH16: 309 | AI16: 211 | AJ16: 185 | AK16: 80 | AL16: 52 | AM16: 27 | AN16: 4 | AO16: 3 | AP16: 0 | AQ16: 0 | AR16: 1 | AS16: 0
A17: 16 | B17: TARAZONA Y EL MONCAYO | C17: 12 | D17: 553 | E17: 29 | F17: 33 | G17: 22 | H17: 32 | I17: 52 | J17: 42 | K17: 64 | L17: 78 | M17: 68 | N17: 42 | O17: 42 | P17: 21 | Q17: 14 | R17: 9 | S17: 4 | T17: 1 | U17: 0 | V17: 0 | W17: 0 | X17: 0 | Y17: 502 | Z17: 27 | AA17: 23 | AB17: 29 | AC17: 21 | AD17: 42 | AE17: 52 | AF17: 61 | AG17: 69 | AH17: 57 | AI17: 37 | AJ17: 25 | AK17: 23 | AL17: 23 | AM17: 5 | AN17: 2 | AO17: 4 | AP17: 1 | AQ17: 0 | AR17: 1 | AS17: 0
A18: 17 | B18: CAMPO DE BORJA | C18: 13 | D18: 908 | E18: 60 | F18: 68 | G18: 64 | H18: 50 | I18: 55 | J18: 70 | K18: 78 | L18: 104 | M18: 111 | N18: 108 | O18: 62 | P18: 48 | Q18: 14 | R18: 9 | S18: 5 | T18: 2 | U18: 0 | V18: 0 | W18: 0 | X18: 0 | Y18: 755 | Z18: 54 | AA18: 47 | AB18: 40 | AC18: 37 | AD18: 52 | AE18: 73 | AF18: 91 | AG18: 95 | AH18: 98 | AI18: 70 | AJ18: 41 | AK18: 21 | AL18: 18 | AM18: 4 | AN18: 4 | AO18: 6 | AP18: 4 | AQ18: 0 | AR18: 0 | AS18: 0
A19: 18 | B19: ARANDA | C19: 14 | D19: 248 | E19: 8 | F19: 4 | G19: 14 | H19: 21 | I19: 12 | J19: 18 | K19: 16 | L19: 28 | M19: 33 | N19: 45 | O19: 24 | P19: 14 | Q19: 5 | R19: 4 | S19: 1 | T19: 1 | U19: 0 | V19: 0 | W19: 0 | X19: 0 | Y19: 259 | Z19: 7 | AA19: 10 | AB19: 12 | AC19: 14 | AD19: 14 | AE19: 17 | AF19: 33 | AG19: 28 | AH19: 33 | AI19: 35 | AJ19: 23 | AK19: 9 | AL19: 13 | AM19: 7 | AN19: 3 | AO19: 0 | AP19: 0 | AQ19: 1 | AR19: 0 | AS19: 0
A20: 19 | B20: RIBERA ALTA DEL EBRO | C20: 15 | D20: 1519 | E20: 68 | F20: 66 | G20: 74 | H20: 74 | I20: 92 | J20: 120 | K20: 140 | L20: 170 | M20: 181 | N20: 187 | O20: 157 | P20: 96 | Q20: 54 | R20: 24 | S20: 9 | T20: 5 | U20: 2 | V20: 0 | W20: 0 | X20: 0 | Y20: 1465 | Z20: 47 | AA20: 87 | AB20: 75 | AC20: 68 | AD20: 82 | AE20: 128 | AF20: 160 | AG20: 167 | AH20: 177 | AI20: 154 | AJ20: 119 | AK20: 83 | AL20: 49 | AM20: 26 | AN20: 22 | AO20: 12 | AP20: 5 | AQ20: 4 | AR20: 0 | AS20: 0
A21: 20 | B21: VALDEJALÓN | C21: 16 | D21: 3715 | E21: 243 | F21: 206 | G21: 177 | H21: 161 | I21: 238 | J21: 266 | K21: 386 | L21: 382 | M21: 492 | N21: 417 | O21: 366 | P21: 186 | Q21: 112 | R21: 56 | S21: 17 | T21: 6 | U21: 2 | V21: 2 | W21: 0 | X21: 0 | Y21: 3127 | Z21: 208 | AA21: 194 | AB21: 136 | AC21: 124 | AD21: 200 | AE21: 268 | AF21: 367 | AG21: 396 | AH21: 362 | AI21: 319 | AJ21: 252 | AK21: 128 | AL21: 84 | AM21: 47 | AN21: 25 | AO21: 5 | AP21: 7 | AQ21: 3 | AR21: 2 | AS21: 0
A22: 21 | B22: CENTRAL | C22: 17 | D22: 42483 | E22: 2455 | F22: 2366 | G22: 2122 | H22: 2462 | I22: 3337 | J22: 3966 | K22: 4542 | L22: 4807 | M22: 5103 | N22: 4166 | O22: 3068 | P22: 1888 | Q22: 1097 | R22: 579 | S22: 264 | T22: 120 | U22: 94 | V22: 41 | W22: 3 | X22: 3 | Y22: 44297 | Z22: 2303 | AA22: 2279 | AB22: 2058 | AC22: 2036 | AD22: 3318 | AE22: 4422 | AF22: 5331 | AG22: 5455 | AH22: 5110 | AI22: 3978 | AJ22: 3017 | AK22: 1945 | AL22: 1302 | AM22: 853 | AN22: 445 | AO22: 247 | AP22: 110 | AQ22: 63 | AR22: 19 | AS22: 6
A23: 22 | B23: RIBERA BAJA DEL EBRO | C23: 18 | D23: 389 | E23: 20 | F23: 28 | G23: 22 | H23: 20 | I23: 32 | J23: 39 | K23: 31 | L23: 49 | M23: 38 | N23: 36 | O23: 19 | P23: 24 | Q23: 17 | R23: 5 | S23: 5 | T23: 3 | U23: 1 | V23: 0 | W23: 0 | X23: 0 | Y23: 375 | Z23: 36 | AA23: 33 | AB23: 20 | AC23: 19 | AD23: 29 | AE23: 33 | AF23: 29 | AG23: 59 | AH23: 41 | AI23: 26 | AJ23: 15 | AK23: 9 | AL23: 8 | AM23: 8 | AN23: 5 | AO23: 4 | AP23: 1 | AQ23: 0 | AR23: 0 | AS23: 0
A24: 23 | B24: BAJO ARAGÓN-CASPE/BAIX ARAGÓ-CASP | C24: 19 | D24: 2460 | E24: 144 | F24: 145 | G24: 93 | H24: 150 | I24: 195 | J24: 245 | K24: 247 | L24: 272 | M24: 296 | N24: 251 | O24: 182 | P24: 108 | Q24: 71 | R24: 39 | S24: 11 | T24: 8 | U24: 1 | V24: 1 | W24: 1 | X24: 0 | Y24: 1586 | Z24: 143 | AA24: 108 | AB24: 90 | AC24: 105 | AD24: 123 | AE24: 142 | AF24: 176 | AG24: 158 | AH24: 148 | AI24: 134 | AJ24: 114 | AK24: 56 | AL24: 40 | AM24: 27 | AN24: 9 | AO24: 9 | AP24: 2 | AQ24: 1 | AR24: 0 | AS24: 1
A25: 24 | B25: COMUNIDAD DE CALATAYUD | C25: 20 | D25: 2803 | E25: 137 | F25: 144 | G25: 145 | H25: 166 | I25: 196 | J25: 235 | K25: 263 | L25: 292 | M25: 364 | N25: 292 | O25: 259 | P25: 129 | Q25: 96 | R25: 51 | S25: 18 | T25: 11 | U25: 4 | V25: 1 | W25: 0 | X25: 0 | Y25: 2705 | Z25: 131 | AA25: 119 | AB25: 143 | AC25: 136 | AD25: 175 | AE25: 208 | AF25: 304 | AG25: 316 | AH25: 308 | AI25: 292 | AJ25: 225 | AK25: 122 | AL25: 105 | AM25: 61 | AN25: 41 | AO25: 13 | AP25: 4 | AQ25: 0 | AR25: 1 | AS25: 1
A26: 25 | B26: CAMPO DE CARIÑENA | C26: 21 | D26: 1234 | E26: 63 | F26: 58 | G26: 46 | H26: 42 | I26: 86 | J26: 99 | K26: 149 | L26: 147 | M26: 158 | N26: 142 | O26: 123 | P26: 55 | Q26: 38 | R26: 21 | S26: 3 | T26: 2 | U26: 1 | V26: 1 | W26: 0 | X26: 0 | Y26: 990 | Z26: 72 | AA26: 59 | AB26: 61 | AC26: 56 | AD26: 58 | AE26: 84 | AF26: 90 | AG26: 121 | AH26: 109 | AI26: 111 | AJ26: 62 | AK26: 53 | AL26: 32 | AM26: 14 | AN26: 2 | AO26: 4 | AP26: 1 | AQ26: 1 | AR26: 0 | AS26: 0
A27: 26 | B27: CAMPO DE BELCHITE | C27: 22 | D27: 168 | E27: 5 | F27: 13 | G27: 14 | H27: 15 | I27: 9 | J27: 11 | K27: 14 | L27: 14 | M27: 29 | N27: 18 | O27: 9 | P27: 5 | Q27: 6 | R27: 3 | S27: 1 | T27: 2 | U27: 0 | V27: 0 | W27: 0 | X27: 0 | Y27: 178 | Z27: 18 | AA27: 14 | AB27: 5 | AC27: 11 | AD27: 18 | AE27: 11 | AF27: 20 | AG27: 26 | AH27: 18 | AI27: 17 | AJ27: 7 | AK27: 5 | AL27: 4 | AM27: 2 | AN27: 2 | AO27: 0 | AP27: 0 | AQ27: 0 | AR27: 0 | AS27: 0
A28: 27 | B28: BAJO MARTÍN | C28: 23 | D28: 429 | E28: 28 | F28: 24 | G28: 17 | H28: 28 | I28: 37 | J28: 41 | K28: 39 | L28: 49 | M28: 55 | N28: 42 | O28: 28 | P28: 15 | Q28: 16 | R28: 4 | S28: 5 | T28: 1 | U28: 0 | V28: 0 | W28: 0 | X28: 0 | Y28: 358 | Z28: 30 | AA28: 35 | AB28: 24 | AC28: 22 | AD28: 25 | AE28: 38 | AF28: 36 | AG28: 22 | AH28: 33 | AI28: 30 | AJ28: 20 | AK28: 12 | AL28: 14 | AM28: 4 | AN28: 5 | AO28: 3 | AP28: 2 | AQ28: 3 | AR28: 0 | AS28: 0
A29: 28 | B29: CAMPO DE DAROCA | C29: 24 | D29: 355 | E29: 25 | F29: 17 | G29: 17 | H29: 11 | I29: 20 | J29: 34 | K29: 57 | L29: 40 | M29: 47 | N29: 41 | O29: 28 | P29: 6 | Q29: 7 | R29: 3 | S29: 1 | T29: 1 | U29: 0 | V29: 0 | W29: 0 | X29: 0 | Y29: 316 | Z29: 26 | AA29: 22 | AB29: 10 | AC29: 9 | AD29: 28 | AE29: 44 | AF29: 38 | AG29: 28 | AH29: 37 | AI29: 33 | AJ29: 22 | AK29: 4 | AL29: 6 | AM29: 6 | AN29: 0 | AO29: 2 | AP29: 1 | AQ29: 0 | AR29: 0 | AS29: 0
A30: 29 | B30: JILOCA | C30: 25 | D30: 852 | E30: 74 | F30: 55 | G30: 62 | H30: 50 | I30: 59 | J30: 61 | K30: 78 | L30: 90 | M30: 96 | N30: 108 | O30: 54 | P30: 31 | Q30: 20 | R30: 7 | S30: 3 | T30: 2 | U30: 2 | V30: 0 | W30: 0 | X30: 0 | Y30: 838 | Z30: 59 | AA30: 77 | AB30: 45 | AC30: 51 | AD30: 76 | AE30: 80 | AF30: 87 | AG30: 88 | AH30: 86 | AI30: 72 | AJ30: 45 | AK30: 30 | AL30: 24 | AM30: 11 | AN30: 4 | AO30: 0 | AP30: 2 | AQ30: 0 | AR30: 1 | AS30: 0
A31: 30 | B31: CUENCAS MINERAS | C31: 26 | D31: 377 | E31: 25 | F31: 34 | G31: 26 | H31: 20 | I31: 37 | J31: 29 | K31: 34 | L31: 30 | M31: 47 | N31: 34 | O31: 23 | P31: 19 | Q31: 10 | R31: 7 | S31: 2 | T31: 0 | U31: 0 | V31: 0 | W31: 0 | X31: 0 | Y31: 330 | Z31: 27 | AA31: 23 | AB31: 21 | AC31: 15 | AD31: 19 | AE31: 36 | AF31: 44 | AG31: 29 | AH31: 36 | AI31: 27 | AJ31: 21 | AK31: 13 | AL31: 12 | AM31: 3 | AN31: 2 | AO31: 1 | AP31: 1 | AQ31: 0 | AR31: 0 | AS31: 0
A32: 31 | B32: ANDORRA-SIERRA DE ARCOS | C32: 27 | D32: 433 | E32: 28 | F32: 30 | G32: 26 | H32: 33 | I32: 35 | J32: 23 | K32: 40 | L32: 41 | M32: 61 | N32: 42 | O32: 23 | P32: 28 | Q32: 13 | R32: 4 | S32: 3 | T32: 2 | U32: 1 | V32: 0 | W32: 0 | X32: 0 | Y32: 433 | Z32: 26 | AA32: 28 | AB32: 29 | AC32: 23 | AD32: 39 | AE32: 33 | AF32: 51 | AG32: 45 | AH32: 46 | AI32: 40 | AJ32: 28 | AK32: 20 | AL32: 11 | AM32: 7 | AN32: 3 | AO32: 1 | AP32: 2 | AQ32: 1 | AR32: 0 | AS32: 0
A33: 32 | B33: BAJO ARAGÓN | C33: 28 | D33: 1917 | E33: 112 | F33: 128 | G33: 120 | H33: 105 | I33: 154 | J33: 142 | K33: 172 | L33: 204 | M33: 251 | N33: 220 | O33: 136 | P33: 81 | Q33: 44 | R33: 28 | S33: 9 | T33: 5 | U33: 2 | V33: 3 | W33: 1 | X33: 0 | Y33: 1929 | Z33: 142 | AA33: 139 | AB33: 99 | AC33: 98 | AD33: 127 | AE33: 180 | AF33: 190 | AG33: 209 | AH33: 229 | AI33: 184 | AJ33: 148 | AK33: 71 | AL33: 50 | AM33: 30 | AN33: 15 | AO33: 8 | AP33: 8 | AQ33: 2 | AR33: 0 | AS33: 0
A34: 33 | B34: COMUNIDAD DE TERUEL | C34: 29 | D34: 2339 | E34: 148 | F34: 142 | G34: 98 | H34: 157 | I34: 205 | J34: 217 | K34: 228 | L34: 232 | M34: 279 | N34: 227 | O34: 153 | P34: 123 | Q34: 78 | R34: 23 | S34: 17 | T34: 8 | U34: 1 | V34: 1 | W34: 2 | X34: 0 | Y34: 2264 | Z34: 132 | AA34: 128 | AB34: 108 | AC34: 126 | AD34: 209 | AE34: 217 | AF34: 227 | AG34: 246 | AH34: 248 | AI34: 212 | AJ34: 164 | AK34: 85 | AL34: 79 | AM34: 43 | AN34: 18 | AO34: 7 | AP34: 11 | AQ34: 3 | AR34: 1 | AS34: 0
A35: 34 | B35: MAESTRAZGO | C35: 30 | D35: 178 | E35: 6 | F35: 13 | G35: 9 | H35: 10 | I35: 14 | J35: 13 | K35: 17 | L35: 20 | M35: 25 | N35: 19 | O35: 19 | P35: 2 | Q35: 4 | R35: 2 | S35: 3 | T35: 1 | U35: 0 | V35: 1 | W35: 0 | X35: 0 | Y35: 138 | Z35: 11 | AA35: 9 | AB35: 10 | AC35: 4 | AD35: 6 | AE35: 9 | AF35: 17 | AG35: 18 | AH35: 14 | AI35: 11 | AJ35: 11 | AK35: 8 | AL35: 3 | AM35: 3 | AN35: 2 | AO35: 2 | AP35: 0 | AQ35: 0 | AR35: 0 | AS35: 0
A36: 35 | B36: SIERRA DE ALBARRACÍN | C36: 31 | D36: 119 | E36: 5 | F36: 3 | G36: 4 | H36: 7 | I36: 9 | J36: 4 | K36: 9 | L36: 19 | M36: 17 | N36: 16 | O36: 9 | P36: 10 | Q36: 6 | R36: 1 | S36: 0 | T36: 0 | U36: 0 | V36: 0 | W36: 0 | X36: 0 | Y36: 119 | Z36: 5 | AA36: 7 | AB36: 5 | AC36: 1 | AD36: 7 | AE36: 8 | AF36: 11 | AG36: 13 | AH36: 17 | AI36: 14 | AJ36: 5 | AK36: 11 | AL36: 6 | AM36: 3 | AN36: 3 | AO36: 2 | AP36: 0 | AQ36: 0 | AR36: 1 | AS36: 0
A37: 36 | B37: GÚDAR-JAVALAMBRE | C37: 32 | D37: 522 | E37: 30 | F37: 39 | G37: 32 | H37: 23 | I37: 41 | J37: 40 | K37: 43 | L37: 74 | M37: 68 | N37: 36 | O37: 40 | P37: 24 | Q37: 17 | R37: 6 | S37: 7 | T37: 2 | U37: 0 | V37: 0 | W37: 0 | X37: 0 | Y37: 409 | Z37: 29 | AA37: 35 | AB37: 26 | AC37: 11 | AD37: 30 | AE37: 47 | AF37: 38 | AG37: 51 | AH37: 39 | AI37: 40 | AJ37: 26 | AK37: 16 | AL37: 9 | AM37: 7 | AN37: 2 | AO37: 2 | AP37: 1 | AQ37: 0 | AR37: 0 | AS37: 0
A38: 37 | B38: MATARRAÑA/MATARRANYA | C38: 33 | D38: 705 | E38: 36 | F38: 32 | G38: 31 | H38: 46 | I38: 45 | J38: 35 | K38: 60 | L38: 74 | M38: 108 | N38: 74 | O38: 47 | P38: 40 | Q38: 28 | R38: 18 | S38: 18 | T38: 10 | U38: 3 | V38: 0 | W38: 0 | X38: 0 | Y38: 550 | Z38: 35 | AA38: 38 | AB38: 21 | AC38: 28 | AD38: 26 | AE38: 43 | AF38: 55 | AG38: 66 | AH38: 53 | AI38: 42 | AJ38: 35 | AK38: 40 | AL38: 32 | AM38: 15 | AN38: 10 | AO38: 8 | AP38: 3 | AQ38: 0 | AR38: 0 | AS38: 0
A39: 38 | B39: 22001 Abiego | C39: 22001 | D39: 5 | E39: 0 | F39: 1 | G39: 1 | H39: 0 | I39: 0 | J39: 0 | K39: 1 | L39: 1 | M39: 1 | N39: 0 | O39: 0 | P39: 0 | Q39: 0 | R39: 0 | S39: 0 | T39: 0 | U39: 0 | V39: 0 | W39: 0 | X39: 0 | Y39: 5 | Z39: 0 | AA39: 1 | AB39: 1 | AC39: 0 | AD39: 0 | AE39: 0 | AF39: 1 | AG39: 1 | AH39: 1 | AI39: 0 | AJ39: 0 | AK39: 0 | AL39: 0 | AM39: 0 | AN39: 0 | AO39: 0 | AP39: 0 | AQ39: 0 | AR39: 0 | AS39: 0 | AU39: 0
A40: 39 | B40: 22002 Abizanda | C40: 22002 | D40: 12 | E40: 0 | F40: 0 | G40: 0 | H40: 0 | I40: 0 | J40: 0 | K40: 2 | L40: 2 | M40: 1 | N40: 1 | O40: 1 | P40: 3 | Q40: 0 | R40: 0 | S40: 0 | T40: 2 | U40: 0 | V40: 0 | W40: 0 | X40: 0 | Y40: 12 | Z40: 0 | AA40: 0 | AB40: 0 | AC40: 0 | AD40: 0 | AE40: 0 | AF40: 2 | AG40: 2 | AH40: 1 | AI40: 1 | AJ40: 1 | AK40: 3 | AL40: 0 | AM40: 0 | AN40: 0 | AO40: 2 | AP40: 0 | AQ40: 0 | AR40: 0 | AS40: 0
A41: 40 | B41: 22003 Adahuesca | C41: 22003 | D41: 11 | E41: 0 | F41: 1 | G41: 0 | H41: 1 | I41: 2 | J41: 0 | K41: 1 | L41: 1 | M41: 2 | N41: 2 | O41: 0 | P41: 1 | Q41: 0 | R41: 0 | S41: 0 | T41: 0 | U41: 0 | V41: 0 | W41: 0 | X41: 0 | Y41: 11 | Z41: 0 | AA41: 1 | AB41: 0 | AC41: 1 | AD41: 2 | AE41: 0 | AF41: 1 | AG41: 1 | AH41: 2 | AI41: 2 | AJ41: 0 | AK41: 1 | AL41: 0 | AM41: 0 | AN41: 0 | AO41: 0 | AP41: 0 | AQ41: 0 | AR41: 0 | AS41: 0
A42: 41 | B42: 22004 Agüero | C42: 22004 | D42: 3 | E42: 0 | F42: 0 | G42: 0 | H42: 0 | I42: 0 | J42: 0 | K42: 1 | L42: 1 | M42: 0 | N42: 0 | O42: 0 | P42: 0 | Q42: 0 | R42: 1 | S42: 0 | T42: 0 | U42: 0 | V42: 0 | W42: 0 | X42: 0 | Y42: 3 | Z42: 0 | AA42: 0 | AB42: 0 | AC42: 0 | AD42: 0 | AE42: 0 | AF42: 1 | AG42: 1 | AH42: 0 | AI42: 0 | AJ42: 0 | AK42: 0 | AL42: 0 | AM42: 1 | AN42: 0 | AO42: 0 | AP42: 0 | AQ42: 0 | AR42: 0 | AS42: 0
A43: 42 | B43: 22006 Aísa | C43: 22006 | D43: 8 | E43: 0 | F43: 0 | G43: 0 | H43: 0 | I43: 1 | J43: 1 | K43: 1 | L43: 0 | M43: 3 | N43: 1 | O43: 0 | P43: 0 | Q43: 0 | R43: 0 | S43: 0 | T43: 0 | U43: 1 | V43: 0 | W43: 0 | X43: 0 | Y43: 8 | Z43: 0 | AA43: 0 | AB43: 0 | AC43: 0 | AD43: 1 | AE43: 1 | AF43: 1 | AG43: 0 | AH43: 3 | AI43: 1 | AJ43: 0 | AK43: 0 | AL43: 0 | AM43: 0 | AN43: 0 | AO43: 0 | AP43: 1 | AQ43: 0 | AR43: 0 | AS43: 0
A44: 43 | B44: 22007 Albalate de Cinca | C44: 22007 | D44: 168 | E44: 6 | F44: 9 | G44: 3 | H44: 4 | I44: 11 | J44: 17 | K44: 21 | L44: 17 | M44: 14 | N44: 22 | O44: 24 | P44: 7 | Q44: 9 | R44: 1 | S44: 3 | T44: 0 | U44: 0 | V44: 0 | W44: 0 | X44: 0 | Y44: 168 | Z44: 6 | AA44: 9 | AB44: 3 | AC44: 4 | AD44: 11 | AE44: 17 | AF44: 21 | AG44: 17 | AH44: 14 | AI44: 22 | AJ44: 24 | AK44: 7 | AL44: 9 | AM44: 1 | AN44: 3 | AO44: 0 | AP44: 0 | AQ44: 0 | AR44: 0 | AS44: 0
A45: 44 | B45: 22008 Albalatillo | C45: 22008 | D45: 17 | E45: 0 | F45: 0 | G45: 1 | H45: 1 | I45: 2 | J45: 5 | K45: 1 | L45: 0 | M45: 2 | N45: 1 | O45: 2 | P45: 1 | Q45: 0 | R45: 0 | S45: 0 | T45: 0 | U45: 0 | V45: 1 | W45: 0 | X45: 0 | Y45: 17 | Z45: 0 | AA45: 0 | AB45: 1 | AC45: 1 | AD45: 2 | AE45: 5 | AF45: 1 | AG45: 0 | AH45: 2 | AI45: 1 | AJ45: 2 | AK45: 1 | AL45: 0 | AM45: 0 | AN45: 0 | AO45: 0 | AP45: 0 | AQ45: 1 | AR45: 0 | AS45: 0
A46: 45 | B46: 22009 Albelda | C46: 22009 | D46: 26 | E46: 2 | F46: 4 | G46: 0 | H46: 2 | I46: 3 | J46: 0 | K46: 1 | L46: 4 | M46: 2 | N46: 2 | O46: 2 | P46: 3 | Q46: 1 | R46: 0 | S46: 0 | T46: 0 | U46: 0 | V46: 0 | W46: 0 | X46: 0 | Y46: 26 | Z46: 2 | AA46: 4 | AB46: 0 | AC46: 2 | AD46: 3 | AE46: 0 | AF46: 1 | AG46: 4 | AH46: 2 | AI46: 2 | AJ46: 2 | AK46: 3 | AL46: 1 | AM46: 0 | AN46: 0 | AO46: 0 | AP46: 0 | AQ46: 0 | AR46: 0 | AS46: 0
A47: 46 | B47: 22011 Albero Alto | C47: 22011 | D47: 2 | E47: 0 | F47: 0 | G47: 0 | H47: 0 | I47: 0 | J47: 0 | K47: 0 | L47: 0 | M47: 0 | N47: 0 | O47: 1 | P47: 0 | Q47: 1 | R47: 0 | S47: 0 | T47: 0 | U47: 0 | V47: 0 | W47: 0 | X47: 0 | Y47: 2 | Z47: 0 | AA47: 0 | AB47: 0 | AC47: 0 | AD47: 0 | AE47: 0 | AF47: 0 | AG47: 0 | AH47: 0 | AI47: 0 | AJ47: 1 | AK47: 0 | AL47: 1 | AM47: 0 | AN47: 0 | AO47: 0 | AP47: 0 | AQ47: 0 | AR47: 0 | AS47: 0
A48: 47 | B48: 22012 Albero Bajo | C48: 22012 | D48: 3 | E48: 0 | F48: 0 | G48: 0 | H48: 0 | I48: 0 | J48: 0 | K48: 1 | L48: 0 | M48: 0 | N48: 0 | O48: 0 | P48: 0 | Q48: 1 | R48: 0 | S48: 1 | T48: 0 | U48: 0 | V48: 0 | W48: 0 | X48: 0 | Y48: 3 | Z48: 0 | AA48: 0 | AB48: 0 | AC48: 0 | AD48: 0 | AE48: 0 | AF48: 1 | AG48: 0 | AH48: 0 | AI48: 0 | AJ48: 0 | AK48: 0 | AL48: 1 | AM48: 0 | AN48: 1 | AO48: 0 | AP48: 0 | AQ48: 0 | AR48: 0 | AS48: 0
A49: 48 | B49: 22013 Alberuela de Tubo | C49: 22013 | D49: 5 | E49: 0 | F49: 1 | G49: 0 | H49: 0 | I49: 0 | J49: 0 | K49: 1 | L49: 0 | M49: 2 | N49: 0 | O49: 1 | P49: 0 | Q49: 0 | R49: 0 | S49: 0 | T49: 0 | U49: 0 | V49: 0 | W49: 0 | X49: 0 | Y49: 5 | Z49: 0 | AA49: 1 | AB49: 0 | AC49: 0 | AD49: 0 | AE49: 0 | AF49: 1 | AG49: 0 | AH49: 2 | AI49: 0 | AJ49: 1 | AK49: 0 | AL49: 0 | AM49: 0 | AN49: 0 | AO49: 0 | AP49: 0 | AQ49: 0 | AR49: 0 | AS49: 0
A50: 49 | B50: 22014 Alcalá de Gurrea | C50: 22014 | D50: 0 | E50: 0 | F50: 0 | G50: 0 | H50: 0 | I50: 0 | J50: 0 | K50: 0 | L50: 0 | M50: 0 | N50: 0 | O50: 0 | P50: 0 | Q50: 0 | R50: 0 | S50: 0 | T50: 0 | U50: 0 | V50: 0 | W50: 0 | X50: 0 | Y50: 0 | Z50: 0 | AA50: 0 | AB50: 0 | AC50: 0 | AD50: 0 | AE50: 0 | AF50: 0 | AG50: 0 | AH50: 0 | AI50: 0 | AJ50: 0 | AK50: 0 | AL50: 0 | AM50: 0 | AN50: 0 | AO50: 0 | AP50: 0 | AQ50: 0 | AR50: 0 | AS50: 0
A51: 50 | B51: 22015 Alcalá del Obispo | C51: 22015 | D51: 7 | E51: 1 | F51: 3 | G51: 0 | H51: 0 | I51: 0 | J51: 0 | K51: 0 | L51: 1 | M51: 1 | N51: 0 | O51: 0 | P51: 0 | Q51: 0 | R51: 0 | S51: 0 | T51: 1 | U51: 0 | V51: 0 | W51: 0 | X51: 0 | Y51: 7 | Z51: 1 | AA51: 3 | AB51: 0 | AC51: 0 | AD51: 0 | AE51: 0 | AF51: 0 | AG51: 1 | AH51: 1 | AI51: 0 | AJ51: 0 | AK51: 0 | AL51: 0 | AM51: 0 | AN51: 0 | AO51: 1 | AP51: 0 | AQ51: 0 | AR51: 0 | AS51: 0
A52: 51 | B52: 22016 Alcampell | C52: 22016 | D52: 15 | E52: 2 | F52: 1 | G52: 2 | H52: 0 | I52: 1 | J52: 0 | K52: 1 | L52: 0 | M52: 2 | N52: 2 | O52: 2 | P52: 2 | Q52: 0 | R52: 0 | S52: 0 | T52: 0 | U52: 0 | V52: 0 | W52: 0 | X52: 0 | Y52: 15 | Z52: 2 | AA52: 1 | AB52: 2 | AC52: 0 | AD52: 1 | AE52: 0 | AF52: 1 | AG52: 0 | AH52: 2 | AI52: 2 | AJ52: 2 | AK52: 2 | AL52: 0 | AM52: 0 | AN52: 0 | AO52: 0 | AP52: 0 | AQ52: 0 | AR52: 0 | AS52: 0
A53: 52 | B53: 22017 Alcolea de Cinca | C53: 22017 | D53: 149 | E53: 3 | F53: 4 | G53: 1 | H53: 4 | I53: 9 | J53: 13 | K53: 20 | L53: 21 | M53: 24 | N53: 23 | O53: 20 | P53: 4 | Q53: 3 | R53: 0 | S53: 0 | T53: 0 | U53: 0 | V53: 0 | W53: 0 | X53: 0 | Y53: 149 | Z53: 3 | AA53: 4 | AB53: 1 | AC53: 4 | AD53: 9 | AE53: 13 | AF53: 20 | AG53: 21 | AH53: 24 | AI53: 23 | AJ53: 20 | AK53: 4 | AL53: 3 | AM53: 0 | AN53: 0 | AO53: 0 | AP53: 0 | AQ53: 0 | AR53: 0 | AS53: 0
A54: 53 | B54: 22018 Alcubierre | C54: 22018 | D54: 19 | E54: 2 | F54: 0 | G54: 2 | H54: 0 | I54: 0 | J54: 4 | K54: 1 | L54: 3 | M54: 3 | N54: 1 | O54: 0 | P54: 1 | Q54: 0 | R54: 1 | S54: 0 | T54: 0 | U54: 0 | V54: 1 | W54: 0 | X54: 0 | Y54: 19 | Z54: 2 | AA54: 0 | AB54: 2 | AC54: 0 | AD54: 0 | AE54: 4 | AF54: 1 | AG54: 3 | AH54: 3 | AI54: 1 | AJ54: 0 | AK54: 1 | AL54: 0 | AM54: 1 | AN54: 0 | AO54: 0 | AP54: 0 | AQ54: 1 | AR54: 0 | AS54: 0
A55: 54 | B55: 22019 Alerre | C55: 22019 | D55: 4 | E55: 0 | F55: 0 | G55: 0 | H55: 0 | I55: 0 | J55: 0 | K55: 0 | L55: 0 | M55: 2 | N55: 1 | O55: 0 | P55: 0 | Q55: 1 | R55: 0 | S55: 0 | T55: 0 | U55: 0 | V55: 0 | W55: 0 | X55: 0 | Y55: 4 | Z55: 0 | AA55: 0 | AB55: 0 | AC55: 0 | AD55: 0 | AE55: 0 | AF55: 0 | AG55: 0 | AH55: 2 | AI55: 1 | AJ55: 0 | AK55: 0 | AL55: 1 | AM55: 0 | AN55: 0 | AO55: 0 | AP55: 0 | AQ55: 0 | AR55: 0 | AS55: 0
A56: 55 | B56: 22020 Alfántega | C56: 22020 | D56: 9 | E56: 0 | F56: 0 | G56: 0 | H56: 0 | I56: 1 | J56: 2 | K56: 2 | L56: 0 | M56: 2 | N56: 0 | O56: 2 | P56: 0 | Q56: 0 | R56: 0 | S56: 0 | T56: 0 | U56: 0 | V56: 0 | W56: 0 | X56: 0 | Y56: 9 | Z56: 0 | AA56: 0 | AB56: 0 | AC56: 0 | AD56: 1 | AE56: 2 | AF56: 2 | AG56: 0 | AH56: 2 | AI56: 0 | AJ56: 2 | AK56: 0 | AL56: 0 | AM56: 0 | AN56: 0 | AO56: 0 | AP56: 0 | AQ56: 0 | AR56: 0 | AS56: 0
A57: 56 | B57: 22021 Almudévar | C57: 22021 | D57: 70 | E57: 1 | F57: 8 | G57: 4 | H57: 5 | I57: 3 | J57: 7 | K57: 6 | L57: 8 | M57: 11 | N57: 3 | O57: 7 | P57: 2 | Q57: 1 | R57: 1 | S57: 0 | T57: 1 | U57: 1 | V57: 1 | W57: 0 | X57: 0 | Y57: 70 | Z57: 1 | AA57: 8 | AB57: 4 | AC57: 5 | AD57: 3 | AE57: 7 | AF57: 6 | AG57: 8 | AH57: 11 | AI57: 3 | AJ57: 7 | AK57: 2 | AL57: 1 | AM57: 1 | AN57: 0 | AO57: 1 | AP57: 1 | AQ57: 1 | AR57: 0 | AS57: 0
A58: 57 | B58: 22022 Almunia de San Juan | C58: 22022 | D58: 16 | E58: 1 | F58: 1 | G58: 2 | H58: 0 | I58: 0 | J58: 2 | K58: 2 | L58: 0 | M58: 2 | N58: 2 | O58: 2 | P58: 0 | Q58: 0 | R58: 1 | S58: 1 | T58: 0 | U58: 0 | V58: 0 | W58: 0 | X58: 0 | Y58: 16 | Z58: 1 | AA58: 1 | AB58: 2 | AC58: 0 | AD58: 0 | AE58: 2 | AF58: 2 | AG58: 0 | AH58: 2 | AI58: 2 | AJ58: 2 | AK58: 0 | AL58: 0 | AM58: 1 | AN58: 1 | AO58: 0 | AP58: 0 | AQ58: 0 | AR58: 0 | AS58: 0
A59: 58 | B59: 22023 Almuniente | C59: 22023 | D59: 17 | E59: 0 | F59: 0 | G59: 1 | H59: 0 | I59: 0 | J59: 2 | K59: 1 | L59: 6 | M59: 2 | N59: 2 | O59: 0 | P59: 2 | Q59: 1 | R59: 0 | S59: 0 | T59: 0 | U59: 0 | V59: 0 | W59: 0 | X59: 0 | Y59: 17 | Z59: 0 | AA59: 0 | AB59: 1 | AC59: 0 | AD59: 0 | AE59: 2 | AF59: 1 | AG59: 6 | AH59: 2 | AI59: 2 | AJ59: 0 | AK59: 2 | AL59: 1 | AM59: 0 | AN59: 0 | AO59: 0 | AP59: 0 | AQ59: 0 | AR59: 0 | AS59: 0
A60: 59 | B60: 22024 Alquézar | C60: 22024 | D60: 31 | E60: 1 | F60: 1 | G60: 2 | H60: 1 | I60: 0 | J60: 3 | K60: 2 | L60: 6 | M60: 1 | N60: 1 | O60: 1 | P60: 1 | Q60: 6 | R60: 3 | S60: 0 | T60: 1 | U60: 1 | V60: 0 | W60: 0 | X60: 0 | Y60: 31 | Z60: 1 | AA60: 1 | AB60: 2 | AC60: 1 | AD60: 0 | AE60: 3 | AF60: 2 | AG60: 6 | AH60: 1 | AI60: 1 | AJ60: 1 | AK60: 1 | AL60: 6 | AM60: 3 | AN60: 0 | AO60: 1 | AP60: 1 | AQ60: 0 | AR60: 0 | AS60: 0
A61: 60 | B61: 22025 Altorricón | C61: 22025 | D61: 194 | E61: 8 | F61: 12 | G61: 7 | H61: 8 | I61: 21 | J61: 14 | K61: 24 | L61: 27 | M61: 23 | N61: 25 | O61: 15 | P61: 5 | Q61: 3 | R61: 2 | S61: 0 | T61: 0 | U61: 0 | V61: 0 | W61: 0 | X61: 0 | Y61: 194 | Z61: 8 | AA61: 12 | AB61: 7 | AC61: 8 | AD61: 21 | AE61: 14 | AF61: 24 | AG61: 27 | AH61: 23 | AI61: 25 | AJ61: 15 | AK61: 5 | AL61: 3 | AM61: 2 | AN61: 0 | AO61: 0 | AP61: 0 | AQ61: 0 | AR61: 0 | AS61: 0
A62: 61 | B62: 22027 Angüés | C62: 22027 | D62: 12 | E62: 0 | F62: 0 | G62: 0 | H62: 1 | I62: 0 | J62: 2 | K62: 0 | L62: 3 | M62: 2 | N62: 3 | O62: 0 | P62: 0 | Q62: 0 | R62: 1 | S62: 0 | T62: 0 | U62: 0 | V62: 0 | W62: 0 | X62: 0 | Y62: 12 | Z62: 0 | AA62: 0 | AB62: 0 | AC62: 1 | AD62: 0 | AE62: 2 | AF62: 0 | AG62: 3 | AH62: 2 | AI62: 3 | AJ62: 0 | AK62: 0 | AL62: 0 | AM62: 1 | AN62: 0 | AO62: 0 | AP62: 0 | AQ62: 0 | AR62: 0 | AS62: 0
A63: 62 | B63: 22028 Ansó | C63: 22028 | D63: 2 | E63: 0 | F63: 0 | G63: 0 | H63: 0 | I63: 0 | J63: 0 | K63: 0 | L63: 0 | M63: 0 | N63: 0 | O63: 0 | P63: 1 | Q63: 1 | R63: 0 | S63: 0 | T63: 0 | U63: 0 | V63: 0 | W63: 0 | X63: 0 | Y63: 2 | Z63: 0 | AA63: 0 | AB63: 0 | AC63: 0 | AD63: 0 | AE63: 0 | AF63: 0 | AG63: 0 | AH63: 0 | AI63: 0 | AJ63: 0 | AK63: 1 | AL63: 1 | AM63: 0 | AN63: 0 | AO63: 0 | AP63: 0 | AQ63: 0 | AR63: 0 | AS63: 0
A64: 63 | B64: 22029 Antillón | C64: 22029 | D64: 1 | E64: 0 | F64: 0 | G64: 0 | H64: 0 | I64: 0 | J64: 1 | K64: 0 | L64: 0 | M64: 0 | N64: 0 | O64: 0 | P64: 0 | Q64: 0 | R64: 0 | S64: 0 | T64: 0 | U64: 0 | V64: 0 | W64: 0 | X64: 0 | Y64: 1 | Z64: 0 | AA64: 0 | AB64: 0 | AC64: 0 | AD64: 0 | AE64: 1 | AF64: 0 | AG64: 0 | AH64: 0 | AI64: 0 | AJ64: 0 | AK64: 0 | AL64: 0 | AM64: 0 | AN64: 0 | AO64: 0 | AP64: 0 | AQ64: 0 | AR64: 0 | AS64: 0
A65: 64 | B65: 22032 Aragüés del Puerto | C65: 22032 | D65: 0 | E65: 0 | F65: 0 | G65: 0 | H65: 0 | I65: 0 | J65: 0 | K65: 0 | L65: 0 | M65: 0 | N65: 0 | O65: 0 | P65: 0 | Q65: 0 | R65: 0 | S65: 0 | T65: 0 | U65: 0 | V65: 0 | W65: 0 | X65: 0 | Y65: 0 | Z65: 0 | AA65: 0 | AB65: 0 | AC65: 0 | AD65: 0 | AE65: 0 | AF65: 0 | AG65: 0 | AH65: 0 | AI65: 0 | AJ65: 0 | AK65: 0 | AL65: 0 | AM65: 0 | AN65: 0 | AO65: 0 | AP65: 0 | AQ65: 0 | AR65: 0 | AS65: 0
A66: 65 | B66: 22035 Arén | C66: 22035 | D66: 33 | E66: 0 | F66: 0 | G66: 0 | H66: 0 | I66: 1 | J66: 4 | K66: 5 | L66: 3 | M66: 7 | N66: 5 | O66: 2 | P66: 1 | Q66: 2 | R66: 1 | S66: 1 | T66: 0 | U66: 1 | V66: 0 | W66: 0 | X66: 0 | Y66: 33 | Z66: 0 | AA66: 0 | AB66: 0 | AC66: 0 | AD66: 1 | AE66: 4 | AF66: 5 | AG66: 3 | AH66: 7 | AI66: 5 | AJ66: 2 | AK66: 1 | AL66: 2 | AM66: 1 | AN66: 1 | AO66: 0 | AP66: 1 | AQ66: 0 | AR66: 0 | AS66: 0
A67: 66 | B67: 22036 Argavieso | C67: 22036 | D67: =(SUM(E67:X67))+0 -> 6 | E67: 0 | F67: 0 | G67: 1 | H67: 0 | I67: 1 | J67: 0 | K67: 1 | L67: 0 | M67: 1 | N67: 2 | O67: 0 | P67: 0 | Q67: 0 | R67: 0 | S67: 0 | T67: 0 | U67: 0 | V67: 0 | W67: 0 | X67: 0 | Y67: =(SUM(Z67:AS67))+0 -> 6 | Z67: 0 | AA67: 0 | AB67: 1 | AC67: 0 | AD67: 1 | AE67: 0 | AF67: 1 | AG67: 0 | AH67: 1 | AI67: 2 | AJ67: 0 | AK67: 0 | AL67: 0 | AM67: 0 | AN67: 0 | AO67: 0 | AP67: 0 | AQ67: 0 | AR67: 0 | AS67: 0
A68: 67 | B68: 22037 Arguis | C68: 22037 | D68: 1 | E68: 0 | F68: 1 | G68: 0 | H68: 0 | I68: 0 | J68: 0 | K68: 0 | L68: 0 | M68: 0 | N68: 0 | O68: 0 | P68: 0 | Q68: 0 | R68: 0 | S68: 0 | T68: 0 | U68: 0 | V68: 0 | W68: 0 | X68: 0 | Y68: 1 | Z68: 0 | AA68: 1 | AB68: 0 | AC68: 0 | AD68: 0 | AE68: 0 | AF68: 0 | AG68: 0 | AH68: 0 | AI68: 0 | AJ68: 0 | AK68: 0 | AL68: 0 | AM68: 0 | AN68: 0 | AO68: 0 | AP68: 0 | AQ68: 0 | AR68: 0 | AS68: 0
A69: 68 | B69: 22039 Ayerbe | C69: 22039 | D69: 25 | E69: 1 | F69: 2 | G69: 1 | H69: 1 | I69: 2 | J69: 5 | K69: 0 | L69: 2 | M69: 5 | N69: 1 | O69: 0 | P69: 2 | Q69: 0 | R69: 1 | S69: 1 | T69: 0 | U69: 1 | V69: 0 | W69: 0 | X69: 0 | Y69: 25 | Z69: 1 | AA69: 2 | AB69: 1 | AC69: 1 | AD69: 2 | AE69: 5 | AF69: 0 | AG69: 2 | AH69: 5 | AI69: 1 | AJ69: 0 | AK69: 2 | AL69: 0 | AM69: 1 | AN69: 1 | AO69: 0 | AP69: 1 | AQ69: 0 | AR69: 0 | AS69: 0
A70: 69 | B70: 22040 Azanuy-Alins | C70: 22040 | D70: 5 | E70: 1 | F70: 0 | G70: 0 | H70: 0 | I70: 0 | J70: 1 | K70: 1 | L70: 0 | M70: 0 | N70: 0 | O70: 0 | P70: 1 | Q70: 1 | R70: 0 | S70: 0 | T70: 0 | U70: 0 | V70: 0 | W70: 0 | X70: 0 | Y70: 5 | Z70: 1 | AA70: 0 | AB70: 0 | AC70: 0 | AD70: 0 | AE70: 1 | AF70: 1 | AG70: 0 | AH70: 0 | AI70: 0 | AJ70: 0 | AK70: 1 | AL70: 1 | AM70: 0 | AN70: 0 | AO70: 0 | AP70: 0 | AQ70: 0 | AR70: 0 | AS70: 0
A71: 70 | B71: 22041 Azara | C71: 22041 | D71: 2 | E71: 0 | F71: 0 | G71: 0 | H71: 0 | I71: 0 | J71: 0 | K71: 0 | L71: 0 | M71: 0 | N71: 0 | O71: 0 | P71: 2 | Q71: 0 | R71: 0 | S71: 0 | T71: 0 | U71: 0 | V71: 0 | W71: 0 | X71: 0 | Y71: 2 | Z71: 0 | AA71: 0 | AB71: 0 | AC71: 0 | AD71: 0 | AE71: 0 | AF71: 0 | AG71: 0 | AH71: 0 | AI71: 0 | AJ71: 0 | AK71: 2 | AL71: 0 | AM71: 0 | AN71: 0 | AO71: 0 | AP71: 0 | AQ71: 0 | AR71: 0 | AS71: 0
A72: 71 | B72: 22042 Azlor | C72: 22042 | D72: 4 | E72: 0 | F72: 0 | G72: 0 | H72: 0 | I72: 0 | J72: 1 | K72: 0 | L72: 1 | M72: 1 | N72: 0 | O72: 1 | P72: 0 | Q72: 0 | R72: 0 | S72: 0 | T72: 0 | U72: 0 | V72: 0 | W72: 0 | X72: 0 | Y72: 4 | Z72: 0 | AA72: 0 | AB72: 0 | AC72: 0 | AD72: 0 | AE72: 1 | AF72: 0 | AG72: 1 | AH72: 1 | AI72: 0 | AJ72: 1 | AK72: 0 | AL72: 0 | AM72: 0 | AN72: 0 | AO72: 0 | AP72: 0 | AQ72: 0 | AR72: 0 | AS72: 0
A73: 72 | B73: 22043 Baells | C73: 22043 | D73: 2 | E73: 0 | F73: 0 | G73: 0 | H73: 0 | I73: 0 | J73: 0 | K73: 1 | L73: 0 | M73: 0 | N73: 1 | O73: 0 | P73: 0 | Q73: 0 | R73: 0 | S73: 0 | T73: 0 | U73: 0 | V73: 0 | W73: 0 | X73: 0 | Y73: 2 | Z73: 0 | AA73: 0 | AB73: 0 | AC73: 0 | AD73: 0 | AE73: 0 | AF73: 1 | AG73: 0 | AH73: 0 | AI73: 1 | AJ73: 0 | AK73: 0 | AL73: 0 | AM73: 0 | AN73: 0 | AO73: 0 | AP73: 0 | AQ73: 0 | AR73: 0 | AS73: 0
A74: 73 | B74: 22044 Bailo | C74: 22044 | D74: 8 | E74: 0 | F74: 1 | G74: 0 | H74: 1 | I74: 0 | J74: 0 | K74: 0 | L74: 1 | M74: 1 | N74: 1 | O74: 1 | P74: 0 | Q74: 0 | R74: 0 | S74: 1 | T74: 1 | U74: 0 | V74: 0 | W74: 0 | X74: 0 | Y74: 8 | Z74: 0 | AA74: 1 | AB74: 0 | AC74: 1 | AD74: 0 | AE74: 0 | AF74: 0 | AG74: 1 | AH74: 1 | AI74: 1 | AJ74: 1 | AK74: 0 | AL74: 0 | AM74: 0 | AN74: 1 | AO74: 1 | AP74: 0 | AQ74: 0 | AR74: 0 | AS74: 0
A75: 74 | B75: 22045 Baldellou | C75: 22045 | D75: 1 | E75: 0 | F75: 0 | G75: 0 | H75: 0 | I75: 0 | J75: 0 | K75: 0 | L75: 0 | M75: 0 | N75: 1 | O75: 0 | P75: 0 | Q75: 0 | R75: 0 | S75: 0 | T75: 0 | U75: 0 | V75: 0 | W75: 0 | X75: 0 | Y75: 1 | Z75: 0 | AA75: 0 | AB75: 0 | AC75: 0 | AD75: 0 | AE75: 0 | AF75: 0 | AG75: 0 | AH75: 0 | AI75: 1 | AJ75: 0 | AK75: 0 | AL75: 0 | AM75: 0 | AN75: 0 | AO75: 0 | AP75: 0 | AQ75: 0 | AR75: 0 | AS75: 0
A76: 75 | B76: 22046 Ballobar | C76: 22046 | D76: 43 | E76: 1 | F76: 1 | G76: 2 | H76: 2 | I76: 5 | J76: 4 | K76: 5 | L76: 3 | M76: 8 | N76: 6 | O76: 3 | P76: 3 | Q76: 0 | R76: 0 | S76: 0 | T76: 0 | U76: 0 | V76: 0 | W76: 0 | X76: 0 | Y76: 43 | Z76: 1 | AA76: 1 | AB76: 2 | AC76: 2 | AD76: 5 | AE76: 4 | AF76: 5 | AG76: 3 | AH76: 8 | AI76: 6 | AJ76: 3 | AK76: 3 | AL76: 0 | AM76: 0 | AN76: 0 | AO76: 0 | AP76: 0 | AQ76: 0 | AR76: 0 | AS76: 0
A77: 76 | B77: 22047 Banastás | C77: 22047 | D77: 2 | E77: 0 | F77: 0 | G77: 0 | H77: 0 | I77: 1 | J77: 0 | K77: 0 | L77: 0 | M77: 0 | N77: 0 | O77: 1 | P77: 0 | Q77: 0 | R77: 0 | S77: 0 | T77: 0 | U77: 0 | V77: 0 | W77: 0 | X77: 0 | Y77: 2 | Z77: 0 | AA77: 0 | AB77: 0 | AC77: 0 | AD77: 1 | AE77: 0 | AF77: 0 | AG77: 0 | AH77: 0 | AI77: 0 | AJ77: 1 | AK77: 0 | AL77: 0 | AM77: 0 | AN77: 0 | AO77: 0 | AP77: 0 | AQ77: 0 | AR77: 0 | AS77: 0
A78: 77 | B78: 22048 Barbastro | C78: 22048 | D78: 996 | E78: 75 | F78: 48 | G78: 42 | H78: 60 | I78: 73 | J78: 86 | K78: 95 | L78: 120 | M78: 162 | N78: 87 | O78: 72 | P78: 25 | Q78: 23 | R78: 14 | S78: 7 | T78: 5 | U78: 1 | V78: 0 | W78: 1 | X78: 0 | Y78: 996 | Z78: 75 | AA78: 48 | AB78: 42 | AC78: 60 | AD78: 73 | AE78: 86 | AF78: 95 | AG78: 120 | AH78: 162 | AI78: 87 | AJ78: 72 | AK78: 25 | AL78: 23 | AM78: 14 | AN78: 7 | AO78: 5 | AP78: 1 | AQ78: 0 | AR78: 1 | AS78: 0
A79: 78 | B79: 22049 Barbués | C79: 22049 | D79: 3 | E79: 0 | F79: 0 | G79: 1 | H79: 0 | I79: 0 | J79: 0 | K79: 0 | L79: 1 | M79: 0 | N79: 1 | O79: 0 | P79: 0 | Q79: 0 | R79: 0 | S79: 0 | T79: 0 | U79: 0 | V79: 0 | W79: 0 | X79: 0 | Y79: 3 | Z79: 0 | AA79: 0 | AB79: 1 | AC79: 0 | AD79: 0 | AE79: 0 | AF79: 0 | AG79: 1 | AH79: 0 | AI79: 1 | AJ79: 0 | AK79: 0 | AL79: 0 | AM79: 0 | AN79: 0 | AO79: 0 | AP79: 0 | AQ79: 0 | AR79: 0 | AS79: 0
A80: 79 | B80: 22050 Barbuñales | C80: 22050 | D80: 1 | E80: 0 | F80: 0 | G80: 0 | H80: 0 | I80: 0 | J80: 0 | K80: 0 | L80: 0 | M80: 0 | N80: 0 | O80: 0 | P80: 1 | Q80: 0 | R80: 0 | S80: 0 | T80: 0 | U80: 0 | V80: 0 | W80: 0 | X80: 0 | Y80: 1 | Z80: 0 | AA80: 0 | AB80: 0 | AC80: 0 | AD80: 0 | AE80: 0 | AF80: 0 | AG80: 0 | AH80: 0 | AI80: 0 | AJ80: 0 | AK80: 1 | AL80: 0 | AM80: 0 | AN80: 0 | AO80: 0 | AP80: 0 | AQ80: 0 | AR80: 0 | AS80: 0
A81: 80 | B81: 22051 Bárcabo | C81: 22051 | D81: 6 | E81: 0 | F81: 0 | G81: 0 | H81: 0 | I81: 0 | J81: 0 | K81: 0 | L81: 0 | M81: 1 | N81: 1 | O81: 0 | P81: 1 | Q81: 1 | R81: 2 | S81: 0 | T81: 0 | U81: 0 | V81: 0 | W81: 0 | X81: 0 | Y81: 6 | Z81: 0 | AA81: 0 | AB81: 0 | AC81: 0 | AD81: 0 | AE81: 0 | AF81: 0 | AG81: 0 | AH81: 1 | AI81: 1 | AJ81: 0 | AK81: 1 | AL81: 1 | AM81: 2 | AN81: 0 | AO81: 0 | AP81: 0 | AQ81: 0 | AR81: 0 | AS81: 0
A82: 81 | B82: 22052 Belver de Cinca | C82: 22052 | D82: 215 | E82: 10 | F82: 4 | G82: 7 | H82: 9 | I82: 20 | J82: 24 | K82: 22 | L82: 26 | M82: 36 | N82: 24 | O82: 20 | P82: 8 | Q82: 2 | R82: 3 | S82: 0 | T82: 0 | U82: 0 | V82: 0 | W82: 0 | X82: 0 | Y82: 215 | Z82: 10 | AA82: 4 | AB82: 7 | AC82: 9 | AD82: 20 | AE82: 24 | AF82: 22 | AG82: 26 | AH82: 36 | AI82: 24 | AJ82: 20 | AK82: 8 | AL82: 2 | AM82: 3 | AN82: 0 | AO82: 0 | AP82: 0 | AQ82: 0 | AR82: 0 | AS82: 0
A83: 82 | B83: 22053 Benabarre | C83: 22053 | D83: 110 | E83: 10 | F83: 6 | G83: 9 | H83: 3 | I83: 8 | J83: 6 | K83: 13 | L83: 6 | M83: 14 | N83: 15 | O83: 10 | P83: 1 | Q83: 3 | R83: 4 | S83: 0 | T83: 2 | U83: 0 | V83: 0 | W83: 0 | X83: 0 | Y83: 110 | Z83: 10 | AA83: 6 | AB83: 9 | AC83: 3 | AD83: 8 | AE83: 6 | AF83: 13 | AG83: 6 | AH83: 14 | AI83: 15 | AJ83: 10 | AK83: 1 | AL83: 3 | AM83: 4 | AN83: 0 | AO83: 2 | AP83: 0 | AQ83: 0 | AR83: 0 | AS83: 0
A84: 83 | B84: 22054 Benasque | C84: 22054 | D84: 90 | E84: 2 | F84: 4 | G84: 2 | H84: 2 | I84: 6 | J84: 14 | K84: 9 | L84: 14 | M84: 12 | N84: 10 | O84: 7 | P84: 4 | Q84: 2 | R84: 1 | S84: 0 | T84: 1 | U84: 0 | V84: 0 | W84: 0 | X84: 0 | Y84: 90 | Z84: 2 | AA84: 4 | AB84: 2 | AC84: 2 | AD84: 6 | AE84: 14 | AF84: 9 | AG84: 14 | AH84: 12 | AI84: 10 | AJ84: 7 | AK84: 4 | AL84: 2 | AM84: 1 | AN84: 0 | AO84: 1 | AP84: 0 | AQ84: 0 | AR84: 0 | AS84: 0
A85: 84 | B85: 22055 Berbegal | C85: 22055 | D85: 3 | E85: 0 | F85: 1 | G85: 0 | H85: 0 | I85: 0 | J85: 0 | K85: 0 | L85: 0 | M85: 0 | N85: 0 | O85: 1 | P85: 1 | Q85: 0 | R85: 0 | S85: 0 | T85: 0 | U85: 0 | V85: 0 | W85: 0 | X85: 0 | Y85: 3 | Z85: 0 | AA85: 1 | AB85: 0 | AC85: 0 | AD85: 0 | AE85: 0 | AF85: 0 | AG85: 0 | AH85: 0 | AI85: 0 | AJ85: 1 | AK85: 1 | AL85: 0 | AM85: 0 | AN85: 0 | AO85: 0 | AP85: 0 | AQ85: 0 | AR85: 0 | AS85: 0
A86: 85 | B86: 22057 Bielsa | C86: 22057 | D86: 20 | E86: 0 | F86: 0 | G86: 1 | H86: 1 | I86: 1 | J86: 2 | K86: 2 | L86: 2 | M86: 5 | N86: 4 | O86: 0 | P86: 1 | Q86: 0 | R86: 0 | S86: 1 | T86: 0 | U86: 0 | V86: 0 | W86: 0 | X86: 0 | Y86: 20 | Z86: 0 | AA86: 0 | AB86: 1 | AC86: 1 | AD86: 1 | AE86: 2 | AF86: 2 | AG86: 2 | AH86: 5 | AI86: 4 | AJ86: 0 | AK86: 1 | AL86: 0 | AM86: 0 | AN86: 1 | AO86: 0 | AP86: 0 | AQ86: 0 | AR86: 0 | AS86: 0
A87: 86 | B87: 22058 Bierge | C87: 22058 | D87: 13 | E87: 1 | F87: 0 | G87: 1 | H87: 0 | I87: 1 | J87: 0 | K87: 1 | L87: 2 | M87: 2 | N87: 2 | O87: 0 | P87: 1 | Q87: 1 | R87: 0 | S87: 0 | T87: 1 | U87: 0 | V87: 0 | W87: 0 | X87: 0 | Y87: 13 | Z87: 1 | AA87: 0 | AB87: 1 | AC87: 0 | AD87: 1 | AE87: 0 | AF87: 1 | AG87: 2 | AH87: 2 | AI87: 2 | AJ87: 0 | AK87: 1 | AL87: 1 | AM87: 0 | AN87: 0 | AO87: 1 | AP87: 0 | AQ87: 0 | AR87: 0 | AS87: 0
A88: 87 | B88: 22059 Biescas | C88: 22059 | D88: 84 | E88: 3 | F88: 5 | G88: 4 | H88: 2 | I88: 5 | J88: 2 | K88: 6 | L88: 13 | M88: 5 | N88: 19 | O88: 2 | P88: 10 | Q88: 6 | R88: 1 | S88: 1 | T88: 0 | U88: 0 | V88: 0 | W88: 0 | X88: 0 | Y88: 84 | Z88: 3 | AA88: 5 | AB88: 4 | AC88: 2 | AD88: 5 | AE88: 2 | AF88: 6 | AG88: 13 | AH88: 5 | AI88: 19 | AJ88: 2 | AK88: 10 | AL88: 6 | AM88: 1 | AN88: 1 | AO88: 0 | AP88: 0 | AQ88: 0 | AR88: 0 | AS88: 0
A89: 88 | B89: 22060 Binaced | C89: 22060 | D89: 185 | E89: 5 | F89: 5 | G89: 5 | H89: 9 | I89: 18 | J89: 29 | K89: 28 | L89: 32 | M89: 25 | N89: 13 | O89: 8 | P89: 3 | Q89: 4 | R89: 1 | S89: 0 | T89: 0 | U89: 0 | V89: 0 | W89: 0 | X89: 0 | Y89: 185 | Z89: 5 | AA89: 5 | AB89: 5 | AC89: 9 | AD89: 18 | AE89: 29 | AF89: 28 | AG89: 32 | AH89: 25 | AI89: 13 | AJ89: 8 | AK89: 3 | AL89: 4 | AM89: 1 | AN89: 0 | AO89: 0 | AP89: 0 | AQ89: 0 | AR89: 0 | AS89: 0
A90: 89 | B90: 22061 Binéfar | C90: 22061 | D90: 1201 | E90: 57 | F90: 39 | G90: 49 | H90: 70 | I90: 114 | J90: 149 | K90: 111 | L90: 127 | M90: 197 | N90: 121 | O90: 92 | P90: 42 | Q90: 17 | R90: 6 | S90: 7 | T90: 2 | U90: 1 | V90: 0 | W90: 0 | X90: 0 | Y90: 1201 | Z90: 57 | AA90: 39 | AB90: 49 | AC90: 70 | AD90: 114 | AE90: 149 | AF90: 111 | AG90: 127 | AH90: 197 | AI90: 121 | AJ90: 92 | AK90: 42 | AL90: 17 | AM90: 6 | AN90: 7 | AO90: 2 | AP90: 1 | AQ90: 0 | AR90: 0 | AS90: 0
A91: 90 | B91: 22062 Bisaurri | C91: 22062 | D91: 1 | E91: 0 | F91: 0 | G91: 0 | H91: 0 | I91: 0 | J91: 0 | K91: 0 | L91: 0 | M91: 0 | N91: 0 | O91: 1 | P91: 0 | Q91: 0 | R91: 0 | S91: 0 | T91: 0 | U91: 0 | V91: 0 | W91: 0 | X91: 0 | Y91: 1 | Z91: 0 | AA91: 0 | AB91: 0 | AC91: 0 | AD91: 0 | AE91: 0 | AF91: 0 | AG91: 0 | AH91: 0 | AI91: 0 | AJ91: 1 | AK91: 0 | AL91: 0 | AM91: 0 | AN91: 0 | AO91: 0 | AP91: 0 | AQ91: 0 | AR91: 0 | AS91: 0
A92: 91 | B92: 22063 Biscarrués | C92: 22063 | D92: 7 | E92: 1 | F92: 1 | G92: 0 | H92: 0 | I92: 1 | J92: 1 | K92: 1 | L92: 0 | M92: 1 | N92: 0 | O92: 1 | P92: 0 | Q92: 0 | R92: 0 | S92: 0 | T92: 0 | U92: 0 | V92: 0 | W92: 0 | X92: 0 | Y92: 7 | Z92: 1 | AA92: 1 | AB92: 0 | AC92: 0 | AD92: 1 | AE92: 1 | AF92: 1 | AG92: 0 | AH92: 1 | AI92: 0 | AJ92: 1 | AK92: 0 | AL92: 0 | AM92: 0 | AN92: 0 | AO92: 0 | AP92: 0 | AQ92: 0 | AR92: 0 | AS92: 0
A93: 92 | B93: 22064 Blecua y Torres | C93: 22064 | D93: 5 | E93: 0 | F93: 0 | G93: 0 | H93: 0 | I93: 0 | J93: 0 | K93: 0 | L93: 2 | M93: 0 | N93: 0 | O93: 2 | P93: 0 | Q93: 1 | R93: 0 | S93: 0 | T93: 0 | U93: 0 | V93: 0 | W93: 0 | X93: 0 | Y93: 5 | Z93: 0 | AA93: 0 | AB93: 0 | AC93: 0 | AD93: 0 | AE93: 0 | AF93: 0 | AG93: 2 | AH93: 0 | AI93: 0 | AJ93: 2 | AK93: 0 | AL93: 1 | AM93: 0 | AN93: 0 | AO93: 0 | AP93: 0 | AQ93: 0 | AR93: 0 | AS93: 0
A94: 93 | B94: 22066 Boltaña | C94: 22066 | D94: 74 | E94: 4 | F94: 5 | G94: 3 | H94: 4 | I94: 3 | J94: 7 | K94: 8 | L94: 6 | M94: 10 | N94: 3 | O94: 8 | P94: 6 | Q94: 5 | R94: 2 | S94: 0 | T94: 0 | U94: 0 | V94: 0 | W94: 0 | X94: 0 | Y94: 74 | Z94: 4 | AA94: 5 | AB94: 3 | AC94: 4 | AD94: 3 | AE94: 7 | AF94: 8 | AG94: 6 | AH94: 10 | AI94: 3 | AJ94: 8 | AK94: 6 | AL94: 5 | AM94: 2 | AN94: 0 | AO94: 0 | AP94: 0 | AQ94: 0 | AR94: 0 | AS94: 0
A95: 94 | B95: 22067 Bonansa | C95: 22067 | D95: 3 | E95: 0 | F95: 0 | G95: 0 | H95: 0 | I95: 0 | J95: 2 | K95: 0 | L95: 0 | M95: 0 | N95: 0 | O95: 1 | P95: 0 | Q95: 0 | R95: 0 | S95: 0 | T95: 0 | U95: 0 | V95: 0 | W95: 0 | X95: 0 | Y95: 3 | Z95: 0 | AA95: 0 | AB95: 0 | AC95: 0 | AD95: 0 | AE95: 2 | AF95: 0 | AG95: 0 | AH95: 0 | AI95: 0 | AJ95: 1 | AK95: 0 | AL95: 0 | AM95: 0 | AN95: 0 | AO95: 0 | AP95: 0 | AQ95: 0 | AR95: 0 | AS95: 0
A96: 95 | B96: 22068 Borau | C96: 22068 | D96: 2 | E96: 0 | F96: 0 | G96: 0 | H96: 0 | I96: 0 | J96: 0 | K96: 0 | L96: 0 | M96: 0 | N96: 0 | O96: 0 | P96: 0 | Q96: 1 | R96: 1 | S96: 0 | T96: 0 | U96: 0 | V96: 0 | W96: 0 | X96: 0 | Y96: 2 | Z96: 0 | AA96: 0 | AB96: 0 | AC96: 0 | AD96: 0 | AE96: 0 | AF96: 0 | AG96: 0 | AH96: 0 | AI96: 0 | AJ96: 0 | AK96: 0 | AL96: 1 | AM96: 1 | AN96: 0 | AO96: 0 | AP96: 0 | AQ96: 0 | AR96: 0 | AS96: 0
A97: 96 | B97: 22069 Broto | C97: 22069 | D97: 33 | E97: 4 | F97: 2 | G97: 1 | H97: 3 | I97: 1 | J97: 1 | K97: 4 | L97: 4 | M97: 5 | N97: 5 | O97: 1 | P97: 0 | Q97: 1 | R97: 0 | S97: 1 | T97: 0 | U97: 0 | V97: 0 | W97: 0 | X97: 0 | Y97: 33 | Z97: 4 | AA97: 2 | AB97: 1 | AC97: 3 | AD97: 1 | AE97: 1 | AF97: 4 | AG97: 4 | AH97: 5 | AI97: 5 | AJ97: 1 | AK97: 0 | AL97: 1 | AM97: 0 | AN97: 1 | AO97: 0 | AP97: 0 | AQ97: 0 | AR97: 0 | AS97: 0
A98: 97 | B98: 22072 Caldearenas | C98: 22072 | D98: 2 | E98: 0 | F98: 0 | G98: 0 | H98: 0 | I98: 0 | J98: 0 | K98: 0 | L98: 1 | M98: 1 | N98: 0 | O98: 0 | P98: 0 | Q98: 0 | R98: 0 | S98: 0 | T98: 0 | U98: 0 | V98: 0 | W98: 0 | X98: 0 | Y98: 2 | Z98: 0 | AA98: 0 | AB98: 0 | AC98: 0 | AD98: 0 | AE98: 0 | AF98: 0 | AG98: 1 | AH98: 1 | AI98: 0 | AJ98: 0 | AK98: 0 | AL98: 0 | AM98: 0 | AN98: 0 | AO98: 0 | AP98: 0 | AQ98: 0 | AR98: 0 | AS98: 0
A99: 98 | B99: 22074 Campo | C99: 22074 | D99: 45 | E99: 0 | F99: 4 | G99: 0 | H99: 2 | I99: 7 | J99: 7 | K99: 4 | L99: 5 | M99: 2 | N99: 3 | O99: 9 | P99: 1 | Q99: 1 | R99: 0 | S99: 0 | T99: 0 | U99: 0 | V99: 0 | W99: 0 | X99: 0 | Y99: 45 | Z99: 0 | AA99: 4 | AB99: 0 | AC99: 2 | AD99: 7 | AE99: 7 | AF99: 4 | AG99: 5 | AH99: 2 | AI99: 3 | AJ99: 9 | AK99: 1 | AL99: 1 | AM99: 0 | AN99: 0 | AO99: 0 | AP99: 0 | AQ99: 0 | AR99: 0 | AS99: 0
A100: 99 | B100: 22075 Camporrells | C100: 22075 | D100: 3 | E100: 0 | F100: 0 | G100: 0 | H100: 0 | I100: 0 | J100: 0 | K100: 1 | L100: 0 | M100: 0 | N100: 0 | O100: 1 | P100: 0 | Q100: 1 | R100: 0 | S100: 0 | T100: 0 | U100: 0 | V100: 0 | W100: 0 | X100: 0 | Y100: 3 | Z100: 0 | AA100: 0 | AB100: 0 | AC100: 0 | AD100: 0 | AE100: 0 | AF100: 1 | AG100: 0 | AH100: 0 | AI100: 0 | AJ100: 1 | AK100: 0 | AL100: 1 | AM100: 0 | AN100: 0 | AO100: 0 | AP100: 0 | AQ100: 0 | AR100: 0 | AS100: 0
A101: 100 | B101: 22076 Canal de Berdún | C101: 22076 | D101: 9 | E101: 0 | F101: 0 | G101: 1 | H101: 1 | I101: 0 | J101: 2 | K101: 0 | L101: 0 | M101: 0 | N101: 1 | O101: 1 | P101: 1 | Q101: 1 | R101: 0 | S101: 1 | T101: 0 | U101: 0 | V101: 0 | W101: 0 | X101: 0 | Y101: 9 | Z101: 0 | AA101: 0 | AB101: 1 | AC101: 1 | AD101: 0 | AE101: 2 | AF101: 0 | AG101: 0 | AH101: 0 | AI101: 1 | AJ101: 1 | AK101: 1 | AL101: 1 | AM101: 0 | AN101: 1 | AO101: 0 | AP101: 0 | AQ101: 0 | AR101: 0 | AS101: 0
A102: 101 | B102: 22077 Candasnos | C102: 22077 | D102: 14 | E102: 0 | F102: 0 | G102: 2 | H102: 0 | I102: 2 | J102: 0 | K102: 0 | L102: 2 | M102: 3 | N102: 1 | O102: 2 | P102: 0 | Q102: 2 | R102: 0 | S102: 0 | T102: 0 | U102: 0 | V102: 0 | W102: 0 | X102: 0 | Y102: 14 | Z102: 0 | AA102: 0 | AB102: 2 | AC102: 0 | AD102: 2 | AE102: 0 | AF102: 0 | AG102: 2 | AH102: 3 | AI102: 1 | AJ102: 2 | AK102: 0 | AL102: 2 | AM102: 0 | AN102: 0 | AO102: 0 | AP102: 0 | AQ102: 0 | AR102: 0 | AS102: 0
A103: 102 | B103: 22078 Canfranc | C103: 22078 | D103: 20 | E103: 0 | F103: 1 | G103: 2 | H103: 0 | I103: 3 | J103: 2 | K103: 2 | L103: 4 | M103: 2 | N103: 2 | O103: 2 | P103: 0 | Q103: 0 | R103: 0 | S103: 0 | T103: 0 | U103: 0 | V103: 0 | W103: 0 | X103: 0 | Y103: 20 | Z103: 0 | AA103: 1 | AB103: 2 | AC103: 0 | AD103: 3 | AE103: 2 | AF103: 2 | AG103: 4 | AH103: 2 | AI103: 2 | AJ103: 2 | AK103: 0 | AL103: 0 | AM103: 0 | AN103: 0 | AO103: 0 | AP103: 0 | AQ103: 0 | AR103: 0 | AS103: 0
A104: 103 | B104: 22079 Capdesaso | C104: 22079 | D104: 15 | E104: 0 | F104: 0 | G104: 1 | H104: 0 | I104: 0 | J104: 2 | K104: 1 | L104: 1 | M104: 3 | N104: 3 | O104: 1 | P104: 3 | Q104: 0 | R104: 0 | S104: 0 | T104: 0 | U104: 0 | V104: 0 | W104: 0 | X104: 0 | Y104: 15 | Z104: 0 | AA104: 0 | AB104: 1 | AC104: 0 | AD104: 0 | AE104: 2 | AF104: 1 | AG104: 1 | AH104: 3 | AI104: 3 | AJ104: 1 | AK104: 3 | AL104: 0 | AM104: 0 | AN104: 0 | AO104: 0 | AP104: 0 | AQ104: 0 | AR104: 0 | AS104: 0
A105: 104 | B105: 22080 Capella | C105: 22080 | D105: 38 | E105: 2 | F105: 3 | G105: 0 | H105: 1 | I105: 3 | J105: 4 | K105: 3 | L105: 4 | M105: 5 | N105: 4 | O105: 4 | P105: 0 | Q105: 1 | R105: 3 | S105: 0 | T105: 0 | U105: 1 | V105: 0 | W105: 0 | X105: 0 | Y105: 38 | Z105: 2 | AA105: 3 | AB105: 0 | AC105: 1 | AD105: 3 | AE105: 4 | AF105: 3 | AG105: 4 | AH105: 5 | AI105: 4 | AJ105: 4 | AK105: 0 | AL105: 1 | AM105: 3 | AN105: 0 | AO105: 0 | AP105: 1 | AQ105: 0 | AR105: 0 | AS105: 0
A106: 105 | B106: 22081 Casbas de Huesca | C106: 22081 | D106: 6 | E106: 0 | F106: 0 | G106: 0 | H106: 0 | I106: 0 | J106: 0 | K106: 1 | L106: 1 | M106: 0 | N106: 1 | O106: 0 | P106: 1 | Q106: 0 | R106: 1 | S106: 0 | T106: 1 | U106: 0 | V106: 0 | W106: 0 | X106: 0 | Y106: 6 | Z106: 0 | AA106: 0 | AB106: 0 | AC106: 0 | AD106: 0 | AE106: 0 | AF106: 1 | AG106: 1 | AH106: 0 | AI106: 1 | AJ106: 0 | AK106: 1 | AL106: 0 | AM106: 1 | AN106: 0 | AO106: 1 | AP106: 0 | AQ106: 0 | AR106: 0 | AS106: 0
A107: 106 | B107: 22082 Castejón del Puente | C107: 22082 | D107: 7 | E107: 0 | F107: 2 | G107: 0 | H107: 0 | I107: 0 | J107: 1 | K107: 2 | L107: 1 | M107: 0 | N107: 0 | O107: 0 | P107: 1 | Q107: 0 | R107: 0 | S107: 0 | T107: 0 | U107: 0 | V107: 0 | W107: 0 | X107: 0 | Y107: 7 | Z107: 0 | AA107: 2 | AB107: 0 | AC107: 0 | AD107: 0 | AE107: 1 | AF107: 2 | AG107: 1 | AH107: 0 | AI107: 0 | AJ107: 0 | AK107: 1 | AL107: 0 | AM107: 0 | AN107: 0 | AO107: 0 | AP107: 0 | AQ107: 0 | AR107: 0 | AS107: 0
A108: 107 | B108: 22083 Castejón de Monegros | C108: 22083 | D108: 20 | E108: 0 | F108: 1 | G108: 0 | H108: 2 | I108: 3 | J108: 3 | K108: 1 | L108: 1 | M108: 4 | N108: 3 | O108: 1 | P108: 0 | Q108: 1 | R108: 0 | S108: 0 | T108: 0 | U108: 0 | V108: 0 | W108: 0 | X108: 0 | Y108: 20 | Z108: 0 | AA108: 1 | AB108: 0 | AC108: 2 | AD108: 3 | AE108: 3 | AF108: 1 | AG108: 1 | AH108: 4 | AI108: 3 | AJ108: 1 | AK108: 0 | AL108: 1 | AM108: 0 | AN108: 0 | AO108: 0 | AP108: 0 | AQ108: 0 | AR108: 0 | AS108: 0
A109: 108 | B109: 22084 Castejón de Sos | C109: 22084 | D109: 34 | E109: 2 | F109: 3 | G109: 1 | H109: 2 | I109: 2 | J109: 3 | K109: 5 | L109: 4 | M109: 6 | N109: 2 | O109: 1 | P109: 2 | Q109: 0 | R109: 0 | S109: 0 | T109: 0 | U109: 1 | V109: 0 | W109: 0 | X109: 0 | Y109: 34 | Z109: 2 | AA109: 3 | AB109: 1 | AC109: 2 | AD109: 2 | AE109: 3 | AF109: 5 | AG109: 4 | AH109: 6 | AI109: 2 | AJ109: 1 | AK109: 2 | AL109: 0 | AM109: 0 | AN109: 0 | AO109: 0 | AP109: 1 | AQ109: 0 | AR109: 0 | AS109: 0
A110: 109 | B110: 22085 Castelflorite | C110: 22085 | D110: 3 | E110: 0 | F110: 0 | G110: 0 | H110: 1 | I110: 0 | J110: 0 | K110: 0 | L110: 0 | M110: 1 | N110: 0 | O110: 0 | P110: 1 | Q110: 0 | R110: 0 | S110: 0 | T110: 0 | U110: 0 | V110: 0 | W110: 0 | X110: 0 | Y110: 3 | Z110: 0 | AA110: 0 | AB110: 0 | AC110: 1 | AD110: 0 | AE110: 0 | AF110: 0 | AG110: 0 | AH110: 1 | AI110: 0 | AJ110: 0 | AK110: 1 | AL110: 0 | AM110: 0 | AN110: 0 | AO110: 0 | AP110: 0 | AQ110: 0 | AR110: 0 | AS110: 0
A111: 110 | B111: 22086 Castiello de Jaca | C111: 22086 | D111: 4 | E111: 0 | F111: 0 | G111: 0 | H111: 0 | I111: 1 | J111: 0 | K111: 0 | L111: 0 | M111: 1 | N111: 1 | O111: 0 | P111: 0 | Q111: 0 | R111: 1 | S111: 0 | T111: 0 | U111: 0 | V111: 0 | W111: 0 | X111: 0 | Y111: 4 | Z111: 0 | AA111: 0 | AB111: 0 | AC111: 0 | AD111: 1 | AE111: 0 | AF111: 0 | AG111: 0 | AH111: 1 | AI111: 1 | AJ111: 0 | AK111: 0 | AL111: 0 | AM111: 1 | AN111: 0 | AO111: 0 | AP111: 0 | AQ111: 0 | AR111: 0 | AS111: 0
A112: 111 | B112: 22087 Castigaleu | C112: 22087 | D112: 6 | E112: 0 | F112: 1 | G112: 0 | H112: 0 | I112: 0 | J112: 0 | K112: 2 | L112: 1 | M112: 1 | N112: 0 | O112: 1 | P112: 0 | Q112: 0 | R112: 0 | S112: 0 | T112: 0 | U112: 0 | V112: 0 | W112: 0 | X112: 0 | Y112: 6 | Z112: 0 | AA112: 1 | AB112: 0 | AC112: 0 | AD112: 0 | AE112: 0 | AF112: 2 | AG112: 1 | AH112: 1 | AI112: 0 | AJ112: 1 | AK112: 0 | AL112: 0 | AM112: 0 | AN112: 0 | AO112: 0 | AP112: 0 | AQ112: 0 | AR112: 0 | AS112: 0
A113: 112 | B113: 22088 Castillazuelo | C113: 22088 | D113: 7 | E113: 1 | F113: 1 | G113: 0 | H113: 0 | I113: 0 | J113: 0 | K113: 2 | L113: 0 | M113: 2 | N113: 0 | O113: 0 | P113: 1 | Q113: 0 | R113: 0 | S113: 0 | T113: 0 | U113: 0 | V113: 0 | W113: 0 | X113: 0 | Y113: 7 | Z113: 1 | AA113: 1 | AB113: 0 | AC113: 0 | AD113: 0 | AE113: 0 | AF113: 2 | AG113: 0 | AH113: 2 | AI113: 0 | AJ113: 0 | AK113: 1 | AL113: 0 | AM113: 0 | AN113: 0 | AO113: 0 | AP113: 0 | AQ113: 0 | AR113: 0 | AS113: 0
A114: 113 | B114: 22089 Castillonroy | C114: 22089 | D114: 10 | E114: 0 | F114: 2 | G114: 0 | H114: 1 | I114: 0 | J114: 4 | K114: 0 | L114: 1 | M114: 1 | N114: 1 | O114: 0 | P114: 0 | Q114: 0 | R114: 0 | S114: 0 | T114: 0 | U114: 0 | V114: 0 | W114: 0 | X114: 0 | Y114: 10 | Z114: 0 | AA114: 2 | AB114: 0 | AC114: 1 | AD114: 0 | AE114: 4 | AF114: 0 | AG114: 1 | AH114: 1 | AI114: 1 | AJ114: 0 | AK114: 0 | AL114: 0 | AM114: 0 | AN114: 0 | AO114: 0 | AP114: 0 | AQ114: 0 | AR114: 0 | AS114: 0
A115: 114 | B115: 22090 Colungo | C115: 22090 | D115: 8 | E115: 0 | F115: 1 | G115: 0 | H115: 1 | I115: 0 | J115: 0 | K115: 1 | L115: 1 | M115: 0 | N115: 2 | O115: 0 | P115: 0 | Q115: 0 | R115: 0 | S115: 0 | T115: 1 | U115: 1 | V115: 0 | W115: 0 | X115: 0 | Y115: 8 | Z115: 0 | AA115: 1 | AB115: 0 | AC115: 1 | AD115: 0 | AE115: 0 | AF115: 1 | AG115: 1 | AH115: 0 | AI115: 2 | AJ115: 0 | AK115: 0 | AL115: 0 | AM115: 0 | AN115: 0 | AO115: 1 | AP115: 1 | AQ115: 0 | AR115: 0 | AS115: 0
A116: 115 | B116: 22094 Chalamera | C116: 22094 | D116: 2 | E116: 0 | F116: 1 | G116: 0 | H116: 0 | I116: 0 | J116: 0 | K116: 0 | L116: 0 | M116: 0 | N116: 1 | O116: 0 | P116: 0 | Q116: 0 | R116: 0 | S116: 0 | T116: 0 | U116: 0 | V116: 0 | W116: 0 | X116: 0 | Y116: 2 | Z116: 0 | AA116: 1 | AB116: 0 | AC116: 0 | AD116: 0 | AE116: 0 | AF116: 0 | AG116: 0 | AH116: 0 | AI116: 1 | AJ116: 0 | AK116: 0 | AL116: 0 | AM116: 0 | AN116: 0 | AO116: 0 | AP116: 0 | AQ116: 0 | AR116: 0 | AS116: 0
A117: 116 | B117: 22095 Chía | C117: 22095 | D117: 1 | E117: 0 | F117: 0 | G117: 0 | H117: 0 | I117: 0 | J117: 0 | K117: 0 | L117: 0 | M117: 0 | N117: 0 | O117: 0 | P117: 0 | Q117: 0 | R117: 1 | S117: 0 | T117: 0 | U117: 0 | V117: 0 | W117: 0 | X117: 0 | Y117: 1 | Z117: 0 | AA117: 0 | AB117: 0 | AC117: 0 | AD117: 0 | AE117: 0 | AF117: 0 | AG117: 0 | AH117: 0 | AI117: 0 | AJ117: 0 | AK117: 0 | AL117: 0 | AM117: 1 | AN117: 0 | AO117: 0 | AP117: 0 | AQ117: 0 | AR117: 0 | AS117: 0
A118: 117 | B118: 22096 Chimillas | C118: 22096 | D118: 6 | E118: 2 | F118: 0 | G118: 0 | H118: 1 | I118: 0 | J118: 1 | K118: 0 | L118: 1 | M118: 1 | N118: 0 | O118: 0 | P118: 0 | Q118: 0 | R118: 0 | S118: 0 | T118: 0 | U118: 0 | V118: 0 | W118: 0 | X118: 0 | Y118: 6 | Z118: 2 | AA118: 0 | AB118: 0 | AC118: 1 | AD118: 0 | AE118: 1 | AF118: 0 | AG118: 1 | AH118: 1 | AI118: 0 | AJ118: 0 | AK118: 0 | AL118: 0 | AM118: 0 | AN118: 0 | AO118: 0 | AP118: 0 | AQ118: 0 | AR118: 0 | AS118: 0
A119: 118 | B119: 22099 Esplús | C119: 22099 | D119: 45 | E119: 0 | F119: 3 | G119: 2 | H119: 2 | I119: 2 | J119: 6 | K119: 4 | L119: 8 | M119: 6 | N119: 5 | O119: 1 | P119: 3 | Q119: 0 | R119: 0 | S119: 1 | T119: 0 | U119: 1 | V119: 1 | W119: 0 | X119: 0 | Y119: 45 | Z119: 0 | AA119: 3 | AB119: 2 | AC119: 2 | AD119: 2 | AE119: 6 | AF119: 4 | AG119: 8 | AH119: 6 | AI119: 5 | AJ119: 1 | AK119: 3 | AL119: 0 | AM119: 0 | AN119: 1 | AO119: 0 | AP119: 1 | AQ119: 1 | AR119: 0 | AS119: 0
A120: 119 | B120: 22102 Estada | C120: 22102 | D120: 7 | E120: 0 | F120: 2 | G120: 0 | H120: 1 | I120: 0 | J120: 0 | K120: 1 | L120: 0 | M120: 0 | N120: 2 | O120: 0 | P120: 0 | Q120: 1 | R120: 0 | S120: 0 | T120: 0 | U120: 0 | V120: 0 | W120: 0 | X120: 0 | Y120: 7 | Z120: 0 | AA120: 2 | AB120: 0 | AC120: 1 | AD120: 0 | AE120: 0 | AF120: 1 | AG120: 0 | AH120: 0 | AI120: 2 | AJ120: 0 | AK120: 0 | AL120: 1 | AM120: 0 | AN120: 0 | AO120: 0 | AP120: 0 | AQ120: 0 | AR120: 0 | AS120: 0
A121: 120 | B121: 22103 Estadilla | C121: 22103 | D121: 16 | E121: 2 | F121: 0 | G121: 2 | H121: 1 | I121: 0 | J121: 0 | K121: 1 | L121: 3 | M121: 3 | N121: 2 | O121: 2 | P121: 0 | Q121: 0 | R121: 0 | S121: 0 | T121: 0 | U121: 0 | V121: 0 | W121: 0 | X121: 0 | Y121: 16 | Z121: 2 | AA121: 0 | AB121: 2 | AC121: 1 | AD121: 0 | AE121: 0 | AF121: 1 | AG121: 3 | AH121: 3 | AI121: 2 | AJ121: 2 | AK121: 0 | AL121: 0 | AM121: 0 | AN121: 0 | AO121: 0 | AP121: 0 | AQ121: 0 | AR121: 0 | AS121: 0
A122: 121 | B122: 22105 Estopiñán del Castillo | C122: 22105 | D122: 3 | E122: 0 | F122: 0 | G122: 0 | H122: 0 | I122: 0 | J122: 0 | K122: 0 | L122: 0 | M122: 2 | N122: 0 | O122: 1 | P122: 0 | Q122: 0 | R122: 0 | S122: 0 | T122: 0 | U122: 0 | V122: 0 | W122: 0 | X122: 0 | Y122: 3 | Z122: 0 | AA122: 0 | AB122: 0 | AC122: 0 | AD122: 0 | AE122: 0 | AF122: 0 | AG122: 0 | AH122: 2 | AI122: 0 | AJ122: 1 | AK122: 0 | AL122: 0 | AM122: 0 | AN122: 0 | AO122: 0 | AP122: 0 | AQ122: 0 | AR122: 0 | AS122: 0
A123: 122 | B123: 22106 Fago | C123: 22106 | D123: 0 | E123: 0 | F123: 0 | G123: 0 | H123: 0 | I123: 0 | J123: 0 | K123: 0 | L123: 0 | M123: 0 | N123: 0 | O123: 0 | P123: 0 | Q123: 0 | R123: 0 | S123: 0 | T123: 0 | U123: 0 | V123: 0 | W123: 0 | X123: 0 | Y123: 0 | Z123: 0 | AA123: 0 | AB123: 0 | AC123: 0 | AD123: 0 | AE123: 0 | AF123: 0 | AG123: 0 | AH123: 0 | AI123: 0 | AJ123: 0 | AK123: 0 | AL123: 0 | AM123: 0 | AN123: 0 | AO123: 0 | AP123: 0 | AQ123: 0 | AR123: 0 | AS123: 0
A124: 123 | B124: 22107 Fanlo | C124: 22107 | D124: 3 | E124: 0 | F124: 2 | G124: 0 | H124: 0 | I124: 0 | J124: 0 | K124: 0 | L124: 0 | M124: 1 | N124: 0 | O124: 0 | P124: 0 | Q124: 0 | R124: 0 | S124: 0 | T124: 0 | U124: 0 | V124: 0 | W124: 0 | X124: 0 | Y124: 3 | Z124: 0 | AA124: 2 | AB124: 0 | AC124: 0 | AD124: 0 | AE124: 0 | AF124: 0 | AG124: 0 | AH124: 1 | AI124: 0 | AJ124: 0 | AK124: 0 | AL124: 0 | AM124: 0 | AN124: 0 | AO124: 0 | AP124: 0 | AQ124: 0 | AR124: 0 | AS124: 0
A125: 124 | B125: 22109 Fiscal | C125: 22109 | D125: 11 | E125: 0 | F125: 2 | G125: 0 | H125: 0 | I125: 0 | J125: 1 | K125: 0 | L125: 1 | M125: 1 | N125: 0 | O125: 3 | P125: 2 | Q125: 0 | R125: 1 | S125: 0 | T125: 0 | U125: 0 | V125: 0 | W125: 0 | X125: 0 | Y125: 11 | Z125: 0 | AA125: 2 | AB125: 0 | AC125: 0 | AD125: 0 | AE125: 1 | AF125: 0 | AG125: 1 | AH125: 1 | AI125: 0 | AJ125: 3 | AK125: 2 | AL125: 0 | AM125: 1 | AN125: 0 | AO125: 0 | AP125: 0 | AQ125: 0 | AR125: 0 | AS125: 0
A126: 125 | B126: 22110 Fonz | C126: 22110 | D126: 41 | E126: 2 | F126: 1 | G126: 1 | H126: 4 | I126: 7 | J126: 5 | K126: 4 | L126: 2 | M126: 3 | N126: 8 | O126: 1 | P126: 1 | Q126: 1 | R126: 0 | S126: 0 | T126: 0 | U126: 1 | V126: 0 | W126: 0 | X126: 0 | Y126: 41 | Z126: 2 | AA126: 1 | AB126: 1 | AC126: 4 | AD126: 7 | AE126: 5 | AF126: 4 | AG126: 2 | AH126: 3 | AI126: 8 | AJ126: 1 | AK126: 1 | AL126: 1 | AM126: 0 | AN126: 0 | AO126: 0 | AP126: 1 | AQ126: 0 | AR126: 0 | AS126: 0
A127: 126 | B127: 22111 Foradada del Toscar | C127: 22111 | D127: 5 | E127: 0 | F127: 0 | G127: 2 | H127: 0 | I127: 0 | J127: 0 | K127: 0 | L127: 0 | M127: 2 | N127: 0 | O127: 0 | P127: 0 | Q127: 1 | R127: 0 | S127: 0 | T127: 0 | U127: 0 | V127: 0 | W127: 0 | X127: 0 | Y127: 5 | Z127: 0 | AA127: 0 | AB127: 2 | AC127: 0 | AD127: 0 | AE127: 0 | AF127: 0 | AG127: 0 | AH127: 2 | AI127: 0 | AJ127: 0 | AK127: 0 | AL127: 1 | AM127: 0 | AN127: 0 | AO127: 0 | AP127: 0 | AQ127: 0 | AR127: 0 | AS127: 0
A128: 127 | B128: 22112 Fraga | C128: 22112 | D128: 2093 | E128: 148 | F128: 116 | G128: 116 | H128: 93 | I128: 165 | J128: 159 | K128: 210 | L128: 259 | M128: 279 | N128: 234 | O128: 152 | P128: 84 | Q128: 49 | R128: 17 | S128: 9 | T128: 3 | U128: 0 | V128: 0 | W128: 0 | X128: 0 | Y128: 2093 | Z128: 148 | AA128: 116 | AB128: 116 | AC128: 93 | AD128: 165 | AE128: 159 | AF128: 210 | AG128: 259 | AH128: 279 | AI128: 234 | AJ128: 152 | AK128: 84 | AL128: 49 | AM128: 17 | AN128: 9 | AO128: 3 | AP128: 0 | AQ128: 0 | AR128: 0 | AS128: 0
A129: 128 | B129: 22113 Fueva (La) | C129: 22113 | D129: 24 | E129: 0 | F129: 1 | G129: 3 | H129: 1 | I129: 2 | J129: 4 | K129: 2 | L129: 0 | M129: 4 | N129: 1 | O129: 1 | P129: 1 | Q129: 2 | R129: 1 | S129: 0 | T129: 0 | U129: 0 | V129: 0 | W129: 1 | X129: 0 | Y129: 24 | Z129: 0 | AA129: 1 | AB129: 3 | AC129: 1 | AD129: 2 | AE129: 4 | AF129: 2 | AG129: 0 | AH129: 4 | AI129: 1 | AJ129: 1 | AK129: 1 | AL129: 2 | AM129: 1 | AN129: 0 | AO129: 0 | AP129: 0 | AQ129: 0 | AR129: 1 | AS129: 0
A130: 129 | B130: 22114 Gistaín | C130: 22114 | D130: 0 | E130: 0 | F130: 0 | G130: 0 | H130: 0 | I130: 0 | J130: 0 | K130: 0 | L130: 0 | M130: 0 | N130: 0 | O130: 0 | P130: 0 | Q130: 0 | R130: 0 | S130: 0 | T130: 0 | U130: 0 | V130: 0 | W130: 0 | X130: 0 | Y130: 0 | Z130: 0 | AA130: 0 | AB130: 0 | AC130: 0 | AD130: 0 | AE130: 0 | AF130: 0 | AG130: 0 | AH130: 0 | AI130: 0 | AJ130: 0 | AK130: 0 | AL130: 0 | AM130: 0 | AN130: 0 | AO130: 0 | AP130: 0 | AQ130: 0 | AR130: 0 | AS130: 0
A131: 130 | B131: 22115 Grado (El) | C131: 22115 | D131: =(SUM(E131:X131))+0 -> 10 | E131: 0 | F131: 0 | G131: 0 | H131: 0 | I131: 0 | J131: 0 | K131: 2 | L131: 1 | M131: 0 | N131: 1 | O131: 3 | P131: 0 | Q131: 0 | R131: 1 | S131: 1 | T131: 0 | U131: 0 | V131: 0 | W131: 1 | X131: 0 | Y131: =(SUM(Z131:AS131))+0 -> 10 | Z131: 0 | AA131: 0 | AB131: 0 | AC131: 0 | AD131: 0 | AE131: 0 | AF131: 2 | AG131: 1 | AH131: 0 | AI131: 1 | AJ131: 3 | AK131: 0 | AL131: 0 | AM131: 1 | AN131: 1 | AO131: 0 | AP131: 0 | AQ131: 0 | AR131: 1 | AS131: 0
A132: 131 | B132: 22116 Grañén | C132: 22116 | D132: 120 | E132: 8 | F132: 7 | G132: 7 | H132: 7 | I132: 12 | J132: 9 | K132: 13 | L132: 9 | M132: 13 | N132: 12 | O132: 13 | P132: 2 | Q132: 6 | R132: 1 | S132: 1 | T132: 0 | U132: 0 | V132: 0 | W132: 0 | X132: 0 | Y132: 120 | Z132: 8 | AA132: 7 | AB132: 7 | AC132: 7 | AD132: 12 | AE132: 9 | AF132: 13 | AG132: 9 | AH132: 13 | AI132: 12 | AJ132: 13 | AK132: 2 | AL132: 6 | AM132: 1 | AN132: 1 | AO132: 0 | AP132: 0 | AQ132: 0 | AR132: 0 | AS132: 0
A133: 132 | B133: 22117 Graus | C133: 22117 | D133: 321 | E133: 22 | F133: 14 | G133: 12 | H133: 13 | I133: 18 | J133: 23 | K133: 37 | L133: 31 | M133: 44 | N133: 37 | O133: 19 | P133: 25 | Q133: 11 | R133: 8 | S133: 4 | T133: 3 | U133: 0 | V133: 0 | W133: 0 | X133: 0 | Y133: 321 | Z133: 22 | AA133: 14 | AB133: 12 | AC133: 13 | AD133: 18 | AE133: 23 | AF133: 37 | AG133: 31 | AH133: 44 | AI133: 37 | AJ133: 19 | AK133: 25 | AL133: 11 | AM133: 8 | AN133: 4 | AO133: 3 | AP133: 0 | AQ133: 0 | AR133: 0 | AS133: 0
A134: 133 | B134: 22119 Gurrea de Gállego | C134: 22119 | D134: 37 | E134: 2 | F134: 1 | G134: 1 | H134: 1 | I134: 2 | J134: 3 | K134: 5 | L134: 3 | M134: 7 | N134: 3 | O134: 5 | P134: 3 | Q134: 0 | R134: 1 | S134: 0 | T134: 0 | U134: 0 | V134: 0 | W134: 0 | X134: 0 | Y134: 37 | Z134: 2 | AA134: 1 | AB134: 1 | AC134: 1 | AD134: 2 | AE134: 3 | AF134: 5 | AG134: 3 | AH134: 7 | AI134: 3 | AJ134: 5 | AK134: 3 | AL134: 0 | AM134: 1 | AN134: 0 | AO134: 0 | AP134: 0 | AQ134: 0 | AR134: 0 | AS134: 0
A135: 134 | B135: 22122 Hoz de Jaca | C135: 22122 | D135: 0 | E135: 0 | F135: 0 | G135: 0 | H135: 0 | I135: 0 | J135: 0 | K135: 0 | L135: 0 | M135: 0 | N135: 0 | O135: 0 | P135: 0 | Q135: 0 | R135: 0 | S135: 0 | T135: 0 | U135: 0 | V135: 0 | W135: 0 | X135: 0 | Y135: 0 | Z135: 0 | AA135: 0 | AB135: 0 | AC135: 0 | AD135: 0 | AE135: 0 | AF135: 0 | AG135: 0 | AH135: 0 | AI135: 0 | AJ135: 0 | AK135: 0 | AL135: 0 | AM135: 0 | AN135: 0 | AO135: 0 | AP135: 0 | AQ135: 0 | AR135: 0 | AS135: 0
A136: 135 | B136: 22124 Huerto | C136: 22124 | D136: 10 | E136: 1 | F136: 2 | G136: 0 | H136: 0 | I136: 0 | J136: 1 | K136: 1 | L136: 2 | M136: 2 | N136: 0 | O136: 0 | P136: 0 | Q136: 0 | R136: 0 | S136: 0 | T136: 1 | U136: 0 | V136: 0 | W136: 0 | X136: 0 | Y136: 10 | Z136: 1 | AA136: 2 | AB136: 0 | AC136: 0 | AD136: 0 | AE136: 1 | AF136: 1 | AG136: 2 | AH136: 2 | AI136: 0 | AJ136: 0 | AK136: 0 | AL136: 0 | AM136: 0 | AN136: 0 | AO136: 1 | AP136: 0 | AQ136: 0 | AR136: 0 | AS136: 0
A137: 136 | B137: 22125 Huesca | C137: 22125 | D137: 2943 | E137: 185 | F137: 189 | G137: 155 | H137: 180 | I137: 248 | J137: 279 | K137: 323 | L137: 348 | M137: 310 | N137: 291 | O137: 180 | P137: 105 | Q137: 80 | R137: 39 | S137: 17 | T137: 9 | U137: 0 | V137: 2 | W137: 2 | X137: 1 | Y137: 2943 | Z137: 185 | AA137: 189 | AB137: 155 | AC137: 180 | AD137: 248 | AE137: 279 | AF137: 323 | AG137: 348 | AH137: 310 | AI137: 291 | AJ137: 180 | AK137: 105 | AL137: 80 | AM137: 39 | AN137: 17 | AO137: 9 | AP137: 0 | AQ137: 2 | AR137: 2 | AS137: 1
A138: 137 | B138: 22126 Ibieca | C138: 22126 | D138: 2 | E138: 0 | F138: 0 | G138: 0 | H138: 0 | I138: 0 | J138: 0 | K138: 1 | L138: 1 | M138: 0 | N138: 0 | O138: 0 | P138: 0 | Q138: 0 | R138: 0 | S138: 0 | T138: 0 | U138: 0 | V138: 0 | W138: 0 | X138: 0 | Y138: 2 | Z138: 0 | AA138: 0 | AB138: 0 | AC138: 0 | AD138: 0 | AE138: 0 | AF138: 1 | AG138: 1 | AH138: 0 | AI138: 0 | AJ138: 0 | AK138: 0 | AL138: 0 | AM138: 0 | AN138: 0 | AO138: 0 | AP138: 0 | AQ138: 0 | AR138: 0 | AS138: 0
A139: 138 | B139: 22127 Igriés | C139: 22127 | D139: 16 | E139: 0 | F139: 0 | G139: 1 | H139: 1 | I139: 2 | J139: 1 | K139: 1 | L139: 2 | M139: 3 | N139: 3 | O139: 0 | P139: 0 | Q139: 1 | R139: 1 | S139: 0 | T139: 0 | U139: 0 | V139: 0 | W139: 0 | X139: 0 | Y139: 16 | Z139: 0 | AA139: 0 | AB139: 1 | AC139: 1 | AD139: 2 | AE139: 1 | AF139: 1 | AG139: 2 | AH139: 3 | AI139: 3 | AJ139: 0 | AK139: 0 | AL139: 1 | AM139: 1 | AN139: 0 | AO139: 0 | AP139: 0 | AQ139: 0 | AR139: 0 | AS139: 0
A140: 139 | B140: 22128 Ilche | C140: 22128 | D140: 4 | E140: 0 | F140: 1 | G140: 0 | H140: 0 | I140: 0 | J140: 0 | K140: 2 | L140: 0 | M140: 0 | N140: 0 | O140: 0 | P140: 0 | Q140: 1 | R140: 0 | S140: 0 | T140: 0 | U140: 0 | V140: 0 | W140: 0 | X140: 0 | Y140: 4 | Z140: 0 | AA140: 1 | AB140: 0 | AC140: 0 | AD140: 0 | AE140: 0 | AF140: 2 | AG140: 0 | AH140: 0 | AI140: 0 | AJ140: 0 | AK140: 0 | AL140: 1 | AM140: 0 | AN140: 0 | AO140: 0 | AP140: 0 | AQ140: 0 | AR140: 0 | AS140: 0
A141: 140 | B141: 22129 Isábena | C141: 22129 | D141: 31 | E141: 0 | F141: 0 | G141: 0 | H141: 1 | I141: 5 | J141: 4 | K141: 7 | L141: 5 | M141: 2 | N141: 0 | O141: 4 | P141: 2 | Q141: 1 | R141: 0 | S141: 0 | T141: 0 | U141: 0 | V141: 0 | W141: 0 | X141: 0 | Y141: 31 | Z141: 0 | AA141: 0 | AB141: 0 | AC141: 1 | AD141: 5 | AE141: 4 | AF141: 7 | AG141: 5 | AH141: 2 | AI141: 0 | AJ141: 4 | AK141: 2 | AL141: 1 | AM141: 0 | AN141: 0 | AO141: 0 | AP141: 0 | AQ141: 0 | AR141: 0 | AS141: 0
A142: 141 | B142: 22130 Jaca | C142: 22130 | D142: 449 | E142: 18 | F142: 16 | G142: 28 | H142: 19 | I142: 41 | J142: 47 | K142: 52 | L142: 53 | M142: 49 | N142: 39 | O142: 37 | P142: 22 | Q142: 11 | R142: 4 | S142: 9 | T142: 1 | U142: 2 | V142: 1 | W142: 0 | X142: 0 | Y142: 449 | Z142: 18 | AA142: 16 | AB142: 28 | AC142: 19 | AD142: 41 | AE142: 47 | AF142: 52 | AG142: 53 | AH142: 49 | AI142: 39 | AJ142: 37 | AK142: 22 | AL142: 11 | AM142: 4 | AN142: 9 | AO142: 1 | AP142: 2 | AQ142: 1 | AR142: 0 | AS142: 0
A143: 142 | B143: 22131 Jasa | C143: 22131 | D143: 0 | E143: 0 | F143: 0 | G143: 0 | H143: 0 | I143: 0 | J143: 0 | K143: 0 | L143: 0 | M143: 0 | N143: 0 | O143: 0 | P143: 0 | Q143: 0 | R143: 0 | S143: 0 | T143: 0 | U143: 0 | V143: 0 | W143: 0 | X143: 0 | Y143: 0 | Z143: 0 | AA143: 0 | AB143: 0 | AC143: 0 | AD143: 0 | AE143: 0 | AF143: 0 | AG143: 0 | AH143: 0 | AI143: 0 | AJ143: 0 | AK143: 0 | AL143: 0 | AM143: 0 | AN143: 0 | AO143: 0 | AP143: 0 | AQ143: 0 | AR143: 0 | AS143: 0
A144: 143 | B144: 22133 Labuerda | C144: 22133 | D144: 16 | E144: 1 | F144: 3 | G144: 0 | H144: 1 | I144: 0 | J144: 3 | K144: 3 | L144: 2 | M144: 0 | N144: 1 | O144: 0 | P144: 1 | Q144: 1 | R144: 0 | S144: 0 | T144: 0 | U144: 0 | V144: 0 | W144: 0 | X144: 0 | Y144: 16 | Z144: 1 | AA144: 3 | AB144: 0 | AC144: 1 | AD144: 0 | AE144: 3 | AF144: 3 | AG144: 2 | AH144: 0 | AI144: 1 | AJ144: 0 | AK144: 1 | AL144: 1 | AM144: 0 | AN144: 0 | AO144: 0 | AP144: 0 | AQ144: 0 | AR144: 0 | AS144: 0
A145: 144 | B145: 22135 Laluenga | C145: 22135 | D145: 3 | E145: 0 | F145: 0 | G145: 0 | H145: 0 | I145: 2 | J145: 0 | K145: 1 | L145: 0 | M145: 0 | N145: 0 | O145: 0 | P145: 0 | Q145: 0 | R145: 0 | S145: 0 | T145: 0 | U145: 0 | V145: 0 | W145: 0 | X145: 0 | Y145: 3 | Z145: 0 | AA145: 0 | AB145: 0 | AC145: 0 | AD145: 2 | AE145: 0 | AF145: 1 | AG145: 0 | AH145: 0 | AI145: 0 | AJ145: 0 | AK145: 0 | AL145: 0 | AM145: 0 | AN145: 0 | AO145: 0 | AP145: 0 | AQ145: 0 | AR145: 0 | AS145: 0
A146: 145 | B146: 22136 Lalueza | C146: 22136 | D146: 42 | E146: 2 | F146: 1 | G146: 1 | H146: 2 | I146: 8 | J146: 5 | K146: 2 | L146: 2 | M146: 8 | N146: 3 | O146: 3 | P146: 1 | Q146: 1 | R146: 1 | S146: 1 | T146: 0 | U146: 1 | V146: 0 | W146: 0 | X146: 0 | Y146: 42 | Z146: 2 | AA146: 1 | AB146: 1 | AC146: 2 | AD146: 8 | AE146: 5 | AF146: 2 | AG146: 2 | AH146: 8 | AI146: 3 | AJ146: 3 | AK146: 1 | AL146: 1 | AM146: 1 | AN146: 1 | AO146: 0 | AP146: 1 | AQ146: 0 | AR146: 0 | AS146: 0
A147: 146 | B147: 22137 Lanaja | C147: 22137 | D147: 53 | E147: 2 | F147: 4 | G147: 2 | H147: 0 | I147: 2 | J147: 6 | K147: 8 | L147: 10 | M147: 6 | N147: 6 | O147: 3 | P147: 1 | Q147: 2 | R147: 1 | S147: 0 | T147: 0 | U147: 0 | V147: 0 | W147: 0 | X147: 0 | Y147: 53 | Z147: 2 | AA147: 4 | AB147: 2 | AC147: 0 | AD147: 2 | AE147: 6 | AF147: 8 | AG147: 10 | AH147: 6 | AI147: 6 | AJ147: 3 | AK147: 1 | AL147: 2 | AM147: 1 | AN147: 0 | AO147: 0 | AP147: 0 | AQ147: 0 | AR147: 0 | AS147: 0
A148: 147 | B148: 22139 Laperdiguera | C148: 22139 | D148: 5 | E148: 0 | F148: 0 | G148: 0 | H148: 0 | I148: 0 | J148: 1 | K148: 0 | L148: 0 | M148: 1 | N148: 0 | O148: 0 | P148: 1 | Q148: 2 | R148: 0 | S148: 0 | T148: 0 | U148: 0 | V148: 0 | W148: 0 | X148: 0 | Y148: 5 | Z148: 0 | AA148: 0 | AB148: 0 | AC148: 0 | AD148: 0 | AE148: 1 | AF148: 0 | AG148: 0 | AH148: 1 | AI148: 0 | AJ148: 0 | AK148: 1 | AL148: 2 | AM148: 0 | AN148: 0 | AO148: 0 | AP148: 0 | AQ148: 0 | AR148: 0 | AS148: 0
A149: 148 | B149: 22141 Lascellas-Ponzano | C149: 22141 | D149: 0 | E149: 0 | F149: 0 | G149: 0 | H149: 0 | I149: 0 | J149: 0 | K149: 0 | L149: 0 | M149: 0 | N149: 0 | O149: 0 | P149: 0 | Q149: 0 | R149: 0 | S149: 0 | T149: 0 | U149: 0 | V149: 0 | W149: 0 | X149: 0 | Y149: 0 | Z149: 0 | AA149: 0 | AB149: 0 | AC149: 0 | AD149: 0 | AE149: 0 | AF149: 0 | AG149: 0 | AH149: 0 | AI149: 0 | AJ149: 0 | AK149: 0 | AL149: 0 | AM149: 0 | AN149: 0 | AO149: 0 | AP149: 0 | AQ149: 0 | AR149: 0 | AS149: 0
A150: 149 | B150: 22142 Lascuarre | C150: 22142 | D150: 12 | E150: 0 | F150: 1 | G150: 1 | H150: 0 | I150: 2 | J150: 2 | K150: 0 | L150: 1 | M150: 2 | N150: 0 | O150: 0 | P150: 1 | Q150: 0 | R150: 1 | S150: 0 | T150: 0 | U150: 1 | V150: 0 | W150: 0 | X150: 0 | Y150: 12 | Z150: 0 | AA150: 1 | AB150: 1 | AC150: 0 | AD150: 2 | AE150: 2 | AF150: 0 | AG150: 1 | AH150: 2 | AI150: 0 | AJ150: 0 | AK150: 1 | AL150: 0 | AM150: 1 | AN150: 0 | AO150: 0 | AP150: 1 | AQ150: 0 | AR150: 0 | AS150: 0
A151: 150 | B151: 22143 Laspaúles | C151: 22143 | D151: 10 | E151: 0 | F151: 2 | G151: 0 | H151: 0 | I151: 0 | J151: 1 | K151: 0 | L151: 1 | M151: 2 | N151: 1 | O151: 0 | P151: 2 | Q151: 0 | R151: 0 | S151: 1 | T151: 0 | U151: 0 | V151: 0 | W151: 0 | X151: 0 | Y151: 10 | Z151: 0 | AA151: 2 | AB151: 0 | AC151: 0 | AD151: 0 | AE151: 1 | AF151: 0 | AG151: 1 | AH151: 2 | AI151: 1 | AJ151: 0 | AK151: 2 | AL151: 0 | AM151: 0 | AN151: 1 | AO151: 0 | AP151: 0 | AQ151: 0 | AR151: 0 | AS151: 0
A152: 151 | B152: 22144 Laspuña | C152: 22144 | D152: 3 | E152: 0 | F152: 0 | G152: 0 | H152: 0 | I152: 0 | J152: 0 | K152: 0 | L152: 0 | M152: 1 | N152: 0 | O152: 1 | P152: 1 | Q152: 0 | R152: 0 | S152: 0 | T152: 0 | U152: 0 | V152: 0 | W152: 0 | X152: 0 | Y152: 3 | Z152: 0 | AA152: 0 | AB152: 0 | AC152: 0 | AD152: 0 | AE152: 0 | AF152: 0 | AG152: 0 | AH152: 1 | AI152: 0 | AJ152: 1 | AK152: 1 | AL152: 0 | AM152: 0 | AN152: 0 | AO152: 0 | AP152: 0 | AQ152: 0 | AR152: 0 | AS152: 0
A153: 152 | B153: 22149 Loarre | C153: 22149 | D153: 2 | E153: 0 | F153: 0 | G153: 0 | H153: 0 | I153: 0 | J153: 0 | K153: 0 | L153: 0 | M153: 1 | N153: 0 | O153: 0 | P153: 0 | Q153: 1 | R153: 0 | S153: 0 | T153: 0 | U153: 0 | V153: 0 | W153: 0 | X153: 0 | Y153: 2 | Z153: 0 | AA153: 0 | AB153: 0 | AC153: 0 | AD153: 0 | AE153: 0 | AF153: 0 | AG153: 0 | AH153: 1 | AI153: 0 | AJ153: 0 | AK153: 0 | AL153: 1 | AM153: 0 | AN153: 0 | AO153: 0 | AP153: 0 | AQ153: 0 | AR153: 0 | AS153: 0
A154: 153 | B154: 22150 Loporzano | C154: 22150 | D154: 8 | E154: 0 | F154: 0 | G154: 1 | H154: 0 | I154: 1 | J154: 0 | K154: 0 | L154: 0 | M154: 0 | N154: 0 | O154: 1 | P154: 0 | Q154: 1 | R154: 0 | S154: 1 | T154: 2 | U154: 1 | V154: 0 | W154: 0 | X154: 0 | Y154: 8 | Z154: 0 | AA154: 0 | AB154: 1 | AC154: 0 | AD154: 1 | AE154: 0 | AF154: 0 | AG154: 0 | AH154: 0 | AI154: 0 | AJ154: 1 | AK154: 0 | AL154: 1 | AM154: 0 | AN154: 1 | AO154: 2 | AP154: 1 | AQ154: 0 | AR154: 0 | AS154: 0
A155: 154 | B155: 22151 Loscorrales | C155: 22151 | D155: 0 | E155: 0 | F155: 0 | G155: 0 | H155: 0 | I155: 0 | J155: 0 | K155: 0 | L155: 0 | M155: 0 | N155: 0 | O155: 0 | P155: 0 | Q155: 0 | R155: 0 | S155: 0 | T155: 0 | U155: 0 | V155: 0 | W155: 0 | X155: 0 | Y155: 0 | Z155: 0 | AA155: 0 | AB155: 0 | AC155: 0 | AD155: 0 | AE155: 0 | AF155: 0 | AG155: 0 | AH155: 0 | AI155: 0 | AJ155: 0 | AK155: 0 | AL155: 0 | AM155: 0 | AN155: 0 | AO155: 0 | AP155: 0 | AQ155: 0 | AR155: 0 | AS155: 0
A156: 155 | B156: 22155 Monesma y Cajigar | C156: 22155 | D156: 3 | E156: 0 | F156: 0 | G156: 0 | H156: 0 | I156: 1 | J156: 0 | K156: 0 | L156: 1 | M156: 0 | N156: 0 | O156: 1 | P156: 0 | Q156: 0 | R156: 0 | S156: 0 | T156: 0 | U156: 0 | V156: 0 | W156: 0 | X156: 0 | Y156: 3 | Z156: 0 | AA156: 0 | AB156: 0 | AC156: 0 | AD156: 1 | AE156: 0 | AF156: 0 | AG156: 1 | AH156: 0 | AI156: 0 | AJ156: 1 | AK156: 0 | AL156: 0 | AM156: 0 | AN156: 0 | AO156: 0 | AP156: 0 | AQ156: 0 | AR156: 0 | AS156: 0
A157: 156 | B157: 22156 Monflorite-Lascasas | C157: 22156 | D157: 22 | E157: 2 | F157: 1 | G157: 3 | H157: 1 | I157: 2 | J157: 2 | K157: 4 | L157: 2 | M157: 2 | N157: 1 | O157: 0 | P157: 0 | Q157: 2 | R157: 0 | S157: 0 | T157: 0 | U157: 0 | V157: 0 | W157: 0 | X157: 0 | Y157: 22 | Z157: 2 | AA157: 1 | AB157: 3 | AC157: 1 | AD157: 2 | AE157: 2 | AF157: 4 | AG157: 2 | AH157: 2 | AI157: 1 | AJ157: 0 | AK157: 0 | AL157: 2 | AM157: 0 | AN157: 0 | AO157: 0 | AP157: 0 | AQ157: 0 | AR157: 0 | AS157: 0
A158: 157 | B158: 22157 Montanuy | C158: 22157 | D158: 5 | E158: 0 | F158: 0 | G158: 0 | H158: 0 | I158: 0 | J158: 0 | K158: 0 | L158: 1 | M158: 3 | N158: 1 | O158: 0 | P158: 0 | Q158: 0 | R158: 0 | S158: 0 | T158: 0 | U158: 0 | V158: 0 | W158: 0 | X158: 0 | Y158: 5 | Z158: 0 | AA158: 0 | AB158: 0 | AC158: 0 | AD158: 0 | AE158: 0 | AF158: 0 | AG158: 1 | AH158: 3 | AI158: 1 | AJ158: 0 | AK158: 0 | AL158: 0 | AM158: 0 | AN158: 0 | AO158: 0 | AP158: 0 | AQ158: 0 | AR158: 0 | AS158: 0
A159: 158 | B159: 22158 Monzón | C159: 22158 | D159: 1447 | E159: 109 | F159: 82 | G159: 86 | H159: 77 | I159: 108 | J159: 116 | K159: 116 | L159: 165 | M159: 194 | N159: 144 | O159: 132 | P159: 70 | Q159: 20 | R159: 14 | S159: 6 | T159: 7 | U159: 1 | V159: 0 | W159: 0 | X159: 0 | Y159: 1447 | Z159: 109 | AA159: 82 | AB159: 86 | AC159: 77 | AD159: 108 | AE159: 116 | AF159: 116 | AG159: 165 | AH159: 194 | AI159: 144 | AJ159: 132 | AK159: 70 | AL159: 20 | AM159: 14 | AN159: 6 | AO159: 7 | AP159: 1 | AQ159: 0 | AR159: 0 | AS159: 0
A160: 159 | B160: 22160 Naval | C160: 22160 | D160: 15 | E160: 0 | F160: 0 | G160: 0 | H160: 0 | I160: 1 | J160: 1 | K160: 0 | L160: 2 | M160: 1 | N160: 1 | O160: 3 | P160: 2 | Q160: 0 | R160: 0 | S160: 2 | T160: 1 | U160: 0 | V160: 1 | W160: 0 | X160: 0 | Y160: 15 | Z160: 0 | AA160: 0 | AB160: 0 | AC160: 0 | AD160: 1 | AE160: 1 | AF160: 0 | AG160: 2 | AH160: 1 | AI160: 1 | AJ160: 3 | AK160: 2 | AL160: 0 | AM160: 0 | AN160: 2 | AO160: 1 | AP160: 0 | AQ160: 1 | AR160: 0 | AS160: 0
A161: 160 | B161: 22162 Novales | C161: 22162 | D161: 9 | E161: 1 | F161: 1 | G161: 0 | H161: 0 | I161: 1 | J161: 0 | K161: 1 | L161: 2 | M161: 1 | N161: 0 | O161: 0 | P161: 1 | Q161: 1 | R161: 0 | S161: 0 | T161: 0 | U161: 0 | V161: 0 | W161: 0 | X161: 0 | Y161: 9 | Z161: 1 | AA161: 1 | AB161: 0 | AC161: 0 | AD161: 1 | AE161: 0 | AF161: 1 | AG161: 2 | AH161: 1 | AI161: 0 | AJ161: 0 | AK161: 1 | AL161: 1 | AM161: 0 | AN161: 0 | AO161: 0 | AP161: 0 | AQ161: 0 | AR161: 0 | AS161: 0
A162: 161 | B162: 22163 Nueno | C162: 22163 | D162: 17 | E162: 1 | F162: 0 | G162: 0 | H162: 0 | I162: 3 | J162: 0 | K162: 1 | L162: 2 | M162: 0 | N162: 1 | O162: 1 | P162: 1 | Q162: 1 | R162: 2 | S162: 3 | T162: 0 | U162: 1 | V162: 0 | W162: 0 | X162: 0 | Y162: 17 | Z162: 1 | AA162: 0 | AB162: 0 | AC162: 0 | AD162: 3 | AE162: 0 | AF162: 1 | AG162: 2 | AH162: 0 | AI162: 1 | AJ162: 1 | AK162: 1 | AL162: 1 | AM162: 2 | AN162: 3 | AO162: 0 | AP162: 1 | AQ162: 0 | AR162: 0 | AS162: 0
A163: 162 | B163: 22164 Olvena | C163: 22164 | D163: 1 | E163: 0 | F163: 0 | G163: 0 | H163: 0 | I163: 0 | J163: 0 | K163: 0 | L163: 0 | M163: 1 | N163: 0 | O163: 0 | P163: 0 | Q163: 0 | R163: 0 | S163: 0 | T163: 0 | U163: 0 | V163: 0 | W163: 0 | X163: 0 | Y163: 1 | Z163: 0 | AA163: 0 | AB163: 0 | AC163: 0 | AD163: 0 | AE163: 0 | AF163: 0 | AG163: 0 | AH163: 1 | AI163: 0 | AJ163: 0 | AK163: 0 | AL163: 0 | AM163: 0 | AN163: 0 | AO163: 0 | AP163: 0 | AQ163: 0 | AR163: 0 | AS163: 0
A164: 163 | B164: 22165 Ontiñena | C164: 22165 | D164: 22 | E164: 1 | F164: 0 | G164: 0 | H164: 2 | I164: 1 | J164: 1 | K164: 3 | L164: 4 | M164: 4 | N164: 4 | O164: 1 | P164: 1 | Q164: 0 | R164: 0 | S164: 0 | T164: 0 | U164: 0 | V164: 0 | W164: 0 | X164: 0 | Y164: 22 | Z164: 1 | AA164: 0 | AB164: 0 | AC164: 2 | AD164: 1 | AE164: 1 | AF164: 3 | AG164: 4 | AH164: 4 | AI164: 4 | AJ164: 1 | AK164: 1 | AL164: 0 | AM164: 0 | AN164: 0 | AO164: 0 | AP164: 0 | AQ164: 0 | AR164: 0 | AS164: 0
A165: 164 | B165: 22167 Osso de Cinca | C165: 22167 | D165: 113 | E165: 3 | F165: 0 | G165: 1 | H165: 4 | I165: 6 | J165: 9 | K165: 10 | L165: 19 | M165: 17 | N165: 18 | O165: 10 | P165: 10 | Q165: 4 | R165: 2 | S165: 0 | T165: 0 | U165: 0 | V165: 0 | W165: 0 | X165: 0 | Y165: 113 | Z165: 3 | AA165: 0 | AB165: 1 | AC165: 4 | AD165: 6 | AE165: 9 | AF165: 10 | AG165: 19 | AH165: 17 | AI165: 18 | AJ165: 10 | AK165: 10 | AL165: 4 | AM165: 2 | AN165: 0 | AO165: 0 | AP165: 0 | AQ165: 0 | AR165: 0 | AS165: 0
A166: 165 | B166: 22168 Palo | C166: 22168 | D166: 0 | E166: 0 | F166: 0 | G166: 0 | H166: 0 | I166: 0 | J166: 0 | K166: 0 | L166: 0 | M166: 0 | N166: 0 | O166: 0 | P166: 0 | Q166: 0 | R166: 0 | S166: 0 | T166: 0 | U166: 0 | V166: 0 | W166: 0 | X166: 0 | Y166: 0 | Z166: 0 | AA166: 0 | AB166: 0 | AC166: 0 | AD166: 0 | AE166: 0 | AF166: 0 | AG166: 0 | AH166: 0 | AI166: 0 | AJ166: 0 | AK166: 0 | AL166: 0 | AM166: 0 | AN166: 0 | AO166: 0 | AP166: 0 | AQ166: 0 | AR166: 0 | AS166: 0
A167: 166 | B167: 22170 Panticosa | C167: 22170 | D167: 18 | E167: 0 | F167: 0 | G167: 0 | H167: 0 | I167: 2 | J167: 0 | K167: 4 | L167: 1 | M167: 2 | N167: 6 | O167: 3 | P167: 0 | Q167: 0 | R167: 0 | S167: 0 | T167: 0 | U167: 0 | V167: 0 | W167: 0 | X167: 0 | Y167: 18 | Z167: 0 | AA167: 0 | AB167: 0 | AC167: 0 | AD167: 2 | AE167: 0 | AF167: 4 | AG167: 1 | AH167: 2 | AI167: 6 | AJ167: 3 | AK167: 0 | AL167: 0 | AM167: 0 | AN167: 0 | AO167: 0 | AP167: 0 | AQ167: 0 | AR167: 0 | AS167: 0
A168: 167 | B168: 22172 Peñalba | C168: 22172 | D168: 110 | E168: 3 | F168: 5 | G168: 2 | H168: 0 | I168: 15 | J168: 12 | K168: 26 | L168: 10 | M168: 18 | N168: 12 | O168: 3 | P168: 3 | Q168: 1 | R168: 0 | S168: 0 | T168: 0 | U168: 0 | V168: 0 | W168: 0 | X168: 0 | Y168: 110 | Z168: 3 | AA168: 5 | AB168: 2 | AC168: 0 | AD168: 15 | AE168: 12 | AF168: 26 | AG168: 10 | AH168: 18 | AI168: 12 | AJ168: 3 | AK168: 3 | AL168: 1 | AM168: 0 | AN168: 0 | AO168: 0 | AP168: 0 | AQ168: 0 | AR168: 0 | AS168: 0
A169: 168 | B169: 22173 Peñas de Riglos (Las) | C169: 22173 | D169: 6 | E169: 0 | F169: 1 | G169: 0 | H169: 0 | I169: 0 | J169: 0 | K169: 0 | L169: 0 | M169: 1 | N169: 1 | O169: 0 | P169: 0 | Q169: 1 | R169: 1 | S169: 0 | T169: 0 | U169: 1 | V169: 0 | W169: 0 | X169: 0 | Y169: 6 | Z169: 0 | AA169: 1 | AB169: 0 | AC169: 0 | AD169: 0 | AE169: 0 | AF169: 0 | AG169: 0 | AH169: 1 | AI169: 1 | AJ169: 0 | AK169: 0 | AL169: 1 | AM169: 1 | AN169: 0 | AO169: 0 | AP169: 1 | AQ169: 0 | AR169: 0 | AS169: 0
A170: 169 | B170: 22174 Peralta de Alcofea | C170: 22174 | D170: 36 | E170: 1 | F170: 2 | G170: 1 | H170: 1 | I170: 4 | J170: 3 | K170: 3 | L170: 2 | M170: 6 | N170: 6 | O170: 3 | P170: 2 | Q170: 1 | R170: 1 | S170: 0 | T170: 0 | U170: 0 | V170: 0 | W170: 0 | X170: 0 | Y170: 36 | Z170: 1 | AA170: 2 | AB170: 1 | AC170: 1 | AD170: 4 | AE170: 3 | AF170: 3 | AG170: 2 | AH170: 6 | AI170: 6 | AJ170: 3 | AK170: 2 | AL170: 1 | AM170: 1 | AN170: 0 | AO170: 0 | AP170: 0 | AQ170: 0 | AR170: 0 | AS170: 0
A171: 170 | B171: 22175 Peralta de Calasanz | C171: 22175 | D171: 6 | E171: 0 | F171: 0 | G171: 0 | H171: 0 | I171: 0 | J171: 1 | K171: 0 | L171: 0 | M171: 1 | N171: 0 | O171: 3 | P171: 1 | Q171: 0 | R171: 0 | S171: 0 | T171: 0 | U171: 0 | V171: 0 | W171: 0 | X171: 0 | Y171: 6 | Z171: 0 | AA171: 0 | AB171: 0 | AC171: 0 | AD171: 0 | AE171: 1 | AF171: 0 | AG171: 0 | AH171: 1 | AI171: 0 | AJ171: 3 | AK171: 1 | AL171: 0 | AM171: 0 | AN171: 0 | AO171: 0 | AP171: 0 | AQ171: 0 | AR171: 0 | AS171: 0
A172: 171 | B172: 22176 Peraltilla | C172: 22176 | D172: 5 | E172: 0 | F172: 0 | G172: 0 | H172: 0 | I172: 0 | J172: 0 | K172: 1 | L172: 0 | M172: 0 | N172: 1 | O172: 3 | P172: 0 | Q172: 0 | R172: 0 | S172: 0 | T172: 0 | U172: 0 | V172: 0 | W172: 0 | X172: 0 | Y172: 5 | Z172: 0 | AA172: 0 | AB172: 0 | AC172: 0 | AD172: 0 | AE172: 0 | AF172: 1 | AG172: 0 | AH172: 0 | AI172: 1 | AJ172: 3 | AK172: 0 | AL172: 0 | AM172: 0 | AN172: 0 | AO172: 0 | AP172: 0 | AQ172: 0 | AR172: 0 | AS172: 0
A173: 172 | B173: 22177 Perarrúa | C173: 22177 | D173: 4 | E173: 1 | F173: 0 | G173: 0 | H173: 0 | I173: 0 | J173: 0 | K173: 1 | L173: 0 | M173: 1 | N173: 1 | O173: 0 | P173: 0 | Q173: 0 | R173: 0 | S173: 0 | T173: 0 | U173: 0 | V173: 0 | W173: 0 | X173: 0 | Y173: 4 | Z173: 1 | AA173: 0 | AB173: 0 | AC173: 0 | AD173: 0 | AE173: 0 | AF173: 1 | AG173: 0 | AH173: 1 | AI173: 1 | AJ173: 0 | AK173: 0 | AL173: 0 | AM173: 0 | AN173: 0 | AO173: 0 | AP173: 0 | AQ173: 0 | AR173: 0 | AS173: 0
A174: 173 | B174: 22178 Pertusa | C174: 22178 | D174: 3 | E174: 0 | F174: 0 | G174: 0 | H174: 0 | I174: 0 | J174: 1 | K174: 0 | L174: 1 | M174: 1 | N174: 0 | O174: 0 | P174: 0 | Q174: 0 | R174: 0 | S174: 0 | T174: 0 | U174: 0 | V174: 0 | W174: 0 | X174: 0 | Y174: 3 | Z174: 0 | AA174: 0 | AB174: 0 | AC174: 0 | AD174: 0 | AE174: 1 | AF174: 0 | AG174: 1 | AH174: 1 | AI174: 0 | AJ174: 0 | AK174: 0 | AL174: 0 | AM174: 0 | AN174: 0 | AO174: 0 | AP174: 0 | AQ174: 0 | AR174: 0 | AS174: 0
A175: 174 | B175: 22181 Piracés | C175: 22181 | D175: 1 | E175: 0 | F175: 0 | G175: 0 | H175: 0 | I175: 0 | J175: 0 | K175: 1 | L175: 0 | M175: 0 | N175: 0 | O175: 0 | P175: 0 | Q175: 0 | R175: 0 | S175: 0 | T175: 0 | U175: 0 | V175: 0 | W175: 0 | X175: 0 | Y175: 1 | Z175: 0 | AA175: 0 | AB175: 0 | AC175: 0 | AD175: 0 | AE175: 0 | AF175: 1 | AG175: 0 | AH175: 0 | AI175: 0 | AJ175: 0 | AK175: 0 | AL175: 0 | AM175: 0 | AN175: 0 | AO175: 0 | AP175: 0 | AQ175: 0 | AR175: 0 | AS175: 0
A176: 175 | B176: 22182 Plan | C176: 22182 | D176: 6 | E176: 0 | F176: 0 | G176: 0 | H176: 0 | I176: 0 | J176: 2 | K176: 2 | L176: 0 | M176: 0 | N176: 2 | O176: 0 | P176: 0 | Q176: 0 | R176: 0 | S176: 0 | T176: 0 | U176: 0 | V176: 0 | W176: 0 | X176: 0 | Y176: 6 | Z176: 0 | AA176: 0 | AB176: 0 | AC176: 0 | AD176: 0 | AE176: 2 | AF176: 2 | AG176: 0 | AH176: 0 | AI176: 2 | AJ176: 0 | AK176: 0 | AL176: 0 | AM176: 0 | AN176: 0 | AO176: 0 | AP176: 0 | AQ176: 0 | AR176: 0 | AS176: 0
A177: 176 | B177: 22184 Poleñino | C177: 22184 | D177: 3 | E177: 0 | F177: 0 | G177: 0 | H177: 0 | I177: 0 | J177: 0 | K177: 0 | L177: 1 | M177: 1 | N177: 0 | O177: 0 | P177: 0 | Q177: 1 | R177: 0 | S177: 0 | T177: 0 | U177: 0 | V177: 0 | W177: 0 | X177: 0 | Y177: 3 | Z177: 0 | AA177: 0 | AB177: 0 | AC177: 0 | AD177: 0 | AE177: 0 | AF177: 0 | AG177: 1 | AH177: 1 | AI177: 0 | AJ177: 0 | AK177: 0 | AL177: 1 | AM177: 0 | AN177: 0 | AO177: 0 | AP177: 0 | AQ177: 0 | AR177: 0 | AS177: 0
A178: 177 | B178: 22186 Pozán de Vero | C178: 22186 | D178: 4 | E178: 0 | F178: 0 | G178: 0 | H178: 0 | I178: 0 | J178: 0 | K178: 0 | L178: 2 | M178: 1 | N178: 1 | O178: 0 | P178: 0 | Q178: 0 | R178: 0 | S178: 0 | T178: 0 | U178: 0 | V178: 0 | W178: 0 | X178: 0 | Y178: 4 | Z178: 0 | AA178: 0 | AB178: 0 | AC178: 0 | AD178: 0 | AE178: 0 | AF178: 0 | AG178: 2 | AH178: 1 | AI178: 1 | AJ178: 0 | AK178: 0 | AL178: 0 | AM178: 0 | AN178: 0 | AO178: 0 | AP178: 0 | AQ178: 0 | AR178: 0 | AS178: 0
A179: 178 | B179: 22187 Puebla de Castro (La) | C179: 22187 | D179: 23 | E179: 3 | F179: 1 | G179: 0 | H179: 1 | I179: 2 | J179: 0 | K179: 1 | L179: 3 | M179: 3 | N179: 1 | O179: 0 | P179: 3 | Q179: 1 | R179: 1 | S179: 2 | T179: 1 | U179: 0 | V179: 0 | W179: 0 | X179: 0 | Y179: 23 | Z179: 3 | AA179: 1 | AB179: 0 | AC179: 1 | AD179: 2 | AE179: 0 | AF179: 1 | AG179: 3 | AH179: 3 | AI179: 1 | AJ179: 0 | AK179: 3 | AL179: 1 | AM179: 1 | AN179: 2 | AO179: 1 | AP179: 0 | AQ179: 0 | AR179: 0 | AS179: 0
A180: 179 | B180: 22188 Puente de Montañana | C180: 22188 | D180: 6 | E180: 1 | F180: 1 | G180: 0 | H180: 0 | I180: 1 | J180: 0 | K180: 1 | L180: 1 | M180: 0 | N180: 1 | O180: 0 | P180: 0 | Q180: 0 | R180: 0 | S180: 0 | T180: 0 | U180: 0 | V180: 0 | W180: 0 | X180: 0 | Y180: 6 | Z180: 1 | AA180: 1 | AB180: 0 | AC180: 0 | AD180: 1 | AE180: 0 | AF180: 1 | AG180: 1 | AH180: 0 | AI180: 1 | AJ180: 0 | AK180: 0 | AL180: 0 | AM180: 0 | AN180: 0 | AO180: 0 | AP180: 0 | AQ180: 0 | AR180: 0 | AS180: 0
A181: 180 | B181: 22189 Puértolas | C181: 22189 | D181: 2 | E181: 0 | F181: 0 | G181: 0 | H181: 1 | I181: 0 | J181: 1 | K181: 0 | L181: 0 | M181: 0 | N181: 0 | O181: 0 | P181: 0 | Q181: 0 | R181: 0 | S181: 0 | T181: 0 | U181: 0 | V181: 0 | W181: 0 | X181: 0 | Y181: 2 | Z181: 0 | AA181: 0 | AB181: 0 | AC181: 1 | AD181: 0 | AE181: 1 | AF181: 0 | AG181: 0 | AH181: 0 | AI181: 0 | AJ181: 0 | AK181: 0 | AL181: 0 | AM181: 0 | AN181: 0 | AO181: 0 | AP181: 0 | AQ181: 0 | AR181: 0 | AS181: 0
A182: 181 | B182: 22190 Pueyo de Araguás (El) | C182: 22190 | D182: 8 | E182: 0 | F182: 0 | G182: 0 | H182: 0 | I182: 1 | J182: 1 | K182: 1 | L182: 0 | M182: 0 | N182: 1 | O182: 1 | P182: 0 | Q182: 2 | R182: 1 | S182: 0 | T182: 0 | U182: 0 | V182: 0 | W182: 0 | X182: 0 | Y182: 8 | Z182: 0 | AA182: 0 | AB182: 0 | AC182: 0 | AD182: 1 | AE182: 1 | AF182: 1 | AG182: 0 | AH182: 0 | AI182: 1 | AJ182: 1 | AK182: 0 | AL182: 2 | AM182: 1 | AN182: 0 | AO182: 0 | AP182: 0 | AQ182: 0 | AR182: 0 | AS182: 0
A183: 182 | B183: 22193 Pueyo de Santa Cruz | C183: 22193 | D183: 10 | E183: 0 | F183: 1 | G183: 0 | H183: 0 | I183: 0 | J183: 1 | K183: 3 | L183: 3 | M183: 0 | N183: 0 | O183: 0 | P183: 1 | Q183: 1 | R183: 0 | S183: 0 | T183: 0 | U183: 0 | V183: 0 | W183: 0 | X183: 0 | Y183: 10 | Z183: 0 | AA183: 1 | AB183: 0 | AC183: 0 | AD183: 0 | AE183: 1 | AF183: 3 | AG183: 3 | AH183: 0 | AI183: 0 | AJ183: 0 | AK183: 1 | AL183: 1 | AM183: 0 | AN183: 0 | AO183: 0 | AP183: 0 | AQ183: 0 | AR183: 0 | AS183: 0
A184: 183 | B184: 22195 Quicena | C184: 22195 | D184: 7 | E184: 0 | F184: 1 | G184: 0 | H184: 0 | I184: 1 | J184: 0 | K184: 0 | L184: 2 | M184: 2 | N184: 0 | O184: 0 | P184: 0 | Q184: 0 | R184: 0 | S184: 1 | T184: 0 | U184: 0 | V184: 0 | W184: 0 | X184: 0 | Y184: 7 | Z184: 0 | AA184: 1 | AB184: 0 | AC184: 0 | AD184: 1 | AE184: 0 | AF184: 0 | AG184: 2 | AH184: 2 | AI184: 0 | AJ184: 0 | AK184: 0 | AL184: 0 | AM184: 0 | AN184: 1 | AO184: 0 | AP184: 0 | AQ184: 0 | AR184: 0 | AS184: 0
A185: 184 | B185: 22197 Robres | C185: 22197 | D185: 18 | E185: 0 | F185: 1 | G185: 2 | H185: 1 | I185: 0 | J185: 2 | K185: 2 | L185: 1 | M185: 2 | N185: 0 | O185: 3 | P185: 3 | Q185: 0 | R185: 0 | S185: 0 | T185: 1 | U185: 0 | V185: 0 | W185: 0 | X185: 0 | Y185: 18 | Z185: 0 | AA185: 1 | AB185: 2 | AC185: 1 | AD185: 0 | AE185: 2 | AF185: 2 | AG185: 1 | AH185: 2 | AI185: 0 | AJ185: 3 | AK185: 3 | AL185: 0 | AM185: 0 | AN185: 0 | AO185: 1 | AP185: 0 | AQ185: 0 | AR185: 0 | AS185: 0
A186: 185 | B186: 22199 Sabiñánigo | C186: 22199 | D186: 583 | E186: 33 | F186: 34 | G186: 33 | H186: 35 | I186: 40 | J186: 55 | K186: 33 | L186: 49 | M186: 72 | N186: 75 | O186: 52 | P186: 31 | Q186: 24 | R186: 10 | S186: 2 | T186: 3 | U186: 0 | V186: 2 | W186: 0 | X186: 0 | Y186: 583 | Z186: 33 | AA186: 34 | AB186: 33 | AC186: 35 | AD186: 40 | AE186: 55 | AF186: 33 | AG186: 49 | AH186: 72 | AI186: 75 | AJ186: 52 | AK186: 31 | AL186: 24 | AM186: 10 | AN186: 2 | AO186: 3 | AP186: 0 | AQ186: 2 | AR186: 0 | AS186: 0
A187: 186 | B187: 22200 Sahún | C187: 22200 | D187: 8 | E187: 0 | F187: 1 | G187: 0 | H187: 0 | I187: 0 | J187: 0 | K187: 1 | L187: 1 | M187: 1 | N187: 1 | O187: 0 | P187: 3 | Q187: 0 | R187: 0 | S187: 0 | T187: 0 | U187: 0 | V187: 0 | W187: 0 | X187: 0 | Y187: 8 | Z187: 0 | AA187: 1 | AB187: 0 | AC187: 0 | AD187: 0 | AE187: 0 | AF187: 1 | AG187: 1 | AH187: 1 | AI187: 1 | AJ187: 0 | AK187: 3 | AL187: 0 | AM187: 0 | AN187: 0 | AO187: 0 | AP187: 0 | AQ187: 0 | AR187: 0 | AS187: 0
A188: 187 | B188: 22201 Salas Altas | C188: 22201 | D188: 9 | E188: 0 | F188: 0 | G188: 0 | H188: 0 | I188: 1 | J188: 0 | K188: 3 | L188: 2 | M188: 0 | N188: 1 | O188: 0 | P188: 0 | Q188: 1 | R188: 1 | S188: 0 | T188: 0 | U188: 0 | V188: 0 | W188: 0 | X188: 0 | Y188: 9 | Z188: 0 | AA188: 0 | AB188: 0 | AC188: 0 | AD188: 1 | AE188: 0 | AF188: 3 | AG188: 2 | AH188: 0 | AI188: 1 | AJ188: 0 | AK188: 0 | AL188: 1 | AM188: 1 | AN188: 0 | AO188: 0 | AP188: 0 | AQ188: 0 | AR188: 0 | AS188: 0
A189: 188 | B189: 22202 Salas Bajas | C189: 22202 | D189: 10 | E189: 1 | F189: 0 | G189: 0 | H189: 0 | I189: 0 | J189: 1 | K189: 2 | L189: 2 | M189: 2 | N189: 0 | O189: 0 | P189: 2 | Q189: 0 | R189: 0 | S189: 0 | T189: 0 | U189: 0 | V189: 0 | W189: 0 | X189: 0 | Y189: 10 | Z189: 1 | AA189: 0 | AB189: 0 | AC189: 0 | AD189: 0 | AE189: 1 | AF189: 2 | AG189: 2 | AH189: 2 | AI189: 0 | AJ189: 0 | AK189: 2 | AL189: 0 | AM189: 0 | AN189: 0 | AO189: 0 | AP189: 0 | AQ189: 0 | AR189: 0 | AS189: 0
A190: 189 | B190: 22203 Salillas | C190: 22203 | D190: 12 | E190: 2 | F190: 0 | G190: 0 | H190: 2 | I190: 1 | J190: 0 | K190: 0 | L190: 1 | M190: 2 | N190: 3 | O190: 0 | P190: 0 | Q190: 1 | R190: 0 | S190: 0 | T190: 0 | U190: 0 | V190: 0 | W190: 0 | X190: 0 | Y190: 12 | Z190: 2 | AA190: 0 | AB190: 0 | AC190: 2 | AD190: 1 | AE190: 0 | AF190: 0 | AG190: 1 | AH190: 2 | AI190: 3 | AJ190: 0 | AK190: 0 | AL190: 1 | AM190: 0 | AN190: 0 | AO190: 0 | AP190: 0 | AQ190: 0 | AR190: 0 | AS190: 0
A191: 190 | B191: 22204 Sallent de Gállego | C191: 22204 | D191: 61 | E191: 2 | F191: 3 | G191: 2 | H191: 3 | I191: 3 | J191: 4 | K191: 8 | L191: 10 | M191: 12 | N191: 6 | O191: 0 | P191: 2 | Q191: 1 | R191: 2 | S191: 2 | T191: 1 | U191: 0 | V191: 0 | W191: 0 | X191: 0 | Y191: 61 | Z191: 2 | AA191: 3 | AB191: 2 | AC191: 3 | AD191: 3 | AE191: 4 | AF191: 8 | AG191: 10 | AH191: 12 | AI191: 6 | AJ191: 0 | AK191: 2 | AL191: 1 | AM191: 2 | AN191: 2 | AO191: 1 | AP191: 0 | AQ191: 0 | AR191: 0 | AS191: 0
A192: 191 | B192: 22205 San Esteban de Litera | C192: 22205 | D192: 43 | E192: 0 | F192: 1 | G192: 0 | H192: 1 | I192: 5 | J192: 5 | K192: 8 | L192: 9 | M192: 7 | N192: 2 | O192: 4 | P192: 0 | Q192: 0 | R192: 0 | S192: 1 | T192: 0 | U192: 0 | V192: 0 | W192: 0 | X192: 0 | Y192: 43 | Z192: 0 | AA192: 1 | AB192: 0 | AC192: 1 | AD192: 5 | AE192: 5 | AF192: 8 | AG192: 9 | AH192: 7 | AI192: 2 | AJ192: 4 | AK192: 0 | AL192: 0 | AM192: 0 | AN192: 1 | AO192: 0 | AP192: 0 | AQ192: 0 | AR192: 0 | AS192: 0
A193: 192 | B193: 22206 Sangarrén | C193: 22206 | D193: 16 | E193: 0 | F193: 0 | G193: 0 | H193: 0 | I193: 1 | J193: 1 | K193: 2 | L193: 6 | M193: 0 | N193: 3 | O193: 0 | P193: 2 | Q193: 0 | R193: 1 | S193: 0 | T193: 0 | U193: 0 | V193: 0 | W193: 0 | X193: 0 | Y193: 16 | Z193: 0 | AA193: 0 | AB193: 0 | AC193: 0 | AD193: 1 | AE193: 1 | AF193: 2 | AG193: 6 | AH193: 0 | AI193: 3 | AJ193: 0 | AK193: 2 | AL193: 0 | AM193: 1 | AN193: 0 | AO193: 0 | AP193: 0 | AQ193: 0 | AR193: 0 | AS193: 0
A194: 193 | B194: 22207 San Juan de Plan | C194: 22207 | D194: 0 | E194: 0 | F194: 0 | G194: 0 | H194: 0 | I194: 0 | J194: 0 | K194: 0 | L194: 0 | M194: 0 | N194: 0 | O194: 0 | P194: 0 | Q194: 0 | R194: 0 | S194: 0 | T194: 0 | U194: 0 | V194: 0 | W194: 0 | X194: 0 | Y194: 0 | Z194: 0 | AA194: 0 | AB194: 0 | AC194: 0 | AD194: 0 | AE194: 0 | AF194: 0 | AG194: 0 | AH194: 0 | AI194: 0 | AJ194: 0 | AK194: 0 | AL194: 0 | AM194: 0 | AN194: 0 | AO194: 0 | AP194: 0 | AQ194: 0 | AR194: 0 | AS194: 0
A195: 194 | B195: 22208 Santa Cilia | C195: 22208 | D195: =(SUM(E195:X195))+0 -> 8 | E195: 0 | F195: 0 | G195: 0 | H195: 0 | I195: 0 | J195: 0 | K195: 0 | L195: 3 | M195: 2 | N195: 2 | O195: 1 | P195: 0 | Q195: 0 | R195: 0 | S195: 0 | T195: 0 | U195: 0 | V195: 0 | W195: 0 | X195: 0 | Y195: =(SUM(Z195:AS195))+0 -> 8 | Z195: 0 | AA195: 0 | AB195: 0 | AC195: 0 | AD195: 0 | AE195: 0 | AF195: 0 | AG195: 3 | AH195: 2 | AI195: 2 | AJ195: 1 | AK195: 0 | AL195: 0 | AM195: 0 | AN195: 0 | AO195: 0 | AP195: 0 | AQ195: 0 | AR195: 0 | AS195: 0
A196: 195 | B196: 22209 Santa Cruz de la Serós | C196: 22209 | D196: 4 | E196: 0 | F196: 0 | G196: 0 | H196: 0 | I196: 1 | J196: 1 | K196: 0 | L196: 1 | M196: 0 | N196: 0 | O196: 0 | P196: 0 | Q196: 0 | R196: 1 | S196: 0 | T196: 0 | U196: 0 | V196: 0 | W196: 0 | X196: 0 | Y196: 4 | Z196: 0 | AA196: 0 | AB196: 0 | AC196: 0 | AD196: 1 | AE196: 1 | AF196: 0 | AG196: 1 | AH196: 0 | AI196: 0 | AJ196: 0 | AK196: 0 | AL196: 0 | AM196: 1 | AN196: 0 | AO196: 0 | AP196: 0 | AQ196: 0 | AR196: 0 | AS196: 0
A197: 196 | B197: 22212 Santaliestra y San Quílez | C197: 22212 | D197: 1 | E197: 0 | F197: 0 | G197: 0 | H197: 0 | I197: 0 | J197: 0 | K197: 0 | L197: 0 | M197: 0 | N197: 0 | O197: 1 | P197: 0 | Q197: 0 | R197: 0 | S197: 0 | T197: 0 | U197: 0 | V197: 0 | W197: 0 | X197: 0 | Y197: 1 | Z197: 0 | AA197: 0 | AB197: 0 | AC197: 0 | AD197: 0 | AE197: 0 | AF197: 0 | AG197: 0 | AH197: 0 | AI197: 0 | AJ197: 1 | AK197: 0 | AL197: 0 | AM197: 0 | AN197: 0 | AO197: 0 | AP197: 0 | AQ197: 0 | AR197: 0 | AS197: 0
A198: 197 | B198: 22213 Sariñena | C198: 22213 | D198: 447 | E198: 41 | F198: 26 | G198: 26 | H198: 21 | I198: 28 | J198: 47 | K198: 46 | L198: 46 | M198: 54 | N198: 46 | O198: 33 | P198: 13 | Q198: 11 | R198: 8 | S198: 0 | T198: 0 | U198: 1 | V198: 0 | W198: 0 | X198: 0 | Y198: 447 | Z198: 41 | AA198: 26 | AB198: 26 | AC198: 21 | AD198: 28 | AE198: 47 | AF198: 46 | AG198: 46 | AH198: 54 | AI198: 46 | AJ198: 33 | AK198: 13 | AL198: 11 | AM198: 8 | AN198: 0 | AO198: 0 | AP198: 1 | AQ198: 0 | AR198: 0 | AS198: 0
A199: 198 | B199: 22214 Secastilla | C199: 22214 | D199: 11 | E199: 0 | F199: 1 | G199: 0 | H199: 1 | I199: 1 | J199: 1 | K199: 3 | L199: 1 | M199: 0 | N199: 0 | O199: 2 | P199: 1 | Q199: 0 | R199: 0 | S199: 0 | T199: 0 | U199: 0 | V199: 0 | W199: 0 | X199: 0 | Y199: 11 | Z199: 0 | AA199: 1 | AB199: 0 | AC199: 1 | AD199: 1 | AE199: 1 | AF199: 3 | AG199: 1 | AH199: 0 | AI199: 0 | AJ199: 2 | AK199: 1 | AL199: 0 | AM199: 0 | AN199: 0 | AO199: 0 | AP199: 0 | AQ199: 0 | AR199: 0 | AS199: 0
A200: 199 | B200: 22215 Seira | C200: 22215 | D200: 5 | E200: 1 | F200: 0 | G200: 0 | H200: 0 | I200: 1 | J200: 1 | K200: 0 | L200: 1 | M200: 0 | N200: 0 | O200: 0 | P200: 0 | Q200: 1 | R200: 0 | S200: 0 | T200: 0 | U200: 0 | V200: 0 | W200: 0 | X200: 0 | Y200: 5 | Z200: 1 | AA200: 0 | AB200: 0 | AC200: 0 | AD200: 1 | AE200: 1 | AF200: 0 | AG200: 1 | AH200: 0 | AI200: 0 | AJ200: 0 | AK200: 0 | AL200: 1 | AM200: 0 | AN200: 0 | AO200: 0 | AP200: 0 | AQ200: 0 | AR200: 0 | AS200: 0
... 569 more rows
